Workbook

Sheet Deckblatt
B9: Zitationshinweis:
B10: Ran Liu, Leonard Terres, Andreas Ralf Köhler, Laura Meyer, Johanna Ellensohn, Ina Rüdenauer, und Andy Maun. „CAFOGES-Tool zur Berechnung von CO2-Emissionen von Kliniken - CAFOGES: Carbon Footprint im Gesundheitswesen, DBU (AZ 38024/01-43). Version 1.1 vom 25.09.2023, Öko-Institut Freiburg e.V.“, 25.Sep. 2023.
B11: Download:
B12: https://www.oeko.de/CaFoGes-Tool
B13: https://www.uniklinik-freiburg.de/allgemeinmedizin/cafoges.html
B15: Entwickelt von:
C16: Ran Liu | F16: (Öko-Institut e.V.)
B17: Datengrundlage erstellt von:
C18: Ran Liu | F18: (Öko-Institut e.V.)
C19: Ina Rüdenauer | F19: (Öko-Institut e.V.)
C20: Leonard Terres | F20: (Institut für Allgemeinmedizin, Uniklinik Freiburg)
C21: Laura Meyer | F21: (Institut für Allgemeinmedizin, Uniklinik Freiburg)
B22: Review durch:
C23: Dr. Andreas R. Köhler | F23: (Öko-Institut e.V.)
C24: Prof. Dr. Andy Maun | F24: (Institut für Allgemeinmedizin, Uniklinik Freiburg)
C25: Johanna Ellensohn | F25: (Institut für Allgemeinmedizin, Uniklinik Freiburg)
B27: Hintergrund des Projekts
B28: Projekt der Förderinitiative der Deutschen Bundesstiftung Umwelt zum Thema "Planetary Health: Klimaschutz ist Gesundheitsschutz"
B29: Projekttitel: Fallstudiengestützte Carbon Footprint Bewertung nach GHG Protocol und Potenzialanalyse von Klimaschutzmaßnahmen im Klinikbetrieb
Q31: https://www.dbu.de/3050.html
B33: Impressum
B35: Dieses MS-Excel-basierte Tool zur Berechnung der Treibhausgasemissionen von Kliniken wurde im Rahmen eines Forschungsprojektes "CAFOGES: Carbon Footprinting im Gesundheitswesen" mit Förderung der Deutschen Bundesstiftung Umwelt (DBU) (AZ 38024/01-43) entwickelt. Die konzeptionelle und technische Umsetzung erfolgte durch das Öko-Institut e.V. auf Basis einer vom Universitätsklinikum Freiburg durchgeführten Verbrauchsdatenerhebung für das Referenzjahr 2019. Projektleitung: Prof. Dr. Andy Maun, Direktor Institut für Allgemeinmedizin, Universitätsklinikum Freiburg Projektlaufzeit: 01.01.2022 - 30.06.2023 Rückfragen: ifa.cafoges@uniklinik-freiburg.de
B36: Dieses Tool ist auf der DBU-Webseite zum Download verfügbar.
B37: Die im Tool hinterlegten Berechnungsformeln werden in geschützten Zellen gespeichert. Dies verhindert eine versehentliche Änderung der gespeicherten Formeln.
B38: Das Tool ist ein Open-Source-Tool. Wenn Sie bestimmte Aspekte oder bestimmte Emissionsfaktoren ändern möchten, können Sie alle Felder mit dem Passwort "cafoges" freischalten.
B39: Das Tool enthält VBA-Makros. Die Makros sollen aktiviert werden. Sofern die Makro-Ausführung bei Ihrem System gesperrt ist, wenden Sie sich an Ihren Systemadministrator.
B42: Änderungsprotokoll von Version 1.1 gegenüber 1.0
B43: 1) In Zelle E378-E380 auf dem Blatt "Scope_3" wurden die Werte nochmal mit 1000 multipliziert.
B44: 2) In Zelle E399 und G399 wurden die Summenformeln korrigiert.
B45: 3) Auf dem Blatt “Scope_2”: In Zelle C60 und C73 wurde „%“ hinzugefügt und eine Summe-Funktion zum Zweck der Klarheit hinzugefügt.
B46: 4) In Zelle E381-E387 auf dem Blatt "EF" wurde Zitat [13] durch [33] ersetzt.
B47: 5) In den Zellen E142-E144 wurde die unnötige Dropdown-Liste gelöscht.
B48: 6) Zitationshinweis auf diesem Blatt wurde aktualisiert.

Sheet Ein-&Anleitung
C7: Ziel des Tools:
C8: -Vereinfachung der Carbon-Footprint-Berechnung im Klinikbereich gemäß GHG Protocol (modifiziert für das Gesundheitswesen)
C9: -Erfassung und Bilanzierung der Treibhausgasemissionen des Krankenhauses entsprechend des GHG Protocols
C11: Struktur des Tools:
C12: • Blatt "Eckdaten": Beschreibung der allgemeinen Informationen und Rahmenbedingungen Ihrer Bilanz.
C13: • Blätter "Scope 1/2/3": Eingabe Ihrer Aktivitätsdaten, die zu den jeweiligen Betrachtungsebenen (Scope 1/2/3) des GHG Protocols gehören.
C14: • Blatt "EF" (Emissionsfaktoren): Dokumentation der hintergelegten Emissionsfaktoren
C15: • Blatt "Quellen": Dokumentation von Datenquellen aus der Literatur
C16: • Blatt "Ergebnisse": Überblick über die gesamten GHG-Ergebnisse nach Scopes und Kategorien
C18: Auf Basis Ihrer eingetragenen Daten werden GHG-Emissionen mit entsprechenden Emissionsfaktoren automatisch berechnet.
C19: Bei manchen Aktivitäten gibt es zwei Möglichkeiten:
C20: 1) Sie verwenden die im Tool hinterlegten Emissionsfaktoren;
C21: 2) Sie nutzen spezifische Emissionsfaktoren, die sie z.B. mittels einer Abfrage Ihrer Lieferanten oder durch eigene Berechnung ermittelt haben.
C23: Überblick über die Methode für die in diesem Tool dargestellten Emissionsfaktoren:
C24: Scope gemäß GHG Protocol (Greenhouse Gas Protocol) | I24: Bilanzierungsansatz | L24: Erklärungen
I25: Bottom-Up? | J25: Top-Down? | L25: • Bottom-up:
C26: Scope 1: Direkte GHG-Emissionen aus Quellen im Einflussbereich einer Organisation (z.B. Verbrennungsprozesse, Freisetzung von Kältemitteln oder Lachgas) | I26: R | J26: Q | L26: Die Bottom-Up Methode basiert auf prozessbezogen physischen Daten (z.B. Gewicht, Energiegehalt). Sie ist besonders geeignet für einzigartige Prozesse und Analysen auf Produktebene.
C27: Scope 2: Indirekte GHG-Emissionen aus Nutzung extern bereitgestellter Energieträger (z.B. Stromverbrauch, Wärme etc.) | I27: R | J27: Q
C28: Scope 3: Eingekaufte Güter und Dienstleistungen -> Medikamente | I28: Rteilweise, Hybrid | J28: R
C29: Scope 3: Eingekaufte Güter und Dienstleistungen -> Medizinische & technische Gase | I29: R | J29: Q | L29: • Top-Down:
C30: Scope 3: Eingekaufte Güter und Dienstleistungen -> Medizinische Verbrauchsmaterialien | I30: Q | J30: R | L30: Die zur Datenerfassung angewandte Top-down Methode approximiert die zur Berechnung der GHG-Emissionen zu berücksichtigenden Sachbilanzdaten (physikalische Einheit) auf Basis von Finanzdaten (monetäre Messgrößen für Aktivitäten). Dazu werden die Finanzdaten mit einem produktgruppen-spezifischen Emissionsfaktor verknüpft.
C31: Scope 3: Eingekaufte Güter und Dienstleistungen -> Kältemittel | I31: R | J31: Q
C32: Scope 3: Eingekaufte Güter und Dienstleistungen -> Lebensmittel | I32: R | J32: R
C33: Scope 3: Eingekaufte Güter und Dienstleistungen -> Textile | I33: R | J33: R
C34: Scope 3: Eingekaufte Güter und Dienstleistungen -> Hygieneartikel | I34: R | J34: R
C35: Scope 3: Eingekaufte Güter und Dienstleistungen -> Papier/Pappe | I35: R | J35: R
C36: Scope 3: Eingekaufte Güter und Dienstleistungen -> Wasserverbrauch | I36: R | J36: Q
C37: Scope 3: Eingekaufte Güter und Dienstleistungen -> Externe Dienstleistung: Serverraum & Internet | I37: R | J37: Q
C38: Scope 3: Kapitalgüter -> IT-Geräte | I38: R | J38: Q
C39: Scope 3: Brennstoff- und energiebezogene Emissionen | I39: R | J39: Q
C40: Scope 3: Abfall & Abwässer (am Standort) | I40: R | J40: Q
C41: Scope 3: Geschäftsreisen | I41: R | J41: Q
C42: Scope 3: Übernachtung bei Dienstreisen | I42: R | J42: Q
C43: Scope 3: Mitarbeitendenmobilität | I43: R | J43: Q
C44: Scope 3: Patient*innenmobilität (zusätzliche Kategorie für Gesundheitswesen) | I44: R | J44: Q
C46: Berechnungsprinzip zu GHG-Emissionen:
C47: Die Berechnung beruht auf den Inventardaten und den entsprechenden Emissionsfaktoren.
C48: Die Inventardaten geben Sie in den gelb markierten Bereichen, jeweils in den Blättern "Eckdaten", "Scope_1", "Scope_2", "Scope_3" ein.
C49: Wichtig dabei ist, dass die Einheiten der Eintragungen in den jeweiligen Tabellen festgelegt sind.
C50: Im Beispiel (s. Unten) sind diese Einheiten mit roten Kästen zur Übersicht hervorgehoben.
C51: Z.B. für die Kältemittel in Scope 3 ist die erforderliche Einheit kg / Jahr. Falls Ihre Daten in der Einheit Tonne sind, rechnen Sie bitte in kg um,
C52: Das Ergebnis (letzte Spalte im Beispiel, blau markiert) wurde automatisch berechnet. Die Einheiten wurden somit berücksichtigt.
C56: Die entsprechenden GWP-Werte werden automatisch berechnet (blauer Bereich). Für das Beispiel Kältemittel R-32 ist der Berechnungsweg wie folgend:
D57: GHG-EmissionenHerstellung = Inventardaten (z.B. 2 kg R-32/Jahr) x Emissionsfaktor für den Herstellungsaufwand (z.B. 5,2 kg CO2e/kg R-32)
D58: = 0.01 tCO2e/Jahr
C59: Alle GWP-Ergebnisse sind in Tonnen dargestellt.
C61: Legende
D63: Eingabe erforderlich
D65: Default-Werte, die durch Nutzer*in änderbar sind
D67: Default-Werte, die durch Nutzer*in NICHT änderbar sind
D69: keine Eingabe möglich oder automatische Ausgabe. Die Zelle enthält Formeln, die vom Nutzer nicht geändert werden können.
D71: Emissionsfaktor auf Basis von der Einkaufsausgabe in Euro
C74: Abkürzungen
C75: API | D75: Active pharmaceutical ingredient (Wirkstoffe)
C76: CDP | D76: Carbon Disclosure Project
C77: CO2e | D77: CO₂-Äquivalente
C78: EF | D78: Emissionsfaktor
C79: GHG | D79: Greenhouse Gas
C80: GWP | D80: Global Warming Potential (Treibhauseffekt)
C81: k.A. | D81: Keine Angabe
C82: kg | D82: Kilogramm
C83: kWh | D83: Kilowattstunden
C84: LCA | D84: Life cycle assessment (Ökobilanz)
C85: PCF | D85: Product carbon footprint
C86: Pkm | D86: Personenkilometer
C87: RFI | D87: Radiative Forcing Index
C88: S1 | D88: Scope 1
C89: S2 | D89: Scope 2
C90: S3 | D90: Scope 3
C91: t | D91: Tonnen
C92: T&D | D92: Transmission & Distribution
C93: THG | D93: Treibhausgas
C94: Tkm | D94: Tonnenkilometer

Sheet Eckdaten
B6: Allgemeine Informationen des zu bilanzierenden Krankenhauses
B7: Name des Krankenhauses | C7: Klinikum ###
B8: Land | C8: Deutschland
B9: Standort(e)
B10: Anzahl der Mitarbeiter*innen innerhalb der Organisationsgrenze*
B11: Anzahl der Planbetten
B12: Anzahl der belegten Betten
B13: Anzahl der Patient*innen
B14: Sonstige Informationen
B15: Ansprechpartner*in
B16: Datum
B17: *Definition s. unten "Definition der organisatorischen Systemgrenze"
B19: Definition des Bilanzjahres
B20: Eine betriebliche Klimabilanz bezieht sich in der Regel auf ein Geschäftsjahr bzw. Kalenderjahr, da die vorhandenen Finanzdaten in der Regel auf ein Geschäftsjahr bezogen sind. Der Bilanzierungszeitraum der Fallstudie basiert daher auf dem fiskalischen Kalenderjahr, das am 1. Januar beginnt und am 31. Dezember endet.
B21: Bilanzzeitraum Beginn (Format für die Eingabe Tag.Monat.Jahr)
B22: Bilanzzeitraum Ende (Format für die Eingabe Tag.Monat.Jahr)
B24: Beschreibung der operativen Systemgrenze
B25: Das GHG Protocol ist der de-facto Standard für die GHG-Bilanzierung von Organisationen, das generelle Prinzipien und Berechnungsregeln enthält und dabei drei Betrachtungsebenen (Engl.: Scopes) unterscheidet:
B26: • Scope 1: direkte GHG-Emissionen aus Quellen im Einflussbereich einer Organisation (z.B. durch Verbrennungsprozesse, Freisetzung von Kältemitteln oder Lachgas)
B27: • Scope 2: indirekte GHG-Emissionen aus der Nutzung von extern bereitgestellten Energieträgern (z.B. der eigene Stromverbrauch, Wärme, Kühlung, etc.)
B28: • Scope 3: indirekte GHG-Emissionen in der Lieferkette, aus Fahrzeugnutzung, Dienstreisen und Transporten sowie erbrachte Dienstleistungen des Gesundheitssektors. Der Scope 3 des GHG Protocols ist in 15 Kategorien unterteilt. Je nach Bandbreite des Einkaufs stellt die Datenerhebung in der Praxis eine große Herausforderung dar. Eine Fokussierung der Datenerhebung auf die krankenhausspezifischen Güter und Dienstleistungen ist der erste Schritt zur Abschätzung der GHG-Emissionen. Deshalb ist eine Clusterung und Priorisierung ratsam. Medikamente und medizinische Verbrauchsmaterialien bilden üblicherweise den höchsten ökonomischen Einkaufswert und sollten daher ermittelt und priorisiert betrachtet werden. Die untenstehende Tabelle gibt einen Überblick über die verschiedenen Bereiche des Scope 3 nach GHG Protocol und deren Berücksichtigung, bzw. Ergänzung in diesem Tool des Projektes CAFOGES:
B29: Scope 3, Kategorien | C29: Im Tool berücksichtigt?
B30: Kategorie 1: Eingekaufte Güter und Diestleistungen | C30: ja
B31: Kategorie 2: Kapitalgüter | C31: ja, allerdings wurden nur IT-Geräte berücksichtigt
B32: Kategorie 3: Brennstoff- und energiebezogene Emissionen | C32: ja
B33: Kategorie 4: Transport und Verteilung (vorgelagert) | C33: nicht berücksichtigt wegen begrenztem Budget; Emissionen werden zudem als wenig relevant eingeschätzt
B34: Kategorie 5: Abfall (am Standort) | C34: ja
B35: Kategorie 6: Geschäftsreisen | C35: ja, zusätzlich Übernachtungen
B36: Kategorie 7: Pendeln der Arbeitnehmer*innen | C36: ja, zusätzlich Patient*innenmobilität (s. Kategorie 16)
B37: Kategorie 8: Angemietete oder geleaste Sachanlagen | C37: nicht berücksichtigt, nicht relevant
B38: Kategorie 9: Transport und Verteilung (nachgelagert) | C38: nicht berücksichtigt wegen begrenztem Budget; Emissionen werden zudem als wenig relevant eingeschätzt
B39: Kategorie 10: Verarbeitung der verkauften Güter | C39: nicht berücksichtigt, nicht relevant
B40: Kategorie 11: Nutzung der verkauften Güter | C40: nicht berücksichtigt, nicht relevant
B41: Kategorie 12: Umgang mit verkauften Gütern an deren Lebenszyklusende | C41: nicht berücksichtigt, nicht relevant
B42: Kategorie 13: Vermietete oder verleaste Sachanlagen | C42: nicht berücksichtigt, nicht relevant
B43: Kategorie 14: Franchise | C43: nicht berücksichtigt, nicht relevant
B44: Kategorie 15: Investitionen | C44: nicht berücksichtigt, nicht relevant
B45: Kategorie 16: Patient*innenmobilität | C45: zusätzliche Kategorie für Gesundheitswesen (außerhalb GHG Protocol)
B47: Definition der organisatorischen Systemgrenze
B48: Die Organisationsgrenze definiert, welche Bereiche der Organisation in der Bilanz inkludiert werden. Gemäß GHG Protocol sind sämtliche Prozesse, Verbräuche etc. innerhalb der Organisationsgrenze in die Bilanz zu inkludieren. Jegliche Ausnahmen sind im Sinne der Transparenz gesondert darzustellen. Eine Darstellung durch ein Diagramm für die in der Bilanz beinhaltenten Organisationseinheiten ist hilfreich für die Klarheit während der Datenerhebung. Im Rahmen dieser Fallstudie des Projektes CAFOGES am Universitätsklinikum Freiburg, beschränkt sich die Organsationsgrenze der GHG-Bilanz auf die Faktoren, welche für die Patient*innenversorgung relevant sind. Die Aktivitäten und Prozesse im Rahmen Forschung und Lehre liegen außerhalb der zu Projektbeginn definierten Organisationsgrenze und wurden somit in der Datenanalyse exkludiert, wo dies methodisch realisierbar war. Diagramm der Organisationsgrenze des Projektes CAFOGES:
B50: Beschreibung Ihrer organisatorischen Systemgrenze:
B51: Diese Angaben dienen für ihre eigene Orientierung und unterstützen bei wiederholter Anwendung in Folgejahren eine konsistente Datenerfassung.

Sheet Scope_1
B8: Scope 1 - Direkte Emissionen | F8: Summe : | G8: =SUM((IF(Scope1_1_Ja_Nein="Nein",0,IF(Option_Auswahl_S1_1="Option 1",Result_Scope1_1_Option1,Result_Scope1_1_Option2))),Result_Scope1_2_Fuhrpark,Result_Scope1_3_KM,Result_Scope1_4_Medi_Gase,Result_Scope1_4_Analyse_Gase) -> 0 | H8: [t CO2e]
B10: Scope 1.1 - Direkte Emissionen aus Verbrennungsprozessen stationärer Anlagen (selbst produzierte Energie)
B11: •Bilanziert werden die direkten Emissionen, die bei der Umwandlung von Primärenergieträgern bei Verbrennungsprozessen in stationären Anlagen (z.B: Kessel, KWK (Kraft-Wärme-Kopplung), Prozesswärmeerzeuger) entstehen.
B12: •Emissionen im Zusammenhang mit dem Verkauf von selbst erzeugter Energie an andere Unternehmen werden nach dem GHG-Protocol NICHT von Scope 1.1 abgezogen.
B13: •Direkte CO2-Emissionen aus der Verbrennung von biogenen Brennstoffen (z.B. Holzpellets) sollen nach GHG-Protocol nicht in Scope 1 einbezogen werden. Demnach soll nur CO2 aus der Verbrennung von fossilen Energieträgern berücksichtigt werden.
B14: Allerdings sollen die Nicht-CO2-Emissionen (z.B. CH4, N2O) von biogenen Brennstoffen zusammen mit den fossilen Brennstoffen erfasst werden.
B15: •Die direkte Erzeugung anderer erneuerbarer Energien (z.B. Photovoltaik, Wasserkraft) beinhaltet keine Verbrennungsprozesse und wird somit hier für Scope 1 als emissionsfrei betrachtet.
B16: •Die Emissionen, welche durch Produktion und Transport der fossilen Energieträger (Vorketten) entstehen, sind als indirekte Emissionen dem Scope 3 zuzuordnen und werden dort separat erfasst (s. Kategorie 3: Brennstoff- und energiebezogene Emissionen im Blatt "Scope_3").
C18: Frage: Ist Scope 1.1 für Sie relevant?
C20: Es gibt zwei Optionen, bei denen die direkten GHG-Emissionen aus den Verbrennungsprozessen stationärer Anlagen gerechnet werden.
C21: Option 1: Angaben zu direkten Emissionen der einzelnen Treibhausgase liegen vor.
C22: Option 2: Direkte Emissionen der einzelnen Treibhausgase wurden nicht erfasst. Bekannt sind die Menge der eingekauften Brennstoffe und ihre Heizwerte.
C24: Auswahl der Berechnungsmethode
C26: Option 1: Messdaten zu direkten Emissionen der einzelnen Treibhausgase liegen vor (z.B. mittels valider Messverfahren, welche aufgrund gesetzlicher Bestimmungen bei einer Anlage vorgeschrieben sind)
E27: Direkte Emissionen | F27: Menge (kg / Jahr) | G27: Emissionsfaktor: kg CO2e/kg (IPCC 2021: AR6) | H27: Ergebnis (t CO2e / Jahr)
D28: i | E28: Kohlenstoffdioxid | G28: =VLOOKUP(E28,EF!$C$41:$D$45,2,0) -> 1 | H28: =IFERROR(F28*G28/1000,"k.A.") -> 0
E29: Methan | G29: =VLOOKUP(E29,EF!$C$41:$D$45,2,0) -> 27.9 | H29: =IFERROR(F29*G29/1000,"k.A.") -> 0
E30: Lachgas (Distickstoffmonoxid) | G30: =VLOOKUP(E30,EF!$C$41:$D$45,2,0) -> 273 | H30: 0
E31: Stickstofftrifluorid | G31: =VLOOKUP(E31,EF!$C$41:$D$45,2,0) -> 17400 | H31: 0
E32: Schwefelhexafluorid | G32: =VLOOKUP(E32,EF!$C$41:$D$45,2,0) -> 24300 | H32: 0
E33: Summe | H33: =SUBTOTAL(109,Tabelle12[Ergebnis (t CO2e / Jahr)]) -> 0
C36: Option 2: Direkte Emissionen der einzelnen Treibhausgase wurden nicht erfasst. Bekannt sind die Menge der eingekauften Brennstoffe und ihre Heizwerte.
E38: Brennstoffe (Gesamt) | F38: Verbrauchsmenge | G38: Einheit / Jahr | H38: Heizwert je Energieträger | I38: kWh / Einheit | J38: CO2 in t CO2e / Jahr | K38: CH4 in t CO2e / Jahr | L38: N2O in t CO2e / Jahr | M38: Ergebnis (t CO2e / Jahr)
D39: i | E39: Erdgas | G39: m³ | I39: ="kWh / " & Scope_1!$G39 -> kWh / m³ | J39: =IF(AND(ISNUMBER(Brechnung_Brennstoffe_Scope1[[#This Row],[Verbrauchsmenge ]]),ISNUMBER(Brechnung_Brennstoffe_Scope1[[#This Row],[Heizwert je Energieträger ]])),Brechnung_Brennstoffe_Scope1[[#This Row],[Verbrauchsmenge ]]*Brechnung_Brennstoffe_Scope1[[#This Row],[Heizwert je Energieträger ]]*VLOOKUP(Brechnung_Brennstoffe_Scope1[[#This Row],[Brennstoffe (Gesamt)]],EF!$C$15:$E$21,3,FALSE)/1000,"k.A.") -> k.A. | K39: =IF(AND(ISNUMBER(Brechnung_Brennstoffe_Scope1[[#This Row],[Verbrauchsmenge ]]),ISNUMBER(Brechnung_Brennstoffe_Scope1[[#This Row],[Heizwert je Energieträger ]])),Brechnung_Brennstoffe_Scope1[[#This Row],[Verbrauchsmenge ]]*Brechnung_Brennstoffe_Scope1[[#This Row],[Heizwert je Energieträger ]]*VLOOKUP(Brechnung_Brennstoffe_Scope1[[#This Row],[Brennstoffe (Gesamt)]],EF!$C$15:$F$21,4,FALSE)*Methan_IPCC_AR6/1000,"k.A.") -> k.A. | L39: =IF(AND(ISNUMBER(Brechnung_Brennstoffe_Scope1[[#This Row],[Verbrauchsmenge ]]),ISNUMBER(Brechnung_Brennstoffe_Scope1[[#This Row],[Heizwert je Energieträger ]])),Brechnung_Brennstoffe_Scope1[[#This Row],[Verbrauchsmenge ]]*Brechnung_Brennstoffe_Scope1[[#This Row],[Heizwert je Energieträger ]]*VLOOKUP(Brechnung_Brennstoffe_Scope1[[#This Row],[Brennstoffe (Gesamt)]],EF!$C$15:$G$21,5,FALSE)*N2O_IPCC_AR6/1000,"k.A.") -> k.A. | M39: =SUM(Scope_1!$J39:$L39) -> 0
E40: Öl | G40: Liter | I40: ="kWh / " & Scope_1!$G40 -> kWh / Liter | J40: =IF(AND(ISNUMBER(Brechnung_Brennstoffe_Scope1[[#This Row],[Verbrauchsmenge ]]),ISNUMBER(Brechnung_Brennstoffe_Scope1[[#This Row],[Heizwert je Energieträger ]])),Brechnung_Brennstoffe_Scope1[[#This Row],[Verbrauchsmenge ]]*Brechnung_Brennstoffe_Scope1[[#This Row],[Heizwert je Energieträger ]]*VLOOKUP(Brechnung_Brennstoffe_Scope1[[#This Row],[Brennstoffe (Gesamt)]],EF!$C$15:$E$21,3,FALSE)/1000,"k.A.") -> k.A. | K40: =IF(AND(ISNUMBER(Brechnung_Brennstoffe_Scope1[[#This Row],[Verbrauchsmenge ]]),ISNUMBER(Brechnung_Brennstoffe_Scope1[[#This Row],[Heizwert je Energieträger ]])),Brechnung_Brennstoffe_Scope1[[#This Row],[Verbrauchsmenge ]]*Brechnung_Brennstoffe_Scope1[[#This Row],[Heizwert je Energieträger ]]*VLOOKUP(Brechnung_Brennstoffe_Scope1[[#This Row],[Brennstoffe (Gesamt)]],EF!$C$15:$F$21,4,FALSE)*Methan_IPCC_AR6/1000,"k.A.") -> k.A. | L40: =IF(AND(ISNUMBER(Brechnung_Brennstoffe_Scope1[[#This Row],[Verbrauchsmenge ]]),ISNUMBER(Brechnung_Brennstoffe_Scope1[[#This Row],[Heizwert je Energieträger ]])),Brechnung_Brennstoffe_Scope1[[#This Row],[Verbrauchsmenge ]]*Brechnung_Brennstoffe_Scope1[[#This Row],[Heizwert je Energieträger ]]*VLOOKUP(Brechnung_Brennstoffe_Scope1[[#This Row],[Brennstoffe (Gesamt)]],EF!$C$15:$G$21,5,FALSE)*N2O_IPCC_AR6/1000,"k.A.") -> k.A. | M40: =SUM(Scope_1!$J40:$L40) -> 0
E41: Holz | G41: Tonnen | I41: ="kWh / " & Scope_1!$G41 -> kWh / Tonnen | J41: =IF(AND(ISNUMBER(Brechnung_Brennstoffe_Scope1[[#This Row],[Verbrauchsmenge ]]),ISNUMBER(Brechnung_Brennstoffe_Scope1[[#This Row],[Heizwert je Energieträger ]])),Brechnung_Brennstoffe_Scope1[[#This Row],[Verbrauchsmenge ]]*Brechnung_Brennstoffe_Scope1[[#This Row],[Heizwert je Energieträger ]]*VLOOKUP(Brechnung_Brennstoffe_Scope1[[#This Row],[Brennstoffe (Gesamt)]],EF!$C$15:$E$21,3,FALSE)/1000,"k.A.") -> k.A. | K41: =IF(AND(ISNUMBER(Brechnung_Brennstoffe_Scope1[[#This Row],[Verbrauchsmenge ]]),ISNUMBER(Brechnung_Brennstoffe_Scope1[[#This Row],[Heizwert je Energieträger ]])),Brechnung_Brennstoffe_Scope1[[#This Row],[Verbrauchsmenge ]]*Brechnung_Brennstoffe_Scope1[[#This Row],[Heizwert je Energieträger ]]*VLOOKUP(Brechnung_Brennstoffe_Scope1[[#This Row],[Brennstoffe (Gesamt)]],EF!$C$15:$F$21,4,FALSE)*Methan_IPCC_AR6/1000,"k.A.") -> k.A. | L41: =IF(AND(ISNUMBER(Brechnung_Brennstoffe_Scope1[[#This Row],[Verbrauchsmenge ]]),ISNUMBER(Brechnung_Brennstoffe_Scope1[[#This Row],[Heizwert je Energieträger ]])),Brechnung_Brennstoffe_Scope1[[#This Row],[Verbrauchsmenge ]]*Brechnung_Brennstoffe_Scope1[[#This Row],[Heizwert je Energieträger ]]*VLOOKUP(Brechnung_Brennstoffe_Scope1[[#This Row],[Brennstoffe (Gesamt)]],EF!$C$15:$G$21,5,FALSE)*N2O_IPCC_AR6/1000,"k.A.") -> k.A. | M41: =SUM(Scope_1!$J41:$L41) -> 0
E42: Braunkohle | G42: Tonnen | I42: ="kWh / " & Scope_1!$G42 -> kWh / Tonnen | J42: =IF(AND(ISNUMBER(Brechnung_Brennstoffe_Scope1[[#This Row],[Verbrauchsmenge ]]),ISNUMBER(Brechnung_Brennstoffe_Scope1[[#This Row],[Heizwert je Energieträger ]])),Brechnung_Brennstoffe_Scope1[[#This Row],[Verbrauchsmenge ]]*Brechnung_Brennstoffe_Scope1[[#This Row],[Heizwert je Energieträger ]]*VLOOKUP(Brechnung_Brennstoffe_Scope1[[#This Row],[Brennstoffe (Gesamt)]],EF!$C$15:$E$21,3,FALSE)/1000,"k.A.") -> k.A. | K42: =IF(AND(ISNUMBER(Brechnung_Brennstoffe_Scope1[[#This Row],[Verbrauchsmenge ]]),ISNUMBER(Brechnung_Brennstoffe_Scope1[[#This Row],[Heizwert je Energieträger ]])),Brechnung_Brennstoffe_Scope1[[#This Row],[Verbrauchsmenge ]]*Brechnung_Brennstoffe_Scope1[[#This Row],[Heizwert je Energieträger ]]*VLOOKUP(Brechnung_Brennstoffe_Scope1[[#This Row],[Brennstoffe (Gesamt)]],EF!$C$15:$F$21,4,FALSE)*Methan_IPCC_AR6/1000,"k.A.") -> k.A. | L42: =IF(AND(ISNUMBER(Brechnung_Brennstoffe_Scope1[[#This Row],[Verbrauchsmenge ]]),ISNUMBER(Brechnung_Brennstoffe_Scope1[[#This Row],[Heizwert je Energieträger ]])),Brechnung_Brennstoffe_Scope1[[#This Row],[Verbrauchsmenge ]]*Brechnung_Brennstoffe_Scope1[[#This Row],[Heizwert je Energieträger ]]*VLOOKUP(Brechnung_Brennstoffe_Scope1[[#This Row],[Brennstoffe (Gesamt)]],EF!$C$15:$G$21,5,FALSE)*N2O_IPCC_AR6/1000,"k.A.") -> k.A. | M42: =SUM(Scope_1!$J42:$L42) -> 0
E43: Steinkohle | G43: Tonnen | I43: ="kWh / " & Scope_1!$G43 -> kWh / Tonnen | J43: =IF(AND(ISNUMBER(Brechnung_Brennstoffe_Scope1[[#This Row],[Verbrauchsmenge ]]),ISNUMBER(Brechnung_Brennstoffe_Scope1[[#This Row],[Heizwert je Energieträger ]])),Brechnung_Brennstoffe_Scope1[[#This Row],[Verbrauchsmenge ]]*Brechnung_Brennstoffe_Scope1[[#This Row],[Heizwert je Energieträger ]]*VLOOKUP(Brechnung_Brennstoffe_Scope1[[#This Row],[Brennstoffe (Gesamt)]],EF!$C$15:$E$21,3,FALSE)/1000,"k.A.") -> k.A. | K43: =IF(AND(ISNUMBER(Brechnung_Brennstoffe_Scope1[[#This Row],[Verbrauchsmenge ]]),ISNUMBER(Brechnung_Brennstoffe_Scope1[[#This Row],[Heizwert je Energieträger ]])),Brechnung_Brennstoffe_Scope1[[#This Row],[Verbrauchsmenge ]]*Brechnung_Brennstoffe_Scope1[[#This Row],[Heizwert je Energieträger ]]*VLOOKUP(Brechnung_Brennstoffe_Scope1[[#This Row],[Brennstoffe (Gesamt)]],EF!$C$15:$F$21,4,FALSE)*Methan_IPCC_AR6/1000,"k.A.") -> k.A. | L43: =IF(AND(ISNUMBER(Brechnung_Brennstoffe_Scope1[[#This Row],[Verbrauchsmenge ]]),ISNUMBER(Brechnung_Brennstoffe_Scope1[[#This Row],[Heizwert je Energieträger ]])),Brechnung_Brennstoffe_Scope1[[#This Row],[Verbrauchsmenge ]]*Brechnung_Brennstoffe_Scope1[[#This Row],[Heizwert je Energieträger ]]*VLOOKUP(Brechnung_Brennstoffe_Scope1[[#This Row],[Brennstoffe (Gesamt)]],EF!$C$15:$G$21,5,FALSE)*N2O_IPCC_AR6/1000,"k.A.") -> k.A. | M43: =SUM(Scope_1!$J43:$L43) -> 0
E44: Biogas/Biomethan (Energiepflanzen, Gülle, Abfall) | G44: m³ | I44: ="kWh / " & Scope_1!$G44 -> kWh / m³ | J44: =IF(AND(ISNUMBER(Brechnung_Brennstoffe_Scope1[[#This Row],[Verbrauchsmenge ]]),ISNUMBER(Brechnung_Brennstoffe_Scope1[[#This Row],[Heizwert je Energieträger ]])),Brechnung_Brennstoffe_Scope1[[#This Row],[Verbrauchsmenge ]]*Brechnung_Brennstoffe_Scope1[[#This Row],[Heizwert je Energieträger ]]*VLOOKUP(Brechnung_Brennstoffe_Scope1[[#This Row],[Brennstoffe (Gesamt)]],EF!$C$15:$E$21,3,FALSE)/1000,"k.A.") -> k.A. | K44: =IF(AND(ISNUMBER(Brechnung_Brennstoffe_Scope1[[#This Row],[Verbrauchsmenge ]]),ISNUMBER(Brechnung_Brennstoffe_Scope1[[#This Row],[Heizwert je Energieträger ]])),Brechnung_Brennstoffe_Scope1[[#This Row],[Verbrauchsmenge ]]*Brechnung_Brennstoffe_Scope1[[#This Row],[Heizwert je Energieträger ]]*VLOOKUP(Brechnung_Brennstoffe_Scope1[[#This Row],[Brennstoffe (Gesamt)]],EF!$C$15:$F$21,4,FALSE)*Methan_IPCC_AR6/1000,"k.A.") -> k.A. | L44: =IF(AND(ISNUMBER(Brechnung_Brennstoffe_Scope1[[#This Row],[Verbrauchsmenge ]]),ISNUMBER(Brechnung_Brennstoffe_Scope1[[#This Row],[Heizwert je Energieträger ]])),Brechnung_Brennstoffe_Scope1[[#This Row],[Verbrauchsmenge ]]*Brechnung_Brennstoffe_Scope1[[#This Row],[Heizwert je Energieträger ]]*VLOOKUP(Brechnung_Brennstoffe_Scope1[[#This Row],[Brennstoffe (Gesamt)]],EF!$C$15:$G$21,5,FALSE)*N2O_IPCC_AR6/1000,"k.A.") -> k.A. | M44: =SUM(Scope_1!$J44:$L44) -> 0
E45: Flüssige Biomasse (z.B. Pflanzenöl) | G45: Liter | I45: ="kWh / " & Scope_1!$G45 -> kWh / Liter | J45: =IF(AND(ISNUMBER(Brechnung_Brennstoffe_Scope1[[#This Row],[Verbrauchsmenge ]]),ISNUMBER(Brechnung_Brennstoffe_Scope1[[#This Row],[Heizwert je Energieträger ]])),Brechnung_Brennstoffe_Scope1[[#This Row],[Verbrauchsmenge ]]*Brechnung_Brennstoffe_Scope1[[#This Row],[Heizwert je Energieträger ]]*VLOOKUP(Brechnung_Brennstoffe_Scope1[[#This Row],[Brennstoffe (Gesamt)]],EF!$C$15:$E$21,3,FALSE)/1000,"k.A.") -> k.A. | K45: =IF(AND(ISNUMBER(Brechnung_Brennstoffe_Scope1[[#This Row],[Verbrauchsmenge ]]),ISNUMBER(Brechnung_Brennstoffe_Scope1[[#This Row],[Heizwert je Energieträger ]])),Brechnung_Brennstoffe_Scope1[[#This Row],[Verbrauchsmenge ]]*Brechnung_Brennstoffe_Scope1[[#This Row],[Heizwert je Energieträger ]]*VLOOKUP(Brechnung_Brennstoffe_Scope1[[#This Row],[Brennstoffe (Gesamt)]],EF!$C$15:$F$21,4,FALSE)*Methan_IPCC_AR6/1000,"k.A.") -> k.A. | L45: =IF(AND(ISNUMBER(Brechnung_Brennstoffe_Scope1[[#This Row],[Verbrauchsmenge ]]),ISNUMBER(Brechnung_Brennstoffe_Scope1[[#This Row],[Heizwert je Energieträger ]])),Brechnung_Brennstoffe_Scope1[[#This Row],[Verbrauchsmenge ]]*Brechnung_Brennstoffe_Scope1[[#This Row],[Heizwert je Energieträger ]]*VLOOKUP(Brechnung_Brennstoffe_Scope1[[#This Row],[Brennstoffe (Gesamt)]],EF!$C$15:$G$21,5,FALSE)*N2O_IPCC_AR6/1000,"k.A.") -> k.A. | M45: =SUM(Scope_1!$J45:$L45) -> 0
E46: Summe | J46: =SUBTOTAL(109,Brechnung_Brennstoffe_Scope1[] Brechnung_Brennstoffe_Scope1[ CO2 in t CO2e / Jahr] ) -> 0 | K46: =SUBTOTAL(109,Brechnung_Brennstoffe_Scope1[ CH4 in t CO2e / Jahr]) -> 0 | L46: =SUBTOTAL(109,Brechnung_Brennstoffe_Scope1[ N2O in t CO2e / Jahr ]) -> 0 | M46: =SUBTOTAL(109,Brechnung_Brennstoffe_Scope1[Ergebnis (t CO2e / Jahr)]) -> 0
B50: Scope 1.2 - Direkte Emissionen aus Verbrennungsprozessen mobiler Anlagen
C51: Erfassung aller direkten Emissionen des Fahrzeugbetriebes vom eigenen Fuhrpark
E52: Kraftstoffe | F52: Verbrauchsmenge | G52: Einheit / Jahr | H52: Emissionsfaktor | I52: Ergebnis (t CO2e / Jahr)
E53: Benzin | G53: Liter / Jahr | H53: =VLOOKUP(E53,EF!$C$26:$D$35,2,FALSE) -> 2.42 | I53: =IFERROR(Tabelle20[[#This Row],[Verbrauchsmenge ]]*Tabelle20[[#This Row],[Emissionsfaktor]]/1000,"k.A.") -> 0
E54: Benzin E5 (5 Vol.-% Bioethanol) | G54: Liter / Jahr | H54: =VLOOKUP(E54,EF!$C$26:$D$35,2,FALSE) -> 2.3 | I54: =IFERROR(Tabelle20[[#This Row],[Verbrauchsmenge ]]*Tabelle20[[#This Row],[Emissionsfaktor]]/1000,"k.A.") -> 0
E55: Benzin E10 (10 Vol.-% Bioethanol) | G55: Liter / Jahr | H55: =VLOOKUP(E55,EF!$C$26:$D$35,2,FALSE) -> 2.18 | I55: =IFERROR(Tabelle20[[#This Row],[Verbrauchsmenge ]]*Tabelle20[[#This Row],[Emissionsfaktor]]/1000,"k.A.") -> 0
E56: Diesel | G56: Liter / Jahr | H56: =VLOOKUP(E56,EF!$C$26:$D$35,2,FALSE) -> 2.67 | I56: =IFERROR(Tabelle20[[#This Row],[Verbrauchsmenge ]]*Tabelle20[[#This Row],[Emissionsfaktor]]/1000,"k.A.") -> 0
E57: Diesel D7 (7 Vol.-% Biodiesel) | G57: Liter / Jahr | H57: =VLOOKUP(E57,EF!$C$26:$D$35,2,FALSE) -> 2.48 | I57: =IFERROR(Tabelle20[[#This Row],[Verbrauchsmenge ]]*Tabelle20[[#This Row],[Emissionsfaktor]]/1000,"k.A.") -> 0
E58: Biodiesel | G58: Liter / Jahr | H58: =VLOOKUP(E58,EF!$C$26:$D$35,2,FALSE) -> 0 | I58: =IFERROR(Tabelle20[[#This Row],[Verbrauchsmenge ]]*Tabelle20[[#This Row],[Emissionsfaktor]]/1000,"k.A.") -> 0
E59: Autogas (LPG) | G59: Liter / Jahr | H59: =VLOOKUP(E59,EF!$C$26:$D$35,2,FALSE) -> 1.7 | I59: =IFERROR(Tabelle20[[#This Row],[Verbrauchsmenge ]]*Tabelle20[[#This Row],[Emissionsfaktor]]/1000,"k.A.") -> 0
E60: Erdgas (CNG) | G60: kg / Jahr* | H60: =VLOOKUP(E60,EF!$C$26:$D$35,2,FALSE) -> 2.68 | I60: =IFERROR(Tabelle20[[#This Row],[Verbrauchsmenge ]]*Tabelle20[[#This Row],[Emissionsfaktor]]/1000,"k.A.") -> 0
E61: Flugbenzin | G61: Liter / Jahr | H61: =VLOOKUP(E61,EF!$C$26:$D$35,2,FALSE) -> 2.5 | I61: =IFERROR(Tabelle20[[#This Row],[Verbrauchsmenge ]]*Tabelle20[[#This Row],[Emissionsfaktor]]/1000,"k.A.") -> 0
E62: Kerosin (Jet A1 und Jet A) | G62: Liter / Jahr | H62: =VLOOKUP(E62,EF!$C$26:$D$35,2,FALSE) -> 2.54 | I62: =IFERROR(Tabelle20[[#This Row],[Verbrauchsmenge ]]*Tabelle20[[#This Row],[Emissionsfaktor]]/1000,"k.A.") -> 0
E63: Summe | I63: =SUBTOTAL(109,Tabelle20[Ergebnis (t CO2e / Jahr)]) -> 0
E64: *Für CNG gibt es nur den Emissionsfaktor bezogen auf kg
B68: Scope 1.3 - Direkte Emissionen aus Kältemittelverlusten
C69: Scope 1.3 umfasst die direkten Emissionen von F-Gasen (halogenierte Kohlenwasserstoffe), welche in die Atmosphäre emittiert werden.
C70: Die Emissonsfaktoren stehen für eine begrenzte Anzahl von Kältemitteln in der Drop-down-Liste zur Verfügung.
D71: i | E71: Nachgefüllte Kältemittel | F71: Menge (kg / Jahr) | G71: Emissionsfaktor (kg CO2e / kg ) | H71: Ergebnis (t CO2e / Jahr)
E72: HFC-23 (R-23) | G72: =IFERROR(VLOOKUP(E72,EF!$C$41:$D$138,2,FALSE),"Kältemittel auswählen") -> 14600 | H72: =IFERROR(Berechnung_KM_Scope1[[#This Row],[Menge (kg / Jahr)]]*Berechnung_KM_Scope1[[#This Row],[Emissionsfaktor (kg CO2e / kg )]]/1000,"k.A") -> 0
E73: HFC-134a (R-134a) | G73: =IFERROR(VLOOKUP(E73,EF!$C$41:$D$138,2,FALSE),"Kältemittel auswählen") -> 1530 | H73: =IFERROR(Berechnung_KM_Scope1[[#This Row],[Menge (kg / Jahr)]]*Berechnung_KM_Scope1[[#This Row],[Emissionsfaktor (kg CO2e / kg )]]/1000,"k.A") -> 0
E74: R-404A | G74: =IFERROR(VLOOKUP(E74,EF!$C$41:$D$138,2,FALSE),"Kältemittel auswählen") -> 4728 | H74: =IFERROR(Berechnung_KM_Scope1[[#This Row],[Menge (kg / Jahr)]]*Berechnung_KM_Scope1[[#This Row],[Emissionsfaktor (kg CO2e / kg )]]/1000,"k.A") -> 0
E75: R-407C | G75: =IFERROR(VLOOKUP(E75,EF!$C$41:$D$138,2,FALSE),"Kältemittel auswählen") -> 1907.93 | H75: =IFERROR(Berechnung_KM_Scope1[[#This Row],[Menge (kg / Jahr)]]*Berechnung_KM_Scope1[[#This Row],[Emissionsfaktor (kg CO2e / kg )]]/1000,"k.A") -> 0
E76: R-410A | G76: =IFERROR(VLOOKUP(E76,EF!$C$41:$D$138,2,FALSE),"Kältemittel auswählen") -> 2255.5 | H76: =IFERROR(Berechnung_KM_Scope1[[#This Row],[Menge (kg / Jahr)]]*Berechnung_KM_Scope1[[#This Row],[Emissionsfaktor (kg CO2e / kg )]]/1000,"k.A") -> 0
E77: R-507 | G77: =IFERROR(VLOOKUP(E77,EF!$C$41:$D$138,2,FALSE),"Kältemittel auswählen") -> 4775 | H77: =IFERROR(Berechnung_KM_Scope1[[#This Row],[Menge (kg / Jahr)]]*Berechnung_KM_Scope1[[#This Row],[Emissionsfaktor (kg CO2e / kg )]]/1000,"k.A") -> 0
E78: Summe | F78: =SUBTOTAL(109,Berechnung_KM_Scope1[Menge (kg / Jahr)]) -> 0 | H78: =SUBTOTAL(109,Berechnung_KM_Scope1[Ergebnis (t CO2e / Jahr)]) -> 0
B82: Scope 1.4 - Direkte Emissionen aus medizinischen & technischen flüchtigen Gasen
C83: Die medizinischen & technischen flüchtigen Gase umfassen Anästhesiegase und auch Analysegase.
C84: Scope 1 umfasst die direkten treibhausgasrelevanten Emissionen, die während der Nutzung in Ihrem definierten Bilanzjahr (s. Blatt „Eckdaten“) in die Atmosphäre austreten.
C85: Das Unterregister "Med./Tech. Gase (S3)" in Blatt "Scope_3" beinhaltet alle Gase, die im jeweiligen Bilanzjahr eingekauft wurden und deren indirekte Emissionen in der Produktionsphase (Vorkette) ermittelt wurden.
C86: Die Verbrauchmenge und die Anschaffungsmenge sind nicht zwangsläufig im jeweiligen Bilanzjahr identisch.
C87: Wir empfehlen, die Verbrauchmenge hier für Scope 1 zu erfassen. Für Scope 3 sollte die Menge der eingekauften Gase zugrunde gelegt werden.
C88: Falls die Verbrauchmenge schwierig zu erfassen ist, können die hier für Scope 1 eingekaufte Menge zugrunde gelegt werden.
C89: Wichtig dabei ist, dass die Bilanzen über die einzelnen Jahre hinweg auf der Grundlage konsistenter Methoden erstellt werden.
E90: Anästhesiegase | F90: Verbrauchsmenge (kg / Jahr) | G90: Eingabe der Leckagerate der Gase in die Atmosphäre in % | H90: Emissionsfaktor (kg CO2e / kg ) | I90: Ergebnis (t CO2e / Jahr)
D91: i | E91: Lachgas (Distickstoffmonoxid) | G91: 1 | H91: =IFERROR(VLOOKUP(E91,EF_Scope1_Med_Tech_Gase[[Gase]:[EF (IPCC2021) ]],2,FALSE),"Bitte geben Sie den individuellen EF ein") -> 273 | I91: =IFERROR(MedGase_Scope1[[#This Row],[Verbrauchsmenge (kg / Jahr)]]*MedGase_Scope1[[#This Row],[Emissionsfaktor (kg CO2e / kg )]]/1000*MedGase_Scope1[[#This Row],[Eingabe der Leckagerate der Gase in die Atmosphäre in %]],"k.A.") -> 0
E92: Sevofluran | G92: 1 | H92: =IFERROR(VLOOKUP(E92,EF_Scope1_Med_Tech_Gase[[Gase]:[EF (IPCC2021) ]],2,FALSE),"Bitte geben Sie den individuellen EF ein") -> 195 | I92: =IFERROR(MedGase_Scope1[[#This Row],[Verbrauchsmenge (kg / Jahr)]]*MedGase_Scope1[[#This Row],[Emissionsfaktor (kg CO2e / kg )]]/1000*MedGase_Scope1[[#This Row],[Eingabe der Leckagerate der Gase in die Atmosphäre in %]],"k.A.") -> 0
E93: Isofluran | G93: 1 | H93: =IFERROR(VLOOKUP(E93,EF_Scope1_Med_Tech_Gase[[Gase]:[EF (IPCC2021) ]],2,FALSE),"Bitte geben Sie den individuellen EF ein") -> 539 | I93: =IFERROR(MedGase_Scope1[[#This Row],[Verbrauchsmenge (kg / Jahr)]]*MedGase_Scope1[[#This Row],[Emissionsfaktor (kg CO2e / kg )]]/1000*MedGase_Scope1[[#This Row],[Eingabe der Leckagerate der Gase in die Atmosphäre in %]],"k.A.") -> 0
E94: Desfluran | G94: 1 | H94: =IFERROR(VLOOKUP(E94,EF_Scope1_Med_Tech_Gase[[Gase]:[EF (IPCC2021) ]],2,FALSE),"Bitte geben Sie den individuellen EF ein") -> 2590 | I94: =IFERROR(MedGase_Scope1[[#This Row],[Verbrauchsmenge (kg / Jahr)]]*MedGase_Scope1[[#This Row],[Emissionsfaktor (kg CO2e / kg )]]/1000*MedGase_Scope1[[#This Row],[Eingabe der Leckagerate der Gase in die Atmosphäre in %]],"k.A.") -> 0
E95: Summe | F95: =SUBTOTAL(109,MedGase_Scope1[Verbrauchsmenge (kg / Jahr)]) -> 0 | I95: =SUBTOTAL(109,MedGase_Scope1[Ergebnis (t CO2e / Jahr)]) -> 0
E97: Analysegase | F97: Verbrauchsmenge (kg / Jahr) | G97: Eingabe der Leckagerate der Gase in die Atmosphäre in % | H97: Emissionsfaktor (kg CO2e / kg ) | I97: Ergebnis (t CO2e / Jahr)
E98: Methan | G98: 1 | H98: =IFERROR(VLOOKUP(E98,EF_Scope1_Med_Tech_Gase[[Gase]:[EF (IPCC2021) ]],2,FALSE),"Bitte geben Sie den individuellen EF ein") -> 27.9 | I98: =IFERROR(MedGase_Scope14[[#This Row],[Verbrauchsmenge (kg / Jahr)]]*MedGase_Scope14[[#This Row],[Emissionsfaktor (kg CO2e / kg )]]/1000*MedGase_Scope14[[#This Row],[Eingabe der Leckagerate der Gase in die Atmosphäre in %]],"k.A.") -> 0
E99: Kohlenstoffdioxid | G99: 1 | H99: =IFERROR(VLOOKUP(E99,EF_Scope1_Med_Tech_Gase[[Gase]:[EF (IPCC2021) ]],2,FALSE),"Bitte geben Sie den individuellen EF ein") -> 1 | I99: =IFERROR(MedGase_Scope14[[#This Row],[Verbrauchsmenge (kg / Jahr)]]*MedGase_Scope14[[#This Row],[Emissionsfaktor (kg CO2e / kg )]]/1000*MedGase_Scope14[[#This Row],[Eingabe der Leckagerate der Gase in die Atmosphäre in %]],"k.A.") -> 0
E100: Propan | G100: 1 | H100: =IFERROR(VLOOKUP(E100,EF_Scope1_Med_Tech_Gase[[Gase]:[EF (IPCC2021) ]],2,FALSE),"Bitte geben Sie den individuellen EF ein") -> 0.02 | I100: =IFERROR(MedGase_Scope14[[#This Row],[Verbrauchsmenge (kg / Jahr)]]*MedGase_Scope14[[#This Row],[Emissionsfaktor (kg CO2e / kg )]]/1000*MedGase_Scope14[[#This Row],[Eingabe der Leckagerate der Gase in die Atmosphäre in %]],"k.A.") -> 0
E101: Ethan | G101: 1 | H101: =IFERROR(VLOOKUP(E101,EF_Scope1_Med_Tech_Gase[[Gase]:[EF (IPCC2021) ]],2,FALSE),"Bitte geben Sie den individuellen EF ein") -> 0.437 | I101: =IFERROR(MedGase_Scope14[[#This Row],[Verbrauchsmenge (kg / Jahr)]]*MedGase_Scope14[[#This Row],[Emissionsfaktor (kg CO2e / kg )]]/1000*MedGase_Scope14[[#This Row],[Eingabe der Leckagerate der Gase in die Atmosphäre in %]],"k.A.") -> 0
E102: Butan | G102: 1 | H102: =IFERROR(VLOOKUP(E102,EF_Scope1_Med_Tech_Gase[[Gase]:[EF (IPCC2021) ]],2,FALSE),"Bitte geben Sie den individuellen EF ein") -> 0.006 | I102: =IFERROR(MedGase_Scope14[[#This Row],[Verbrauchsmenge (kg / Jahr)]]*MedGase_Scope14[[#This Row],[Emissionsfaktor (kg CO2e / kg )]]/1000*MedGase_Scope14[[#This Row],[Eingabe der Leckagerate der Gase in die Atmosphäre in %]],"k.A.") -> 0
E103: Summe | F103: =SUBTOTAL(109,MedGase_Scope14[Verbrauchsmenge (kg / Jahr)]) -> 0 | I103: =SUBTOTAL(109,MedGase_Scope14[Ergebnis (t CO2e / Jahr)]) -> 0

Sheet Scope_2
B6: Scope 2 - Indirekte Emissionen (ortsbezogen) | D6: Summe : | E6: =Result_Scope2_Ortsb_Mix -> 0 | F6: [t CO2e]
B7: Scope 2 - Indirekte Emissionen (marktbasiert) | D7: Summe : | E7: =IF(Auswahl_Scope2_Spezifisch_Option="","Auswahl der Option; s.Zeile D41",IF(Auswahl_Scope2_Spezifisch_Option="Option 1",Result_Scope2_Marktb_spezifisch_Option1,Result_Scope2_Marktb_spezifisch_Option2)) -> Auswahl der Option; s.Zeile D41 | F7: [t CO2e]
B9: Scope 2: Indirekte Emissionen aus gekauftem Strom, Wärme/Kälte, Dampf
B10: Scope 2 quantifiziert GHG-Emissionen, die bei der Erzeugung von eingekauften Energieträgern (Strom, Dampf, Wärme oder Kälte) entstehen.
B11: Scope 2 umfasst NICHT die sonstigen vorgelagerten Emissionen im Zusammenhang mit der Produktion und Transporten von Energieträgern, die von externen Erzeugern eingekauft werden. Diese werden Scope 3 (s. Scope 3.3 im Blatt "Scope 3") zugerechnet.
B12: Vorgelagerte Emissionen durch Verluste während der Übertragung und der Verteilung des eingekauften Stroms werden ebenfalls Scope 3 zugerechnet.
B14: Grundsätzlich bestehen gemäß Guidance-Dokument zu Scope 2 des GHG-Protocols zwei mögliche Ansätze:
B15: •Ortsbezogener Ansatz:
B16: Quantifizierung der Scope-2-Emissionen basierend auf den GHG-Emissionen des Durchschnittsmix der Stromerzeugung im jeweiligen Stromnetz.
B17: •Marktbasierter Ansatz:
B18: Quantifizierung der Scope-2-Emissionen basierend auf den GHG-Emissionen die im Zuge der Stromerzugung beim Energierzeuger entstehen, bei welchem der Strom gekauft wird.
B20: Anzumerken ist, dass Dampf in diesem Tool nur nach dem ortsbezogenen Ansatz bilanziert wird. Es wurde also nicht zwischen otsbezogenem und marktbasiertem Ansatz unterscheiden.
B22: Bitte geben Sie den externen Energiebezug (eingekauft) in MWh ein.
B23: Scope 2 | C23: Menge (MWh / Jahr)
B24: Strommix
B25: Fernwärme-Mix
B26: Dampf
B27: Summe | C27: =SUBTOTAL(109,Scope2_Mix_Ort[Menge (MWh / Jahr)]) -> 0
B29: Ansatz 1: Ortsbezogener Ansatz
B30: Scope 2 | C30: Menge (MWh / Jahr) | D30: CO2 in t CO2e / Jahr | E30: CH4 in t CO2e / Jahr | F30: N2O in t CO2e / Jahr | G30: Ergebnis (t CO2e / Jahr)
B31: Strommix | C31: =IF(ISNUMBER(C24),C24,"k.A.") -> k.A. | D31: =IFERROR(Scope2_Mix_Ort[[#This Row],[Menge (MWh / Jahr)]]*VLOOKUP($B31,EF_Scope2_Ortsbezogen[[Energie]:[THG-Emissionsfaktor (t CO2e/ MWh)]],2,FALSE),"k.A.") -> k.A. | E31: =IFERROR(Scope2_Mix_Ort[[#This Row],[Menge (MWh / Jahr)]]*VLOOKUP($B31,EF_Scope2_Ortsbezogen[[Energie]:[THG-Emissionsfaktor (t CO2e/ MWh)]],3,FALSE)*Methan_IPCC_AR6,"k.A.") -> k.A. | F31: =IFERROR(Scope2_Mix_Ort[[#This Row],[Menge (MWh / Jahr)]]*VLOOKUP($B31,EF_Scope2_Ortsbezogen[[Energie]:[THG-Emissionsfaktor (t CO2e/ MWh)]],4,FALSE)*N2O_IPCC_AR6,"k.A.") -> k.A. | G31: =IFERROR(SUM(D31:F31),"k.A.") -> 0
B32: Fernwärme-Mix | C32: =IF(ISNUMBER(C25),C25,"k.A.") -> k.A. | D32: =IFERROR(Scope2_Mix_Ort[[#This Row],[Menge (MWh / Jahr)]]*VLOOKUP($B32,EF_Scope2_Ortsbezogen[[Energie]:[THG-Emissionsfaktor (t CO2e/ MWh)]],2,FALSE),"k.A.") -> k.A. | E32: =IFERROR(Scope2_Mix_Ort[[#This Row],[Menge (MWh / Jahr)]]*VLOOKUP($B32,EF_Scope2_Ortsbezogen[[Energie]:[THG-Emissionsfaktor (t CO2e/ MWh)]],3,FALSE)*Methan_IPCC_AR6,"k.A.") -> k.A. | F32: =IFERROR(Scope2_Mix_Ort[[#This Row],[Menge (MWh / Jahr)]]*VLOOKUP($B32,EF_Scope2_Ortsbezogen[[Energie]:[THG-Emissionsfaktor (t CO2e/ MWh)]],4,FALSE)*N2O_IPCC_AR6,"k.A.") -> k.A. | G32: =IFERROR(SUM(D32:F32),"k.A.") -> 0
B33: Dampf | C33: k.A. | D33: =IFERROR(Scope2_Mix_Ort[[#This Row],[Menge (MWh / Jahr)]]*VLOOKUP($B33,EF_Scope2_Ortsbezogen[[Energie]:[THG-Emissionsfaktor (t CO2e/ MWh)]],2,FALSE),"k.A.") -> k.A. | E33: =IFERROR(Scope2_Mix_Ort[[#This Row],[Menge (MWh / Jahr)]]*VLOOKUP($B33,EF_Scope2_Ortsbezogen[[Energie]:[THG-Emissionsfaktor (t CO2e/ MWh)]],3,FALSE)*Methan_IPCC_AR6,"k.A.") -> k.A. | F33: =IFERROR(Scope2_Mix_Ort[[#This Row],[Menge (MWh / Jahr)]]*VLOOKUP($B33,EF_Scope2_Ortsbezogen[[Energie]:[THG-Emissionsfaktor (t CO2e/ MWh)]],4,FALSE)*N2O_IPCC_AR6,"k.A.") -> k.A. | G33: 0
B34: Summe | C34: =SUBTOTAL(109,Scope2_Mix_Ort[Menge (MWh / Jahr)]) -> 0 | D34: =SUBTOTAL(109,Scope2_Mix_Ort[ CO2 in t CO2e / Jahr]) -> 0 | E34: =SUBTOTAL(109,Scope2_Mix_Ort[ CH4 in t CO2e / Jahr]) -> 0 | F34: =SUBTOTAL(109,Scope2_Mix_Ort[ N2O in t CO2e / Jahr]) -> 0 | G34: =SUBTOTAL(109,Scope2_Mix_Ort[Ergebnis (t CO2e / Jahr)]) -> 0
B37: Ansatz 2: Marktbasierter Ansatz
B38: Es gibt zwei Optionen, wie die indirekten GHG-Emissionen aus der Erzeugung von erworbenem Strom, Dampf, Wärme oder Kälte berechnet werden können.
B39: Option 1: Emissionsfaktoren für jeweils CO2, CH4 und N2O können von Lieferanten ermittelt werden. Achten Sie darauf, dass die Produktion der Energieträger (z.B. Erdgas, Öl) zu Scope 3 gehört.
B40: Option 2: Die Lieferanten können nur die Aufteilung in % nach Energieträgern abliefern.
B41: Auswahl der Berechnungsmethode
B42: Option 1:
B43: Schritt 1: Bitte fragen Sie ihre Lieferanten nach Emissionsfaktoren und tragen sie ein.
B44: Scope 2 | C44: Emissionsfaktor: kg CO2 / kWh | D44: Emissionsfaktor: kg CH4 / kWh | E44: Emissionsfaktor: kg N2O / kWh
B45: Strommix
B46: Fernwärme-Mix
B47: Dampf
B49: Schritt 2: Automatische Ermittlung der GHG-Ergebnisse
B50: Scope 2 | C50: Menge (MWh / Jahr) | D50: CO2 in t CO2e / Jahr | E50: CH4 in t CO2e / Jahr | F50: N2O in t CO2e / Jahr | G50: Ergebnis (t CO2e / Jahr)
B51: Strommix | C51: =C24 -> 0 | D51: =IFERROR(Scope2_Marktbasiert14[[#This Row],[Menge (MWh / Jahr)]]*(VLOOKUP(Scope2_Marktbasiert14[[#This Row],[Scope 2]],Scope2_EF_Marktbasiert[[Scope 2]:[Emissionsfaktor: kg CO2 / kWh]],2,FALSE)),"k.A.") -> 0 | E51: =IFERROR(Scope2_Marktbasiert14[[#This Row],[Menge (MWh / Jahr)]]*(VLOOKUP(Scope2_Marktbasiert14[[#This Row],[Scope 2]],Scope2_EF_Marktbasiert[[Scope 2]:[Emissionsfaktor: kg CH4 / kWh]],3,FALSE))*Methan_IPCC_AR6,"k.A.") -> 0 | F51: =IFERROR(Scope2_Marktbasiert14[[#This Row],[Menge (MWh / Jahr)]]*(VLOOKUP(Scope2_Marktbasiert14[[#This Row],[Scope 2]],Scope2_EF_Marktbasiert[],4,FALSE))*N2O_IPCC_AR6,"k.A.") -> 0 | G51: =IFERROR(SUM(Scope2_Marktbasiert14[[#This Row],[ CO2 in t CO2e / Jahr]:[ N2O in t CO2e / Jahr]]),"k.A.") -> 0
B52: Fernwärme-Mix | C52: =C25 -> 0 | D52: =IFERROR(Scope2_Marktbasiert14[[#This Row],[Menge (MWh / Jahr)]]*(VLOOKUP(Scope2_Marktbasiert14[[#This Row],[Scope 2]],Scope2_EF_Marktbasiert[[Scope 2]:[Emissionsfaktor: kg CO2 / kWh]],2,FALSE)),"k.A.") -> 0 | E52: =IFERROR(Scope2_Marktbasiert14[[#This Row],[Menge (MWh / Jahr)]]*(VLOOKUP(Scope2_Marktbasiert14[[#This Row],[Scope 2]],Scope2_EF_Marktbasiert[[Scope 2]:[Emissionsfaktor: kg CH4 / kWh]],3,FALSE))*Methan_IPCC_AR6,"k.A.") -> 0 | F52: =IFERROR(Scope2_Marktbasiert14[[#This Row],[Menge (MWh / Jahr)]]*(VLOOKUP(Scope2_Marktbasiert14[[#This Row],[Scope 2]],Scope2_EF_Marktbasiert[],4,FALSE))*N2O_IPCC_AR6,"k.A.") -> 0 | G52: =IFERROR(SUM(Scope2_Marktbasiert14[[#This Row],[ CO2 in t CO2e / Jahr]:[ N2O in t CO2e / Jahr]]),"k.A.") -> 0
B53: Dampf | C53: 0 | D53: =IFERROR(Scope2_Marktbasiert14[[#This Row],[Menge (MWh / Jahr)]]*(VLOOKUP(Scope2_Marktbasiert14[[#This Row],[Scope 2]],Scope2_EF_Marktbasiert[[Scope 2]:[Emissionsfaktor: kg CO2 / kWh]],2,FALSE)),"k.A.") -> 0 | E53: =IFERROR(Scope2_Marktbasiert14[[#This Row],[Menge (MWh / Jahr)]]*(VLOOKUP(Scope2_Marktbasiert14[[#This Row],[Scope 2]],Scope2_EF_Marktbasiert[[Scope 2]:[Emissionsfaktor: kg CH4 / kWh]],3,FALSE))*Methan_IPCC_AR6,"k.A.") -> 0 | F53: =IFERROR(Scope2_Marktbasiert14[[#This Row],[Menge (MWh / Jahr)]]*(VLOOKUP(Scope2_Marktbasiert14[[#This Row],[Scope 2]],Scope2_EF_Marktbasiert[],4,FALSE))*N2O_IPCC_AR6,"k.A.") -> 0 | G53: =IFERROR(SUM(Scope2_Marktbasiert14[[#This Row],[ CO2 in t CO2e / Jahr]:[ N2O in t CO2e / Jahr]]),"k.A.") -> 0
B54: Summe | C54: =SUBTOTAL(109,Scope2_Marktbasiert14[Menge (MWh / Jahr)]) -> 0 | D54: =SUBTOTAL(109,Scope2_Marktbasiert14[ CO2 in t CO2e / Jahr]) -> 0 | E54: =SUBTOTAL(109,Scope2_Marktbasiert14[ CH4 in t CO2e / Jahr]) -> 0 | F54: =SUBTOTAL(109,Scope2_Marktbasiert14[ N2O in t CO2e / Jahr]) -> 0 | G54: =SUBTOTAL(109,Scope2_Marktbasiert14[Ergebnis (t CO2e / Jahr)]) -> 0
B56: Option 2:
B57: • Strom_Schritt 1: Die Aufteilung der Energieträger kann von Ihrem Lieferanten erfragt werden. | E57: Strom_Schritt 2: Automatische Ermittlung der GHG-Ergebnisse
B58: Stromlieferanten können mehrere Produkte anbieten.
B59: Wichtig ist, dass Sie nach der Aufteilung des genutzten Stromproduktmix in Ihrem Stromtarif fragen.
B60: Brennstoffe für die Stromerzeugung | C60: % | E60: Brennstoffe | F60: Menge (MWh / Jahr) | G60: CO2 in t CO2e / Jahr | H60: CH4 in t CO2e / Jahr | I60: N2O in t CO2e / Jahr | J60: Ergebnis (t CO2e / Jahr)
B61: Erdgas | E61: =B61 -> Erdgas | F61: =$C$24*$C61 -> 0 | G61: =Tabelle18[[#This Row],[Menge (MWh / Jahr)]]*VLOOKUP(Tabelle18[[#This Row],[Brennstoffe]],EF_Scope2_marktbasiert_strom[[Energieträger]:[CO2 Faktor (t CO2/ MWh)]],2,FALSE) -> 0 | H61: =Tabelle18[[#This Row],[Menge (MWh / Jahr)]]*VLOOKUP(Tabelle18[[#This Row],[Brennstoffe]],EF_Scope2_marktbasiert_strom[[Energieträger]:[CH4 Faktor (t CH4/ MWh)]],3,FALSE)*Methan_IPCC_AR6 -> 0 | I61: =Tabelle18[[#This Row],[Menge (MWh / Jahr)]]*VLOOKUP(Tabelle18[[#This Row],[Brennstoffe]],EF_Scope2_marktbasiert_strom[[Energieträger]:[N2O Faktor (t N2O/ MWh)]],4,FALSE)*N2O_IPCC_AR6 -> 0 | J61: =SUM(Tabelle18[[#This Row],[ CO2 in t CO2e / Jahr]:[ N2O in t CO2e / Jahr]]) -> 0
B62: Öl | E62: Öl | F62: =$C$24*$C62 -> 0 | G62: =Tabelle18[[#This Row],[Menge (MWh / Jahr)]]*VLOOKUP(Tabelle18[[#This Row],[Brennstoffe]],EF_Scope2_marktbasiert_strom[[Energieträger]:[CO2 Faktor (t CO2/ MWh)]],2,FALSE) -> 0 | H62: =Tabelle18[[#This Row],[Menge (MWh / Jahr)]]*VLOOKUP(Tabelle18[[#This Row],[Brennstoffe]],EF_Scope2_marktbasiert_strom[[Energieträger]:[CH4 Faktor (t CH4/ MWh)]],3,FALSE)*Methan_IPCC_AR6 -> 0 | I62: =Tabelle18[[#This Row],[Menge (MWh / Jahr)]]*VLOOKUP(Tabelle18[[#This Row],[Brennstoffe]],EF_Scope2_marktbasiert_strom[[Energieträger]:[N2O Faktor (t N2O/ MWh)]],4,FALSE)*N2O_IPCC_AR6 -> 0 | J62: =SUM(Tabelle18[[#This Row],[ CO2 in t CO2e / Jahr]:[ N2O in t CO2e / Jahr]]) -> 0
B63: Braunkohle | E63: Braunkohle | F63: =$C$24*$C63 -> 0 | G63: =Tabelle18[[#This Row],[Menge (MWh / Jahr)]]*VLOOKUP(Tabelle18[[#This Row],[Brennstoffe]],EF_Scope2_marktbasiert_strom[[Energieträger]:[CO2 Faktor (t CO2/ MWh)]],2,FALSE) -> 0 | H63: =Tabelle18[[#This Row],[Menge (MWh / Jahr)]]*VLOOKUP(Tabelle18[[#This Row],[Brennstoffe]],EF_Scope2_marktbasiert_strom[[Energieträger]:[CH4 Faktor (t CH4/ MWh)]],3,FALSE)*Methan_IPCC_AR6 -> 0 | I63: =Tabelle18[[#This Row],[Menge (MWh / Jahr)]]*VLOOKUP(Tabelle18[[#This Row],[Brennstoffe]],EF_Scope2_marktbasiert_strom[[Energieträger]:[N2O Faktor (t N2O/ MWh)]],4,FALSE)*N2O_IPCC_AR6 -> 0 | J63: =SUM(Tabelle18[[#This Row],[ CO2 in t CO2e / Jahr]:[ N2O in t CO2e / Jahr]]) -> 0
B64: Steinkohle | E64: Steinkohle | F64: 0 | G64: =Tabelle18[[#This Row],[Menge (MWh / Jahr)]]*VLOOKUP(Tabelle18[[#This Row],[Brennstoffe]],EF_Scope2_marktbasiert_strom[[Energieträger]:[CO2 Faktor (t CO2/ MWh)]],2,FALSE) -> 0 | H64: =Tabelle18[[#This Row],[Menge (MWh / Jahr)]]*VLOOKUP(Tabelle18[[#This Row],[Brennstoffe]],EF_Scope2_marktbasiert_strom[[Energieträger]:[CH4 Faktor (t CH4/ MWh)]],3,FALSE)*Methan_IPCC_AR6 -> 0 | I64: =Tabelle18[[#This Row],[Menge (MWh / Jahr)]]*VLOOKUP(Tabelle18[[#This Row],[Brennstoffe]],EF_Scope2_marktbasiert_strom[[Energieträger]:[N2O Faktor (t N2O/ MWh)]],4,FALSE)*N2O_IPCC_AR6 -> 0 | J64: =SUM(Tabelle18[[#This Row],[ CO2 in t CO2e / Jahr]:[ N2O in t CO2e / Jahr]]) -> 0
B65: Holz | E65: Holz | F65: 0 | G65: =Tabelle18[[#This Row],[Menge (MWh / Jahr)]]*VLOOKUP(Tabelle18[[#This Row],[Brennstoffe]],EF_Scope2_marktbasiert_strom[[Energieträger]:[CO2 Faktor (t CO2/ MWh)]],2,FALSE) -> 0 | H65: =Tabelle18[[#This Row],[Menge (MWh / Jahr)]]*VLOOKUP(Tabelle18[[#This Row],[Brennstoffe]],EF_Scope2_marktbasiert_strom[[Energieträger]:[CH4 Faktor (t CH4/ MWh)]],3,FALSE)*Methan_IPCC_AR6 -> 0 | I65: =Tabelle18[[#This Row],[Menge (MWh / Jahr)]]*VLOOKUP(Tabelle18[[#This Row],[Brennstoffe]],EF_Scope2_marktbasiert_strom[[Energieträger]:[N2O Faktor (t N2O/ MWh)]],4,FALSE)*N2O_IPCC_AR6 -> 0 | J65: =SUM(Tabelle18[[#This Row],[ CO2 in t CO2e / Jahr]:[ N2O in t CO2e / Jahr]]) -> 0
B66: Biogas/Biomethan (Energiepflanzen, Gülle, Abfall) | E66: Biogas/Biomethan (Energiepflanzen, Gülle, Abfall) | F66: 0 | G66: =Tabelle18[[#This Row],[Menge (MWh / Jahr)]]*VLOOKUP(Tabelle18[[#This Row],[Brennstoffe]],EF_Scope2_marktbasiert_strom[[Energieträger]:[CO2 Faktor (t CO2/ MWh)]],2,FALSE) -> 0 | H66: =Tabelle18[[#This Row],[Menge (MWh / Jahr)]]*VLOOKUP(Tabelle18[[#This Row],[Brennstoffe]],EF_Scope2_marktbasiert_strom[[Energieträger]:[CH4 Faktor (t CH4/ MWh)]],3,FALSE)*Methan_IPCC_AR6 -> 0 | I66: =Tabelle18[[#This Row],[Menge (MWh / Jahr)]]*VLOOKUP(Tabelle18[[#This Row],[Brennstoffe]],EF_Scope2_marktbasiert_strom[[Energieträger]:[N2O Faktor (t N2O/ MWh)]],4,FALSE)*N2O_IPCC_AR6 -> 0 | J66: =SUM(Tabelle18[[#This Row],[ CO2 in t CO2e / Jahr]:[ N2O in t CO2e / Jahr]]) -> 0
B67: Flüssige Biomasse (z.B. Pflanzenöl) | E67: Flüssige Biomasse (z.B. Pflanzenöl) | F67: 0 | G67: =Tabelle18[[#This Row],[Menge (MWh / Jahr)]]*VLOOKUP(Tabelle18[[#This Row],[Brennstoffe]],EF_Scope2_marktbasiert_strom[[Energieträger]:[CO2 Faktor (t CO2/ MWh)]],2,FALSE) -> 0 | H67: =Tabelle18[[#This Row],[Menge (MWh / Jahr)]]*VLOOKUP(Tabelle18[[#This Row],[Brennstoffe]],EF_Scope2_marktbasiert_strom[[Energieträger]:[CH4 Faktor (t CH4/ MWh)]],3,FALSE)*Methan_IPCC_AR6 -> 0 | I67: =Tabelle18[[#This Row],[Menge (MWh / Jahr)]]*VLOOKUP(Tabelle18[[#This Row],[Brennstoffe]],EF_Scope2_marktbasiert_strom[[Energieträger]:[N2O Faktor (t N2O/ MWh)]],4,FALSE)*N2O_IPCC_AR6 -> 0 | J67: =SUM(Tabelle18[[#This Row],[ CO2 in t CO2e / Jahr]:[ N2O in t CO2e / Jahr]]) -> 0
B68: Kernenergie | E68: Kernenergie | F68: 0 | G68: =Tabelle18[[#This Row],[Menge (MWh / Jahr)]]*VLOOKUP(Tabelle18[[#This Row],[Brennstoffe]],EF_Scope2_marktbasiert_strom[[Energieträger]:[CO2 Faktor (t CO2/ MWh)]],2,FALSE) -> 0 | H68: =Tabelle18[[#This Row],[Menge (MWh / Jahr)]]*VLOOKUP(Tabelle18[[#This Row],[Brennstoffe]],EF_Scope2_marktbasiert_strom[[Energieträger]:[CH4 Faktor (t CH4/ MWh)]],3,FALSE)*Methan_IPCC_AR6 -> 0 | I68: =Tabelle18[[#This Row],[Menge (MWh / Jahr)]]*VLOOKUP(Tabelle18[[#This Row],[Brennstoffe]],EF_Scope2_marktbasiert_strom[[Energieträger]:[N2O Faktor (t N2O/ MWh)]],4,FALSE)*N2O_IPCC_AR6 -> 0 | J68: =SUM(Tabelle18[[#This Row],[ CO2 in t CO2e / Jahr]:[ N2O in t CO2e / Jahr]]) -> 0
B69: Erneuerbare Energien (Sonstige) | E69: Erneuerbare Energien (Sonstige) | F69: =$C$24*$C69 -> 0 | G69: =Tabelle18[[#This Row],[Menge (MWh / Jahr)]]*VLOOKUP(Tabelle18[[#This Row],[Brennstoffe]],EF_Scope2_marktbasiert_strom[[Energieträger]:[CO2 Faktor (t CO2/ MWh)]],2,FALSE) -> 0 | H69: =Tabelle18[[#This Row],[Menge (MWh / Jahr)]]*VLOOKUP(Tabelle18[[#This Row],[Brennstoffe]],EF_Scope2_marktbasiert_strom[[Energieträger]:[CH4 Faktor (t CH4/ MWh)]],3,FALSE)*Methan_IPCC_AR6 -> 0 | I69: =Tabelle18[[#This Row],[Menge (MWh / Jahr)]]*VLOOKUP(Tabelle18[[#This Row],[Brennstoffe]],EF_Scope2_marktbasiert_strom[[Energieträger]:[N2O Faktor (t N2O/ MWh)]],4,FALSE)*N2O_IPCC_AR6 -> 0 | J69: =SUM(Tabelle18[[#This Row],[ CO2 in t CO2e / Jahr]:[ N2O in t CO2e / Jahr]]) -> 0
B70: Summe | C70: =SUM(C61:C69) -> 0 | E70: Summe | F70: =SUBTOTAL(109,Tabelle18[Menge (MWh / Jahr)]) -> 0 | G70: =SUBTOTAL(109,Tabelle18[ CO2 in t CO2e / Jahr]) -> 0 | H70: =SUBTOTAL(109,Tabelle18[ CH4 in t CO2e / Jahr]) -> 0 | I70: =SUBTOTAL(109,Tabelle18[ N2O in t CO2e / Jahr]) -> 0 | J70: =SUBTOTAL(109,Tabelle18[Ergebnis (t CO2e / Jahr)]) -> 0
B72: • Wärme_Schritt 1: Die Aufteilung der Energieträger kann durch Anfrage beim Lieferanten ermittelt werden. | E72: Wärme_Schritt 2: Automatische Ermittlung der GHG-Ergebnisse
B73: Brennstoffe für die Wärmebereitstellung | C73: % | E73: Brennstoffe | F73: Menge (MWh / Jahr) | G73: CO2 in t CO2e / Jahr | H73: CH4 in t CO2e / Jahr | I73: N2O in t CO2e / Jahr | J73: Ergebnis (t CO2e / Jahr)
B74: Erdgas | E74: =B74 -> Erdgas | F74: =$C$25*$C74 -> 0 | G74: =Tabelle1843[[#This Row],[Menge (MWh / Jahr)]]*VLOOKUP(Tabelle1843[[#This Row],[Brennstoffe]],EF_Scope2_marktbasiert_waerme[[Energieträger]:[CO2 Faktor (t CO2/ MWh)]],2,FALSE) -> 0 | H74: =Tabelle1843[[#This Row],[Menge (MWh / Jahr)]]*VLOOKUP(Tabelle1843[[#This Row],[Brennstoffe]],EF_Scope2_marktbasiert_waerme[[Energieträger]:[CH4 Faktor (t CH4/ MWh)]],3,FALSE)*Methan_IPCC_AR6 -> 0 | I74: =Tabelle1843[[#This Row],[Menge (MWh / Jahr)]]*VLOOKUP(Tabelle1843[[#This Row],[Brennstoffe]],EF_Scope2_marktbasiert_waerme[[Energieträger]:[N2O Faktor (t N2O/ MWh)]],4,FALSE)*N2O_IPCC_AR6 -> 0 | J74: =SUM(Tabelle1843[[#This Row],[ CO2 in t CO2e / Jahr]:[ N2O in t CO2e / Jahr]]) -> 0
B75: Heizöl / Diesel | E75: Heizöl / Diesel | F75: =$C$25*$C75 -> 0 | G75: =Tabelle1843[[#This Row],[Menge (MWh / Jahr)]]*VLOOKUP(Tabelle1843[[#This Row],[Brennstoffe]],EF_Scope2_marktbasiert_waerme[[Energieträger]:[CO2 Faktor (t CO2/ MWh)]],2,FALSE) -> 0 | H75: =Tabelle1843[[#This Row],[Menge (MWh / Jahr)]]*VLOOKUP(Tabelle1843[[#This Row],[Brennstoffe]],EF_Scope2_marktbasiert_waerme[[Energieträger]:[CH4 Faktor (t CH4/ MWh)]],3,FALSE)*Methan_IPCC_AR6 -> 0 | I75: =Tabelle1843[[#This Row],[Menge (MWh / Jahr)]]*VLOOKUP(Tabelle1843[[#This Row],[Brennstoffe]],EF_Scope2_marktbasiert_waerme[[Energieträger]:[N2O Faktor (t N2O/ MWh)]],4,FALSE)*N2O_IPCC_AR6 -> 0 | J75: =SUM(Tabelle1843[[#This Row],[ CO2 in t CO2e / Jahr]:[ N2O in t CO2e / Jahr]]) -> 0
B76: Braunkohlenbriketts | E76: Braunkohlenbriketts | F76: 0 | G76: =Tabelle1843[[#This Row],[Menge (MWh / Jahr)]]*VLOOKUP(Tabelle1843[[#This Row],[Brennstoffe]],EF_Scope2_marktbasiert_waerme[[Energieträger]:[CO2 Faktor (t CO2/ MWh)]],2,FALSE) -> 0 | H76: =Tabelle1843[[#This Row],[Menge (MWh / Jahr)]]*VLOOKUP(Tabelle1843[[#This Row],[Brennstoffe]],EF_Scope2_marktbasiert_waerme[[Energieträger]:[CH4 Faktor (t CH4/ MWh)]],3,FALSE)*Methan_IPCC_AR6 -> 0 | I76: =Tabelle1843[[#This Row],[Menge (MWh / Jahr)]]*VLOOKUP(Tabelle1843[[#This Row],[Brennstoffe]],EF_Scope2_marktbasiert_waerme[[Energieträger]:[N2O Faktor (t N2O/ MWh)]],4,FALSE)*N2O_IPCC_AR6 -> 0 | J76: =SUM(Tabelle1843[[#This Row],[ CO2 in t CO2e / Jahr]:[ N2O in t CO2e / Jahr]]) -> 0
B77: Steinkohle | E77: Steinkohle | F77: 0 | G77: =Tabelle1843[[#This Row],[Menge (MWh / Jahr)]]*VLOOKUP(Tabelle1843[[#This Row],[Brennstoffe]],EF_Scope2_marktbasiert_waerme[[Energieträger]:[CO2 Faktor (t CO2/ MWh)]],2,FALSE) -> 0 | H77: =Tabelle1843[[#This Row],[Menge (MWh / Jahr)]]*VLOOKUP(Tabelle1843[[#This Row],[Brennstoffe]],EF_Scope2_marktbasiert_waerme[[Energieträger]:[CH4 Faktor (t CH4/ MWh)]],3,FALSE)*Methan_IPCC_AR6 -> 0 | I77: =Tabelle1843[[#This Row],[Menge (MWh / Jahr)]]*VLOOKUP(Tabelle1843[[#This Row],[Brennstoffe]],EF_Scope2_marktbasiert_waerme[[Energieträger]:[N2O Faktor (t N2O/ MWh)]],4,FALSE)*N2O_IPCC_AR6 -> 0 | J77: =SUM(Tabelle1843[[#This Row],[ CO2 in t CO2e / Jahr]:[ N2O in t CO2e / Jahr]]) -> 0
B78: Fernwärme-Mix | E78: Fernwärme-Mix | F78: 0 | G78: =Tabelle1843[[#This Row],[Menge (MWh / Jahr)]]*VLOOKUP(Tabelle1843[[#This Row],[Brennstoffe]],EF_Scope2_marktbasiert_waerme[[Energieträger]:[CO2 Faktor (t CO2/ MWh)]],2,FALSE) -> 0 | H78: =Tabelle1843[[#This Row],[Menge (MWh / Jahr)]]*VLOOKUP(Tabelle1843[[#This Row],[Brennstoffe]],EF_Scope2_marktbasiert_waerme[[Energieträger]:[CH4 Faktor (t CH4/ MWh)]],3,FALSE)*Methan_IPCC_AR6 -> 0 | I78: =Tabelle1843[[#This Row],[Menge (MWh / Jahr)]]*VLOOKUP(Tabelle1843[[#This Row],[Brennstoffe]],EF_Scope2_marktbasiert_waerme[[Energieträger]:[N2O Faktor (t N2O/ MWh)]],4,FALSE)*N2O_IPCC_AR6 -> 0 | J78: =SUM(Tabelle1843[[#This Row],[ CO2 in t CO2e / Jahr]:[ N2O in t CO2e / Jahr]]) -> 0
B79: Strommix | E79: Strommix | F79: 0 | G79: =Tabelle1843[[#This Row],[Menge (MWh / Jahr)]]*VLOOKUP(Tabelle1843[[#This Row],[Brennstoffe]],EF_Scope2_marktbasiert_waerme[[Energieträger]:[CO2 Faktor (t CO2/ MWh)]],2,FALSE) -> 0 | H79: =Tabelle1843[[#This Row],[Menge (MWh / Jahr)]]*VLOOKUP(Tabelle1843[[#This Row],[Brennstoffe]],EF_Scope2_marktbasiert_waerme[[Energieträger]:[CH4 Faktor (t CH4/ MWh)]],3,FALSE)*Methan_IPCC_AR6 -> 0 | I79: =Tabelle1843[[#This Row],[Menge (MWh / Jahr)]]*VLOOKUP(Tabelle1843[[#This Row],[Brennstoffe]],EF_Scope2_marktbasiert_waerme[[Energieträger]:[N2O Faktor (t N2O/ MWh)]],4,FALSE)*N2O_IPCC_AR6 -> 0 | J79: =SUM(Tabelle1843[[#This Row],[ CO2 in t CO2e / Jahr]:[ N2O in t CO2e / Jahr]]) -> 0
B80: Holz | E80: Holz | F80: 0 | G80: =Tabelle1843[[#This Row],[Menge (MWh / Jahr)]]*VLOOKUP(Tabelle1843[[#This Row],[Brennstoffe]],EF_Scope2_marktbasiert_waerme[[Energieträger]:[CO2 Faktor (t CO2/ MWh)]],2,FALSE) -> 0 | H80: =Tabelle1843[[#This Row],[Menge (MWh / Jahr)]]*VLOOKUP(Tabelle1843[[#This Row],[Brennstoffe]],EF_Scope2_marktbasiert_waerme[[Energieträger]:[CH4 Faktor (t CH4/ MWh)]],3,FALSE)*Methan_IPCC_AR6 -> 0 | I80: =Tabelle1843[[#This Row],[Menge (MWh / Jahr)]]*VLOOKUP(Tabelle1843[[#This Row],[Brennstoffe]],EF_Scope2_marktbasiert_waerme[[Energieträger]:[N2O Faktor (t N2O/ MWh)]],4,FALSE)*N2O_IPCC_AR6 -> 0 | J80: =SUM(Tabelle1843[[#This Row],[ CO2 in t CO2e / Jahr]:[ N2O in t CO2e / Jahr]]) -> 0
B81: Biogas/Biomethan (Energiepflanzen, Gülle, Abfall) | E81: Biogas/Biomethan (Energiepflanzen, Gülle, Abfall) | F81: 0 | G81: =Tabelle1843[[#This Row],[Menge (MWh / Jahr)]]*VLOOKUP(Tabelle1843[[#This Row],[Brennstoffe]],EF_Scope2_marktbasiert_waerme[[Energieträger]:[CO2 Faktor (t CO2/ MWh)]],2,FALSE) -> 0 | H81: =Tabelle1843[[#This Row],[Menge (MWh / Jahr)]]*VLOOKUP(Tabelle1843[[#This Row],[Brennstoffe]],EF_Scope2_marktbasiert_waerme[[Energieträger]:[CH4 Faktor (t CH4/ MWh)]],3,FALSE)*Methan_IPCC_AR6 -> 0 | I81: =Tabelle1843[[#This Row],[Menge (MWh / Jahr)]]*VLOOKUP(Tabelle1843[[#This Row],[Brennstoffe]],EF_Scope2_marktbasiert_waerme[[Energieträger]:[N2O Faktor (t N2O/ MWh)]],4,FALSE)*N2O_IPCC_AR6 -> 0 | J81: =SUM(Tabelle1843[[#This Row],[ CO2 in t CO2e / Jahr]:[ N2O in t CO2e / Jahr]]) -> 0
B82: Flüssige Biomasse (z.B. Pflanzenöl) | E82: Flüssige Biomasse (z.B. Pflanzenöl) | F82: 0 | G82: =Tabelle1843[[#This Row],[Menge (MWh / Jahr)]]*VLOOKUP(Tabelle1843[[#This Row],[Brennstoffe]],EF_Scope2_marktbasiert_waerme[[Energieträger]:[CO2 Faktor (t CO2/ MWh)]],2,FALSE) -> 0 | H82: =Tabelle1843[[#This Row],[Menge (MWh / Jahr)]]*VLOOKUP(Tabelle1843[[#This Row],[Brennstoffe]],EF_Scope2_marktbasiert_waerme[[Energieträger]:[CH4 Faktor (t CH4/ MWh)]],3,FALSE)*Methan_IPCC_AR6 -> 0 | I82: =Tabelle1843[[#This Row],[Menge (MWh / Jahr)]]*VLOOKUP(Tabelle1843[[#This Row],[Brennstoffe]],EF_Scope2_marktbasiert_waerme[[Energieträger]:[N2O Faktor (t N2O/ MWh)]],4,FALSE)*N2O_IPCC_AR6 -> 0 | J82: =SUM(Tabelle1843[[#This Row],[ CO2 in t CO2e / Jahr]:[ N2O in t CO2e / Jahr]]) -> 0
B83: Summe | C83: =SUM(C74:C82) -> 0 | E83: Summe | F83: =SUBTOTAL(109,Tabelle1843[Menge (MWh / Jahr)]) -> 0 | G83: =SUBTOTAL(109,Tabelle1843[ CO2 in t CO2e / Jahr]) -> 0 | H83: =SUBTOTAL(109,Tabelle1843[ CH4 in t CO2e / Jahr]) -> 0 | I83: =SUBTOTAL(109,Tabelle1843[ N2O in t CO2e / Jahr]) -> 0 | J83: =SUBTOTAL(109,Tabelle1843[Ergebnis (t CO2e / Jahr)]) -> 0
E85: Zusammenfassung der Ergebnisse unten dem marktbasierten Ansatz: Option 2 | F85: Ergebnis (t CO2e / Jahr) | G85: Anmerkungen
E86: Strom | F86: =Tabelle18[[#Totals],[Ergebnis (t CO2e / Jahr)]] -> 0 | G86: Marktbasierter Ansatz
E87: Wärme | F87: =IF(Tabelle1843[[#Totals],[Ergebnis (t CO2e / Jahr)]]<>0,Tabelle1843[[#Totals],[Ergebnis (t CO2e / Jahr)]],G32) -> 0 | G87: Falls Option 2 nicht zutrifft, wird das Ergebnis des ortsbezogenen Ansatzes übernommen.
E88: Dampf | F88: =G33 -> 0 | G88: Einfachheitshalber wurde nur das Ergebnis des ortsbezogenen Ansatzes übernommen.
E89: Summe | F89: =SUM(F86:F88) -> 0

Sheet Scope_3
B12: Scope 3 - Indirekte Emissionen | E12: Summe : | F12: =IFERROR(SUM(IF(Auswahl_Methode_Medikamente="Option 1: Hybrid",Result_Scope3_Medikamente_Option1,(IF(Auswahl_Methode_Medikamente="Option 2: Top-Down (CDP)",Result_Scope3_Medikamente_Option2,Result_Scope3_Medikamente_Option3))),Result_Scope3_Gase, Result_Scope3_MedizinischVM_Option3,Result_Scope3_KM, IF(Auswahl_Methode_Lebensmittel="Option 1: Bottom-Up",Result_Scope3_Lebensmittel_Option1,Result_Scope3_Lebensmittel_Option2),IF(Auswahl_Methode_Textile="Option 1: Bottom-Up",Result_Scope3_Textile_option1,Result_Scope3_Textile_option2),IF(Auswahl_Methode_HygieneA="Option 1: Bottom-Up",Result_Scope3_HygieneA_Option1,Result_Scope3_HygieneA_Option2),IF(Auswahl_Methode_Papier="Option 1: Bottom-Up",Result_Scope3_Papier_Option1,Result_Scope3_Papier_Option2),Result_Scope3_Wasser,Result_Scope3_Internet, Result_Scope3_Serverraum, Result_Scope3_IT_Geraete, Result_Scope3_Energie, Result_Scope3_Abfall,Result_Scope3_Abwasser,Result_Scope3_Flugreisen,Result_Scope3_Landreisen,Result_Scope3_Uebernachtung, Result_Scope3_Mitarbeitendenmobilität, Result_Scope3_Patient_Regelkontakte_innerhalb_DE+Result_Scope3_Patient_Regelkontakte_Non_DE+Result_Scope3_P_Mobilität_Notfall_Helikoper+Result_Scope3_P_Mobilität_Notfall_K_RTW_PKW+Result_Scope3_Patient_Verlegung),"k.A.") -> 0 | G12: [t CO2e]
B14: Kategorie 1 - Eingekaufte Güter und Dienstleistungen
D15: Scope 3.1.1 - Eingekaufte Medikamente
D16: Anmerkungen:
D17: Grundsätzlich lässt sich die Produktion der pharmazeutischen Produkte in zwei modularen Phasen unterteilen:
D18: • Die Herstellung des Wirkstoffs (Eng: Active pharmaceutical ingredient (API))
D19: • Fertigungsprozesse (umfasst galenische Formulierung und Verpackung zur Verabreichung an die Patient*innen)
D21: Die Bestimmung des GWP-Werts eines Medikaments in der Herstellungsphase erfordert eine komplexe Analyse.
D22: Die Herstellung der Wirkstoffe ist extrem vielfältig. Je nach Ausgangsstoff (tierische, pflanzliche, synthetische Basis) und Verfahren sowie Technologie können in der Herstellungsphase sehr unterschiedliche CO2e verursacht werden.
D23: Darüber hinaus können sich die Emissionen je nach Standort der Produktion, den verwendeten Energiequellen und den spezifischen Herstellungsprozessen unterscheiden.
D24: Ein Beispiel, das aus einer eigenen Modellierung auf der Datengrundlage von [3] und der Ecoinvent Datenbank resultiert, zeigt, dass die Produktion von 1 kg Sevofluran ja nach Verfahren (A (mit Tetrafluoroethylene)
D25: und Verfahren B (Hydrogen fluoride)) 472 kg CO2e bzw. 68 kg CO2e verursachen kann.
D26: Drew et.al [47] bewerten wirkstoffrelevante LCA/PCF Studien und berichten, dass CO2e-Werte zwischen 2,3 kg CO2e für Naproxen und 280.000 kg CO2e für Nivolumab liegen können.
D28: Zusätzlich haben die Medikamente hinsichtlich der Fertigungsprozesse weitere verschiedene Formen:
D29: • feste Dosierungsformen, z.B. Tabletten oder Trockenpulver
D30: • flüssige Dosierungsformen und Suspensionen
D31: • Cremes und Salben zum Auftragen von Wirkstoffen auf die Haut
D32: • Gase zur Inhalation
D33: • Verpackungen wie Flaschen, Ampullen, Beutel etc.
D35: Die unten dargestellten Emissionsfaktoren basieren auf einer umfangreichen Recherche der LCA/PCF-Studien im Rahmen der Budgetmöglichkeit des Projekts.
D36: Verschiedene LCA/PCF-Studien haben unterschiedliche Untersuchungsrahmenbedingungen, z.B. betrachten manche nur API, andere das ganze Produkt (API + galenische Formulierung sowie Verpackung).
D37: Für die Wirkstoffherstellung ist die Menge der Wirkstoffe (API) ein guter Skalierungsparameter für diesen Wirkstoff.
D38: Bei Fertigung der Medikamente (galenische Formulierung und Verpackung) benötigt man andere Parameter. Denn je nach Endprodukt beeinflusst der Fertigungsprozess, die galenische Formulierung und Verpackungsmenge.
D39: Wir gehen davon aus, dass für die GWP-Werte die Herstellung der API hinsichtlich der gesamten Produktionsphase eine größere Rolle spielt als galenische Formulierung und Verpackung.
D40: Es ist im Rahmen des Projektes nicht möglich, die Emissionsfaktoren mit allen Details und für alle Medikamente mit Bottom-Up-Ansatz anzubieten.
D41: Die jetzigen Kenntnisse erlauben ebenfalls nicht, auf Basis von vorhanden bekannten Emissionsfaktoren nach einem bestimmten Parameter auf andere Medikamenten hochzuskalieren. Es fehlen valide Belege.
D43: Die unten dargestellten Emissionsfaktoren basieren auf 2 Bezugsgröße: physikalische Größe der Wirkstoffe und Einkaufsausgabe in Euro.
D44: • Option 1: Hybrid-Ansatz. Eine Mischung von Bottom-Up-Ansatz und Top-Down-Ansatz.
D45: Bottom-Up-Ansatz wird verwendet, wenn die Emissionsfaktoren der bestimmten Wirkstoffe nach physikalischer Größe aus der Literatur vorliegen.
D46: Die anderen Wirkstoffe, deren Emissionsfaktoren unbekannt sind, werden allgemein durch den Top-Down-Ansatz bilanziert.
D47: Der Emissionsfaktor des Top-Down-Ansatzes in Option 1 basiert auf der KliOL-Studie [28] mit einem konservativen Ansatz.
D48: • Option 2: Top-down Berechnung mittels generischer EF auf Basis von Euro-basierten Näherungswerten. Ein durchschnittlicher Wert wurde in Rahmen des Cafegos-Projekts auf Basis von CDP-Ergebnissen der 11 bekannten Pharmaunternehmen errechnet [3].
D49: Diese Option wird als "Option 2: Top-Down (CDP)" bezeichnet.
D50: • Option 3: Top-down Berechnung mittels generischer EF auf Basis von Euro-basierten Näherungswerten. Dieser Wert basiert auf der KliOL-Studie [28].
D51: Diese Option wird als "Option 3: Top-Down (KliOL)" bezeichnet.
D52: Auswahl der Berechnungsmethode | E52: Option 1: Hybrid
C54: Option 1 Teil I: Bottom-Up
D55: Wirkstoffe | E55: Menge | F55: Einheit der Menge pro Jahr | G55: Emissionsfaktor | H55: Einheit der EF (kg CO2e/kg API oder /1000 I.E) | I55: Ergebnis (t CO2e / Jahr)
D56: Acetylsalicylsäure | F56: kg | G56: =VLOOKUP(D56,EF!$C$201:$D$235,2,FALSE) -> 4.9 | H56: =VLOOKUP(D56,EF!$C$201:$E$235,3,FALSE) -> per kg API | I56: =IF(ISNUMBER(Scope_3!$E56),Scope_3!$E56*Scope_3!$G56/1000,"k.A") -> k.A
D57: Albumin (Human) | F57: kg | G57: =VLOOKUP(D57,EF!$C$201:$D$235,2,FALSE) -> 604.66575 | H57: =VLOOKUP(D57,EF!$C$201:$E$235,3,FALSE) -> per kg API | I57: =IF(ISNUMBER(Scope_3!$E57),Scope_3!$E57*Scope_3!$G57/1000,"k.A") -> k.A
D58: Bupivacain | F58: kg | G58: =VLOOKUP(D58,EF!$C$201:$D$235,2,FALSE) -> 23.340591 | H58: =VLOOKUP(D58,EF!$C$201:$E$235,3,FALSE) -> per kg API | I58: =IF(ISNUMBER(Scope_3!$E58),Scope_3!$E58*Scope_3!$G58/1000,"k.A") -> k.A
D59: Dexmedetomidin | F59: kg | G59: =VLOOKUP(D59,EF!$C$201:$D$235,2,FALSE) -> 3006 | H59: =VLOOKUP(D59,EF!$C$201:$E$235,3,FALSE) -> per kg API | I59: =IF(ISNUMBER(Scope_3!$E59),Scope_3!$E59*Scope_3!$G59/1000,"k.A") -> k.A
D60: Ephedrin | F60: kg | G60: =VLOOKUP(D60,EF!$C$201:$D$235,2,FALSE) -> 82 | H60: =VLOOKUP(D60,EF!$C$201:$E$235,3,FALSE) -> per kg API | I60: =IF(ISNUMBER(Scope_3!$E60),Scope_3!$E60*Scope_3!$G60/1000,"k.A") -> k.A
D61: Epinephrin / Epinephrin (Razemisch) | F61: kg | G61: =VLOOKUP(D61,EF!$C$201:$D$235,2,FALSE) -> 33.827187 | H61: =VLOOKUP(D61,EF!$C$201:$E$235,3,FALSE) -> per kg API | I61: =IF(ISNUMBER(Scope_3!$E61),Scope_3!$E61*Scope_3!$G61/1000,"k.A") -> k.A
D62: Fentanyl / Fentanyl (Transdermal) | F62: kg | G62: =VLOOKUP(D62,EF!$C$201:$D$235,2,FALSE) -> 95.8 | H62: =VLOOKUP(D62,EF!$C$201:$E$235,3,FALSE) -> per kg API | I62: =IF(ISNUMBER(Scope_3!$E62),Scope_3!$E62*Scope_3!$G62/1000,"k.A") -> k.A
D63: Glycopyrroniumbromid | F63: kg | G63: =VLOOKUP(D63,EF!$C$201:$D$235,2,FALSE) -> 76 | H63: =VLOOKUP(D63,EF!$C$201:$E$235,3,FALSE) -> per kg API | I63: =IF(ISNUMBER(Scope_3!$E63),Scope_3!$E63*Scope_3!$G63/1000,"k.A") -> k.A
D64: Hydromorphon-Hcl | F64: kg | G64: =VLOOKUP(D64,EF!$C$201:$D$235,2,FALSE) -> 799 | H64: =VLOOKUP(D64,EF!$C$201:$E$235,3,FALSE) -> per kg API | I64: =IF(ISNUMBER(Scope_3!$E64),Scope_3!$E64*Scope_3!$G64/1000,"k.A") -> k.A
D65: Ibuprofen | F65: kg | G65: =VLOOKUP(D65,EF!$C$201:$D$235,2,FALSE) -> 26.64375 | H65: =VLOOKUP(D65,EF!$C$201:$E$235,3,FALSE) -> per kg API | I65: =IF(ISNUMBER(Scope_3!$E65),Scope_3!$E65*Scope_3!$G65/1000,"k.A") -> k.A
D66: Immunglobulin G / G+A / G-Vorhyaluronidase | F66: kg | G66: =VLOOKUP(D66,EF!$C$201:$D$235,2,FALSE) -> 2910.3 | H66: =VLOOKUP(D66,EF!$C$201:$E$235,3,FALSE) -> per kg API | I66: =IF(ISNUMBER(Scope_3!$E66),Scope_3!$E66*Scope_3!$G66/1000,"k.A") -> k.A
D67: Infliximab | F67: kg | G67: =VLOOKUP(D67,EF!$C$201:$D$235,2,FALSE) -> 25500 | H67: =VLOOKUP(D67,EF!$C$201:$E$235,3,FALSE) -> per kg API | I67: =IF(ISNUMBER(Scope_3!$E67),Scope_3!$E67*Scope_3!$G67/1000,"k.A") -> k.A
D68: Ketamin | F68: kg | G68: =VLOOKUP(D68,EF!$C$201:$D$235,2,FALSE) -> 140 | H68: =VLOOKUP(D68,EF!$C$201:$E$235,3,FALSE) -> per kg API | I68: =IF(ISNUMBER(Scope_3!$E68),Scope_3!$E68*Scope_3!$G68/1000,"k.A") -> k.A
D69: Lidocain / Lidocain + Prilocain | F69: kg | G69: =VLOOKUP(D69,EF!$C$201:$D$235,2,FALSE) -> 28.599286 | H69: =VLOOKUP(D69,EF!$C$201:$E$235,3,FALSE) -> per kg API | I69: =IF(ISNUMBER(Scope_3!$E69),Scope_3!$E69*Scope_3!$G69/1000,"k.A") -> k.A
D70: Metformin | F70: kg | G70: =VLOOKUP(D70,EF!$C$201:$D$235,2,FALSE) -> 22.3 | H70: =VLOOKUP(D70,EF!$C$201:$E$235,3,FALSE) -> per kg API | I70: =IF(ISNUMBER(Scope_3!$E70),Scope_3!$E70*Scope_3!$G70/1000,"k.A") -> k.A
D71: Midazolam | F71: kg | G71: =VLOOKUP(D71,EF!$C$201:$D$235,2,FALSE) -> 444 | H71: =VLOOKUP(D71,EF!$C$201:$E$235,3,FALSE) -> per kg API | I71: =IF(ISNUMBER(Scope_3!$E71),Scope_3!$E71*Scope_3!$G71/1000,"k.A") -> k.A
D72: Morphin / Morphin Sulfat / Morphinhydrochlorid | F72: kg | G72: =VLOOKUP(D72,EF!$C$201:$D$235,2,FALSE) -> 1506 | H72: =VLOOKUP(D72,EF!$C$201:$E$235,3,FALSE) -> per kg API | I72: =IF(ISNUMBER(Scope_3!$E72),Scope_3!$E72*Scope_3!$G72/1000,"k.A") -> k.A
D73: Naproxen | F73: kg | G73: =VLOOKUP(D73,EF!$C$201:$D$235,2,FALSE) -> 2.3 | H73: =VLOOKUP(D73,EF!$C$201:$E$235,3,FALSE) -> per kg API | I73: =IF(ISNUMBER(Scope_3!$E73),Scope_3!$E73*Scope_3!$G73/1000,"k.A") -> k.A
D74: Neostigmin | F74: kg | G74: =VLOOKUP(D74,EF!$C$201:$D$235,2,FALSE) -> 21.812297 | H74: =VLOOKUP(D74,EF!$C$201:$E$235,3,FALSE) -> per kg API | I74: =IF(ISNUMBER(Scope_3!$E74),Scope_3!$E74*Scope_3!$G74/1000,"k.A") -> k.A
D75: Nitrofurantoin | F75: kg | G75: =VLOOKUP(D75,EF!$C$201:$D$235,2,FALSE) -> 341.5 | H75: =VLOOKUP(D75,EF!$C$201:$E$235,3,FALSE) -> per kg API | I75: =IF(ISNUMBER(Scope_3!$E75),Scope_3!$E75*Scope_3!$G75/1000,"k.A") -> k.A
D76: Nivolumab | F76: kg | G76: =VLOOKUP(D76,EF!$C$201:$D$235,2,FALSE) -> 207000 | H76: =VLOOKUP(D76,EF!$C$201:$E$235,3,FALSE) -> per kg API | I76: =IF(ISNUMBER(Scope_3!$E76),Scope_3!$E76*Scope_3!$G76/1000,"k.A") -> k.A
D77: Ondansetron | F77: kg | G77: =VLOOKUP(D77,EF!$C$201:$D$235,2,FALSE) -> 36.732593 | H77: =VLOOKUP(D77,EF!$C$201:$E$235,3,FALSE) -> per kg API | I77: =IF(ISNUMBER(Scope_3!$E77),Scope_3!$E77*Scope_3!$G77/1000,"k.A") -> k.A
D78: Paracetamol | F78: kg | G78: =VLOOKUP(D78,EF!$C$201:$D$235,2,FALSE) -> 0.664 | H78: =VLOOKUP(D78,EF!$C$201:$E$235,3,FALSE) -> per kg API | I78: =IF(ISNUMBER(Scope_3!$E78),Scope_3!$E78*Scope_3!$G78/1000,"k.A") -> k.A
D79: Phenoxymethylpenicillin | F79: kg | G79: =VLOOKUP(D79,EF!$C$201:$D$235,2,FALSE) -> 6.02 | H79: =VLOOKUP(D79,EF!$C$201:$E$235,3,FALSE) -> per kg API | I79: =IF(ISNUMBER(Scope_3!$E79),Scope_3!$E79*Scope_3!$G79/1000,"k.A") -> k.A
D80: Phenylephrin | F80: kg | G80: =VLOOKUP(D80,EF!$C$201:$D$235,2,FALSE) -> 171 | H80: =VLOOKUP(D80,EF!$C$201:$E$235,3,FALSE) -> per kg API | I80: =IF(ISNUMBER(Scope_3!$E80),Scope_3!$E80*Scope_3!$G80/1000,"k.A") -> k.A
D81: Propofol | F81: kg | G81: =VLOOKUP(D81,EF!$C$201:$D$235,2,FALSE) -> 21 | H81: =VLOOKUP(D81,EF!$C$201:$E$235,3,FALSE) -> per kg API | I81: =IF(ISNUMBER(Scope_3!$E81),Scope_3!$E81*Scope_3!$G81/1000,"k.A") -> k.A
D82: Remifentanil | F82: kg | G82: =VLOOKUP(D82,EF!$C$201:$D$235,2,FALSE) -> 103 | H82: =VLOOKUP(D82,EF!$C$201:$E$235,3,FALSE) -> per kg API | I82: =IF(ISNUMBER(Scope_3!$E82),Scope_3!$E82*Scope_3!$G82/1000,"k.A") -> k.A
D83: Rocuroniumbromid | F83: kg | G83: =VLOOKUP(D83,EF!$C$201:$D$235,2,FALSE) -> 144 | H83: =VLOOKUP(D83,EF!$C$201:$E$235,3,FALSE) -> per kg API | I83: =IF(ISNUMBER(Scope_3!$E83),Scope_3!$E83*Scope_3!$G83/1000,"k.A") -> k.A
D84: Ropivacain | F84: kg | G84: =VLOOKUP(D84,EF!$C$201:$D$235,2,FALSE) -> 35.632758 | H84: =VLOOKUP(D84,EF!$C$201:$E$235,3,FALSE) -> per kg API | I84: =IF(ISNUMBER(Scope_3!$E84),Scope_3!$E84*Scope_3!$G84/1000,"k.A") -> k.A
D85: Sertralin | F85: kg | G85: =VLOOKUP(D85,EF!$C$201:$D$235,2,FALSE) -> 3690 | H85: =VLOOKUP(D85,EF!$C$201:$E$235,3,FALSE) -> per kg API | I85: =IF(ISNUMBER(Scope_3!$E85),Scope_3!$E85*Scope_3!$G85/1000,"k.A") -> k.A
D86: Sugammadex | F86: kg | G86: =VLOOKUP(D86,EF!$C$201:$D$235,2,FALSE) -> 11.58238 | H86: =VLOOKUP(D86,EF!$C$201:$E$235,3,FALSE) -> per kg API | I86: =IF(ISNUMBER(Scope_3!$E86),Scope_3!$E86*Scope_3!$G86/1000,"k.A") -> k.A
D87: Suxamethonium | F87: kg | G87: =VLOOKUP(D87,EF!$C$201:$D$235,2,FALSE) -> 11.225565 | H87: =VLOOKUP(D87,EF!$C$201:$E$235,3,FALSE) -> per kg API | I87: =IF(ISNUMBER(Scope_3!$E87),Scope_3!$E87*Scope_3!$G87/1000,"k.A") -> k.A
D88: Vancomycin | F88: kg | G88: =VLOOKUP(D88,EF!$C$201:$D$235,2,FALSE) -> 60 | H88: =VLOOKUP(D88,EF!$C$201:$E$235,3,FALSE) -> per kg API | I88: =IF(ISNUMBER(Scope_3!$E88),Scope_3!$E88*Scope_3!$G88/1000,"k.A") -> k.A
D89: Blutgerinnungsfaktor VIII / (F VIII:C) / Rekomb. | F89: 1000 I.E. | G89: =VLOOKUP(D89,EF!$C$201:$D$235,2,FALSE) -> 73.2256 | H89: =VLOOKUP(D89,EF!$C$201:$E$235,3,FALSE) -> per 1.000 I.E. API | I89: =IF(ISNUMBER(Scope_3!$E89),Scope_3!$E89*Scope_3!$G89/1000,"k.A") -> k.A
D90: Colecalciferol (+ Natriumfluorid, Calciumcarbonat) | F90: 1000 I.E. | G90: =VLOOKUP(D90,EF!$C$201:$D$235,2,FALSE) -> 9.4125e-05 | H90: =VLOOKUP(D90,EF!$C$201:$E$235,3,FALSE) -> per 1.000 I.E. API | I90: =IF(ISNUMBER(Scope_3!$E90),Scope_3!$E90*Scope_3!$G90/1000,"k.A") -> k.A
D91: Summe | I91: =SUBTOTAL(109,Tabelle58[Ergebnis (t CO2e / Jahr)]) -> 0
C93: Option 1 Teil II: Top-Down
D94: Option 1 Teil II: Top-Down | E94: Euro / Jahr
D95: Gesamte Einkaufsausgaben für Medikamente
D96: -Einkaufsausgaben von oben durch Bottom-Up identifzierten Medikamenten
D97: Anteil der durch Bottom-Up gerechneten Medikamente an den gesamten Einkaufsausgaben | E97: =IFERROR(E96/$E$95,"k.A.") -> k.A.
D99: Berechnung des GWP-Werts für die restlichen Medikamenten anhand des Emissionsfaktors in Euro.
D100: Option 1 Teil II: Top-Down | E100: Euro / Jahr | F100: t CO2-eq/Mio. € | G100: Ergebnis (t CO2e / Jahr)
D101: -Einkaufsausgaben von den Rest | E101: =E95-E96 -> 0 | F101: =EF_Medikamente_Konserv_KliOL -> 296 | G101: =E101/1000000*F101 -> 0
C103: Zusammenfassung von Option 1 Hybrid-Ansatz
D104: Option 1: Hyrid-Ansatz | E104: Ergebnis (t CO2e / Jahr)
D105: Bottom-Up-Ansatz | E105: =Tabelle58[[#Totals],[Ergebnis (t CO2e / Jahr)]] -> 0
D106: Top-Down-Ansatz | E106: =G101 -> 0
D107: Summe | E107: =SUM(E105:E106) -> 0
C109: Option 2 Top-Down-Ansatz (CDP): Der Emissionsfaktor basiert auf dem durchschnittlichen Euro-basierten EF-Wert von 11 Pharmaunternehmen [3], deren Klimabilanzen nach GHG-Protocol durchgeführt wurden.
D110: Medikamente: Top-Down | E110: Euro / Jahr | F110: t CO2-eq/Mio. € | G110: Ergebnis (t CO2e / Jahr)
D111: Einkaufsausgaben | F111: =EF_Medikamente_CDP -> 186 | G111: =E111/1000000*F111 -> 0
C113: Option 3 Top-Down-Ansatz (KliOL): Der Emissionsfaktor basiert auf der KliOL-Studie [28]
D114: Medikamente: Top-Down | E114: Euro / Jahr | F114: t CO2-eq/Mio. € | G114: Ergebnis (t CO2e / Jahr)
D115: Einkaufsausgaben | F115: =EF_Medikamente_KliOL -> 296 | G115: =E115/1000000*F115 -> 0
D118: Scope 3.1.2 - Eingekaufte medizinische & technische Gase (Bottom-Up)
D119: Gase | E119: Menge (kg / Jahr) | F119: Emissionsfaktor (kg CO2e/kg) | G119: Ergebnis (t CO2e / Jahr)
D120: Argon | F120: =VLOOKUP(Scope3_THG_Med_Tech_Gase[[#This Row],[Gase]],EF_Scope3_Gase[[Gase]:[Emissionsfaktor (kg CO2e/kg)]],2,FALSE) -> 2.24 | G120: =IFERROR(Scope3_THG_Med_Tech_Gase[[#This Row],[Menge (kg / Jahr)]]*Scope3_THG_Med_Tech_Gase[[#This Row],[Emissionsfaktor (kg CO2e/kg)]]/1000, "k.A.") -> 0
D121: C2H2 | F121: =VLOOKUP(Scope3_THG_Med_Tech_Gase[[#This Row],[Gase]],EF_Scope3_Gase[[Gase]:[Emissionsfaktor (kg CO2e/kg)]],2,FALSE) -> 4.27474 | G121: =IFERROR(Scope3_THG_Med_Tech_Gase[[#This Row],[Menge (kg / Jahr)]]*Scope3_THG_Med_Tech_Gase[[#This Row],[Emissionsfaktor (kg CO2e/kg)]]/1000, "k.A.") -> 0
D122: CH4 | F122: =VLOOKUP(Scope3_THG_Med_Tech_Gase[[#This Row],[Gase]],EF_Scope3_Gase[[Gase]:[Emissionsfaktor (kg CO2e/kg)]],2,FALSE) -> 0.65898 | G122: =IFERROR(Scope3_THG_Med_Tech_Gase[[#This Row],[Menge (kg / Jahr)]]*Scope3_THG_Med_Tech_Gase[[#This Row],[Emissionsfaktor (kg CO2e/kg)]]/1000, "k.A.") -> 0
D123: CO | F123: =VLOOKUP(Scope3_THG_Med_Tech_Gase[[#This Row],[Gase]],EF_Scope3_Gase[[Gase]:[Emissionsfaktor (kg CO2e/kg)]],2,FALSE) -> 1.5 | G123: =IFERROR(Scope3_THG_Med_Tech_Gase[[#This Row],[Menge (kg / Jahr)]]*Scope3_THG_Med_Tech_Gase[[#This Row],[Emissionsfaktor (kg CO2e/kg)]]/1000, "k.A.") -> 0
D124: CO2 | F124: =VLOOKUP(Scope3_THG_Med_Tech_Gase[[#This Row],[Gase]],EF_Scope3_Gase[[Gase]:[Emissionsfaktor (kg CO2e/kg)]],2,FALSE) -> 0.493 | G124: =IFERROR(Scope3_THG_Med_Tech_Gase[[#This Row],[Menge (kg / Jahr)]]*Scope3_THG_Med_Tech_Gase[[#This Row],[Emissionsfaktor (kg CO2e/kg)]]/1000, "k.A.") -> 0
D125: H2 | F125: =VLOOKUP(Scope3_THG_Med_Tech_Gase[[#This Row],[Gase]],EF_Scope3_Gase[[Gase]:[Emissionsfaktor (kg CO2e/kg)]],2,FALSE) -> 1.75584 | G125: =IFERROR(Scope3_THG_Med_Tech_Gase[[#This Row],[Menge (kg / Jahr)]]*Scope3_THG_Med_Tech_Gase[[#This Row],[Emissionsfaktor (kg CO2e/kg)]]/1000, "k.A.") -> 0
D126: He | F126: =VLOOKUP(Scope3_THG_Med_Tech_Gase[[#This Row],[Gase]],EF_Scope3_Gase[[Gase]:[Emissionsfaktor (kg CO2e/kg)]],2,FALSE) -> 8.55655 | G126: =IFERROR(Scope3_THG_Med_Tech_Gase[[#This Row],[Menge (kg / Jahr)]]*Scope3_THG_Med_Tech_Gase[[#This Row],[Emissionsfaktor (kg CO2e/kg)]]/1000, "k.A.") -> 0
D127: Luft, verdicht | F127: =VLOOKUP(Scope3_THG_Med_Tech_Gase[[#This Row],[Gase]],EF_Scope3_Gase[[Gase]:[Emissionsfaktor (kg CO2e/kg)]],2,FALSE) -> 0.012 | G127: =IFERROR(Scope3_THG_Med_Tech_Gase[[#This Row],[Menge (kg / Jahr)]]*Scope3_THG_Med_Tech_Gase[[#This Row],[Emissionsfaktor (kg CO2e/kg)]]/1000, "k.A.") -> 0
D128: N2 | F128: =VLOOKUP(Scope3_THG_Med_Tech_Gase[[#This Row],[Gase]],EF_Scope3_Gase[[Gase]:[Emissionsfaktor (kg CO2e/kg)]],2,FALSE) -> 0.22105 | G128: =IFERROR(Scope3_THG_Med_Tech_Gase[[#This Row],[Menge (kg / Jahr)]]*Scope3_THG_Med_Tech_Gase[[#This Row],[Emissionsfaktor (kg CO2e/kg)]]/1000, "k.A.") -> 0
D129: N2O | F129: =VLOOKUP(Scope3_THG_Med_Tech_Gase[[#This Row],[Gase]],EF_Scope3_Gase[[Gase]:[Emissionsfaktor (kg CO2e/kg)]],2,FALSE) -> 2.72955 | G129: =IFERROR(Scope3_THG_Med_Tech_Gase[[#This Row],[Menge (kg / Jahr)]]*Scope3_THG_Med_Tech_Gase[[#This Row],[Emissionsfaktor (kg CO2e/kg)]]/1000, "k.A.") -> 0
D130: NO | F130: =VLOOKUP(Scope3_THG_Med_Tech_Gase[[#This Row],[Gase]],EF_Scope3_Gase[[Gase]:[Emissionsfaktor (kg CO2e/kg)]],2,FALSE) -> 2.72955 | G130: =IFERROR(Scope3_THG_Med_Tech_Gase[[#This Row],[Menge (kg / Jahr)]]*Scope3_THG_Med_Tech_Gase[[#This Row],[Emissionsfaktor (kg CO2e/kg)]]/1000, "k.A.") -> 0
D131: O2 | F131: =VLOOKUP(Scope3_THG_Med_Tech_Gase[[#This Row],[Gase]],EF_Scope3_Gase[[Gase]:[Emissionsfaktor (kg CO2e/kg)]],2,FALSE) -> 0.55082 | G131: =IFERROR(Scope3_THG_Med_Tech_Gase[[#This Row],[Menge (kg / Jahr)]]*Scope3_THG_Med_Tech_Gase[[#This Row],[Emissionsfaktor (kg CO2e/kg)]]/1000, "k.A.") -> 0
D132: Propan, C₃H₈ | F132: =VLOOKUP(Scope3_THG_Med_Tech_Gase[[#This Row],[Gase]],EF_Scope3_Gase[[Gase]:[Emissionsfaktor (kg CO2e/kg)]],2,FALSE) -> 0.85709 | G132: =IFERROR(Scope3_THG_Med_Tech_Gase[[#This Row],[Menge (kg / Jahr)]]*Scope3_THG_Med_Tech_Gase[[#This Row],[Emissionsfaktor (kg CO2e/kg)]]/1000, "k.A.") -> 0
D133: Propen, C3H6 | F133: =VLOOKUP(Scope3_THG_Med_Tech_Gase[[#This Row],[Gase]],EF_Scope3_Gase[[Gase]:[Emissionsfaktor (kg CO2e/kg)]],2,FALSE) -> 1.50115 | G133: =IFERROR(Scope3_THG_Med_Tech_Gase[[#This Row],[Menge (kg / Jahr)]]*Scope3_THG_Med_Tech_Gase[[#This Row],[Emissionsfaktor (kg CO2e/kg)]]/1000, "k.A.") -> 0
D134: Sevofluran | F134: =VLOOKUP(Scope3_THG_Med_Tech_Gase[[#This Row],[Gase]],EF_Scope3_Gase[[Gase]:[Emissionsfaktor (kg CO2e/kg)]],2,FALSE) -> 269.96556 | G134: =IFERROR(Scope3_THG_Med_Tech_Gase[[#This Row],[Menge (kg / Jahr)]]*Scope3_THG_Med_Tech_Gase[[#This Row],[Emissionsfaktor (kg CO2e/kg)]]/1000, "k.A.") -> 0
D135: Isofluran | F135: =VLOOKUP(Scope3_THG_Med_Tech_Gase[[#This Row],[Gase]],EF_Scope3_Gase[[Gase]:[Emissionsfaktor (kg CO2e/kg)]],2,FALSE) -> 147.52146 | G135: =IFERROR(Scope3_THG_Med_Tech_Gase[[#This Row],[Menge (kg / Jahr)]]*Scope3_THG_Med_Tech_Gase[[#This Row],[Emissionsfaktor (kg CO2e/kg)]]/1000, "k.A.") -> 0
D136: Desfluran | F136: =VLOOKUP(Scope3_THG_Med_Tech_Gase[[#This Row],[Gase]],EF_Scope3_Gase[[Gase]:[Emissionsfaktor (kg CO2e/kg)]],2,FALSE) -> 188.79314 | G136: =IFERROR(Scope3_THG_Med_Tech_Gase[[#This Row],[Menge (kg / Jahr)]]*Scope3_THG_Med_Tech_Gase[[#This Row],[Emissionsfaktor (kg CO2e/kg)]]/1000, "k.A.") -> 0
D137: Summe (Scope 3: med./tech. Gase) | E137: =SUBTOTAL(109,Scope3_THG_Med_Tech_Gase[Menge (kg / Jahr)]) -> 0 | G137: =SUBTOTAL(109,Scope3_THG_Med_Tech_Gase[Ergebnis (t CO2e / Jahr)]) -> 0
D140: Scope 3.1.3 - Eingekaufte medizinische Verbrauchsmaterialien (Top-Down)
D141: Die medizinischen Verbrauchsmaterialien umfassen umfangreiche Materialien und Stoffe sowie Produkte.
D142: Im Rahmen des Projekts ist es nicht mehr möglich, ein Bottom-Up-Ansatz zu entwickeln.
D143: Als Proxy-Berechnung wurde der Emissionsfaktor auf Euro-Basis aus der KliOL-Studie übernommen.
D145: Top-Down-Ansatz (KliOL): Der Emissionsfaktor basiert auf der KliOL-Studie [28]
D146: Medizinische Verbrauchsmaterialien: Top-Down | E146: Euro / Jahr | F146: t CO2-eq/Mio. € | G146: Ergebnis (t CO2e / Jahr)
D147: Einkaufsausgaben | F147: =EF_Medizinische_VM_KliOL -> 315 | G147: =E147/1000000*F147 -> 0
D149: Scope 3.1.4 - Eingekaufte Kältemittel (KM) (Bottom-Up)
D150: Die Dropdownliste stellt 1) spezifische Kältemittel und 2) sonstige allgemeine Kältemittel dar.
D151: Kältemitteltyp | E151: Menge (kg / Jahr) | F151: Emissionsfaktor (kg CO2e / kg ) | G151: Ergebnis (t CO2e / Jahr)
D152: Difluormethan (R-32) | F152: =IFERROR(VLOOKUP(D152,EF_Scope3_KM[[Kältemittel]:[Emissionsfaktor (kg CO2e/kg)]],2,FALSE),"Kältemittel auswählen") -> 5.202 | G152: =IFERROR(Scope3_THG_KM[[#This Row],[Menge (kg / Jahr)]]*Scope3_THG_KM[[#This Row],[Emissionsfaktor (kg CO2e / kg )]]/1000,"k.A.") -> 0
D153: Tetrafluorethan (R-134a) | F153: =IFERROR(VLOOKUP(D153,EF_Scope3_KM[[Kältemittel]:[Emissionsfaktor (kg CO2e/kg)]],2,FALSE),"Kältemittel auswählen") -> 7.968 | G153: =IFERROR(Scope3_THG_KM[[#This Row],[Menge (kg / Jahr)]]*Scope3_THG_KM[[#This Row],[Emissionsfaktor (kg CO2e / kg )]]/1000,"k.A.") -> 0
D154: R-404A | F154: =IFERROR(VLOOKUP(D154,EF_Scope3_KM[[Kältemittel]:[Emissionsfaktor (kg CO2e/kg)]],2,FALSE),"Kältemittel auswählen") -> 11.35 | G154: =IFERROR(Scope3_THG_KM[[#This Row],[Menge (kg / Jahr)]]*Scope3_THG_KM[[#This Row],[Emissionsfaktor (kg CO2e / kg )]]/1000,"k.A.") -> 0
D155: R-407C | F155: =IFERROR(VLOOKUP(D155,EF_Scope3_KM[[Kältemittel]:[Emissionsfaktor (kg CO2e/kg)]],2,FALSE),"Kältemittel auswählen") -> 9.67 | G155: =IFERROR(Scope3_THG_KM[[#This Row],[Menge (kg / Jahr)]]*Scope3_THG_KM[[#This Row],[Emissionsfaktor (kg CO2e / kg )]]/1000,"k.A.") -> 0
D156: R-410A | F156: =IFERROR(VLOOKUP(D156,EF_Scope3_KM[[Kältemittel]:[Emissionsfaktor (kg CO2e/kg)]],2,FALSE),"Kältemittel auswählen") -> 10.43 | G156: =IFERROR(Scope3_THG_KM[[#This Row],[Menge (kg / Jahr)]]*Scope3_THG_KM[[#This Row],[Emissionsfaktor (kg CO2e / kg )]]/1000,"k.A.") -> 0
D157: Sonstige KM als Kältemittel-Mischung | F157: =IFERROR(VLOOKUP(D157,EF_Scope3_KM[[Kältemittel]:[Emissionsfaktor (kg CO2e/kg)]],2,FALSE),"Kältemittel auswählen") -> 10.48333333 | G157: =IFERROR(Scope3_THG_KM[[#This Row],[Menge (kg / Jahr)]]*Scope3_THG_KM[[#This Row],[Emissionsfaktor (kg CO2e / kg )]]/1000,"k.A.") -> 0
D158: Summe (Kältemittel) | E158: =SUBTOTAL(109,Scope3_THG_KM[Menge (kg / Jahr)]) -> 0 | G158: =SUBTOTAL(109,Scope3_THG_KM[Ergebnis (t CO2e / Jahr)]) -> 0
D161: Scope 3.1.5 - Eingekaufte Lebensmittel
D162: Auswahl der Berechnungsmethode | E162: Option 1: Bottom-Up
D163: Option 1 (Bottom-Up): Sie können das gesamte Gewicht der eingekauften Lebensmittel nach Lebensmittelgruppen ermitteln.
D164: Option 2 (Top-Down): Nur Einkaufsausgaben in Euro liegen vor.
D165: Option 1
D166: Lebensmittelgruppe | E166: Untergruppe | F166: Menge (kg/Jahr) | G166: Emissionsfaktor (kg CO2e / kg ) | H166: Ergebnis (t CO2e / Jahr)
D167: Getreideprodukte | E167: Getreide/Cerealien, Mehl, Teige, Teigwaren, Salzgebäck | G167: =VLOOKUP(Scope3_THG_Lebensmittel[[#This Row],[Untergruppe]],EF_Scope3_Lebensmittel[[Untergruppe]:[Emissionsfaktor (kg CO2e/kg)]],2,FALSE) -> 0.6875 | H167: =IFERROR(Scope3_THG_Lebensmittel[[#This Row],[Menge (kg/Jahr)]]*Scope3_THG_Lebensmittel[[#This Row],[Emissionsfaktor (kg CO2e / kg )]]/1000,"k.A.") -> 0
D168: Getreideprodukte | E168: Dauerbackwaren, Gebäck/Feingebäck, Kuchen, Torten | G168: =VLOOKUP(Scope3_THG_Lebensmittel[[#This Row],[Untergruppe]],EF_Scope3_Lebensmittel[[Untergruppe]:[Emissionsfaktor (kg CO2e/kg)]],2,FALSE) -> 1.6 | H168: =IFERROR(Scope3_THG_Lebensmittel[[#This Row],[Menge (kg/Jahr)]]*Scope3_THG_Lebensmittel[[#This Row],[Emissionsfaktor (kg CO2e / kg )]]/1000,"k.A.") -> 0
D169: Getreideprodukte | E169: Reis | G169: =VLOOKUP(Scope3_THG_Lebensmittel[[#This Row],[Untergruppe]],EF_Scope3_Lebensmittel[[Untergruppe]:[Emissionsfaktor (kg CO2e/kg)]],2,FALSE) -> 3.1 | H169: =IFERROR(Scope3_THG_Lebensmittel[[#This Row],[Menge (kg/Jahr)]]*Scope3_THG_Lebensmittel[[#This Row],[Emissionsfaktor (kg CO2e / kg )]]/1000,"k.A.") -> 0
D170: Fleisch | E170: Rind/Kalb | G170: =VLOOKUP(Scope3_THG_Lebensmittel[[#This Row],[Untergruppe]],EF_Scope3_Lebensmittel[[Untergruppe]:[Emissionsfaktor (kg CO2e/kg)]],2,FALSE) -> 13.6 | H170: =IFERROR(Scope3_THG_Lebensmittel[[#This Row],[Menge (kg/Jahr)]]*Scope3_THG_Lebensmittel[[#This Row],[Emissionsfaktor (kg CO2e / kg )]]/1000,"k.A.") -> 0
D171: Fleisch | E171: Schwein | G171: =VLOOKUP(Scope3_THG_Lebensmittel[[#This Row],[Untergruppe]],EF_Scope3_Lebensmittel[[Untergruppe]:[Emissionsfaktor (kg CO2e/kg)]],2,FALSE) -> 4.6 | H171: =IFERROR(Scope3_THG_Lebensmittel[[#This Row],[Menge (kg/Jahr)]]*Scope3_THG_Lebensmittel[[#This Row],[Emissionsfaktor (kg CO2e / kg )]]/1000,"k.A.") -> 0
D172: Fleisch | E172: Geflügel | G172: =VLOOKUP(Scope3_THG_Lebensmittel[[#This Row],[Untergruppe]],EF_Scope3_Lebensmittel[[Untergruppe]:[Emissionsfaktor (kg CO2e/kg)]],2,FALSE) -> 5.5 | H172: =IFERROR(Scope3_THG_Lebensmittel[[#This Row],[Menge (kg/Jahr)]]*Scope3_THG_Lebensmittel[[#This Row],[Emissionsfaktor (kg CO2e / kg )]]/1000,"k.A.") -> 0
D173: Fleisch | E173: Schaf/Ziege/Lamm | G173: =VLOOKUP(Scope3_THG_Lebensmittel[[#This Row],[Untergruppe]],EF_Scope3_Lebensmittel[[Untergruppe]:[Emissionsfaktor (kg CO2e/kg)]],2,FALSE) -> 10.85 | H173: =IFERROR(Scope3_THG_Lebensmittel[[#This Row],[Menge (kg/Jahr)]]*Scope3_THG_Lebensmittel[[#This Row],[Emissionsfaktor (kg CO2e / kg )]]/1000,"k.A.") -> 0
D174: Fleisch | E174: Wild | G174: =VLOOKUP(Scope3_THG_Lebensmittel[[#This Row],[Untergruppe]],EF_Scope3_Lebensmittel[[Untergruppe]:[Emissionsfaktor (kg CO2e/kg)]],2,FALSE) -> 11.5 | H174: =IFERROR(Scope3_THG_Lebensmittel[[#This Row],[Menge (kg/Jahr)]]*Scope3_THG_Lebensmittel[[#This Row],[Emissionsfaktor (kg CO2e / kg )]]/1000,"k.A.") -> 0
D175: Fisch | E175: Fisch | G175: =VLOOKUP(Scope3_THG_Lebensmittel[[#This Row],[Untergruppe]],EF_Scope3_Lebensmittel[[Untergruppe]:[Emissionsfaktor (kg CO2e/kg)]],2,FALSE) -> 5.375 | H175: =IFERROR(Scope3_THG_Lebensmittel[[#This Row],[Menge (kg/Jahr)]]*Scope3_THG_Lebensmittel[[#This Row],[Emissionsfaktor (kg CO2e / kg )]]/1000,"k.A.") -> 0
D176: Fisch | E176: Meeresfrüchte | G176: =VLOOKUP(Scope3_THG_Lebensmittel[[#This Row],[Untergruppe]],EF_Scope3_Lebensmittel[[Untergruppe]:[Emissionsfaktor (kg CO2e/kg)]],2,FALSE) -> 12.5 | H176: =IFERROR(Scope3_THG_Lebensmittel[[#This Row],[Menge (kg/Jahr)]]*Scope3_THG_Lebensmittel[[#This Row],[Emissionsfaktor (kg CO2e / kg )]]/1000,"k.A.") -> 0
D177: Milchprodukte | E177: Butter | G177: =VLOOKUP(Scope3_THG_Lebensmittel[[#This Row],[Untergruppe]],EF_Scope3_Lebensmittel[[Untergruppe]:[Emissionsfaktor (kg CO2e/kg)]],2,FALSE) -> 9 | H177: =IFERROR(Scope3_THG_Lebensmittel[[#This Row],[Menge (kg/Jahr)]]*Scope3_THG_Lebensmittel[[#This Row],[Emissionsfaktor (kg CO2e / kg )]]/1000,"k.A.") -> 0
D178: Milchprodukte | E178: Milch und Joghurt | G178: =VLOOKUP(Scope3_THG_Lebensmittel[[#This Row],[Untergruppe]],EF_Scope3_Lebensmittel[[Untergruppe]:[Emissionsfaktor (kg CO2e/kg)]],2,FALSE) -> 1.4 | H178: =IFERROR(Scope3_THG_Lebensmittel[[#This Row],[Menge (kg/Jahr)]]*Scope3_THG_Lebensmittel[[#This Row],[Emissionsfaktor (kg CO2e / kg )]]/1000,"k.A.") -> 0
D179: Milchprodukte | E179: Käse | G179: =VLOOKUP(Scope3_THG_Lebensmittel[[#This Row],[Untergruppe]],EF_Scope3_Lebensmittel[[Untergruppe]:[Emissionsfaktor (kg CO2e/kg)]],2,FALSE) -> 6.371428571 | H179: =IFERROR(Scope3_THG_Lebensmittel[[#This Row],[Menge (kg/Jahr)]]*Scope3_THG_Lebensmittel[[#This Row],[Emissionsfaktor (kg CO2e / kg )]]/1000,"k.A.") -> 0
D180: Milchprodukte | E180: Sahne&Quark | G180: =VLOOKUP(Scope3_THG_Lebensmittel[[#This Row],[Untergruppe]],EF_Scope3_Lebensmittel[[Untergruppe]:[Emissionsfaktor (kg CO2e/kg)]],2,FALSE) -> 3.716666667 | H180: =IFERROR(Scope3_THG_Lebensmittel[[#This Row],[Menge (kg/Jahr)]]*Scope3_THG_Lebensmittel[[#This Row],[Emissionsfaktor (kg CO2e / kg )]]/1000,"k.A.") -> 0
D181: Eier | E181: Eier | G181: =VLOOKUP(Scope3_THG_Lebensmittel[[#This Row],[Untergruppe]],EF_Scope3_Lebensmittel[[Untergruppe]:[Emissionsfaktor (kg CO2e/kg)]],2,FALSE) -> 3 | H181: =IFERROR(Scope3_THG_Lebensmittel[[#This Row],[Menge (kg/Jahr)]]*Scope3_THG_Lebensmittel[[#This Row],[Emissionsfaktor (kg CO2e / kg )]]/1000,"k.A.") -> 0
D182: Gemüse_Obst_Schalenfrüchte | E182: Obst/Gemüse frisch | G182: =VLOOKUP(Scope3_THG_Lebensmittel[[#This Row],[Untergruppe]],EF_Scope3_Lebensmittel[[Untergruppe]:[Emissionsfaktor (kg CO2e/kg)]],2,FALSE) -> 0.3775 | H182: =IFERROR(Scope3_THG_Lebensmittel[[#This Row],[Menge (kg/Jahr)]]*Scope3_THG_Lebensmittel[[#This Row],[Emissionsfaktor (kg CO2e / kg )]]/1000,"k.A.") -> 0
D183: Gemüse_Obst_Schalenfrüchte | E183: Obst/Gemüse TK | G183: =VLOOKUP(Scope3_THG_Lebensmittel[[#This Row],[Untergruppe]],EF_Scope3_Lebensmittel[[Untergruppe]:[Emissionsfaktor (kg CO2e/kg)]],2,FALSE) -> 0.76 | H183: =IFERROR(Scope3_THG_Lebensmittel[[#This Row],[Menge (kg/Jahr)]]*Scope3_THG_Lebensmittel[[#This Row],[Emissionsfaktor (kg CO2e / kg )]]/1000,"k.A.") -> 0
D184: Gemüse_Obst_Schalenfrüchte | E184: Obst/Gemüse Dose/Glas | G184: =VLOOKUP(Scope3_THG_Lebensmittel[[#This Row],[Untergruppe]],EF_Scope3_Lebensmittel[[Untergruppe]:[Emissionsfaktor (kg CO2e/kg)]],2,FALSE) -> 1.521428571 | H184: =IFERROR(Scope3_THG_Lebensmittel[[#This Row],[Menge (kg/Jahr)]]*Scope3_THG_Lebensmittel[[#This Row],[Emissionsfaktor (kg CO2e / kg )]]/1000,"k.A.") -> 0
D185: Gemüse_Obst_Schalenfrüchte | E185: Obst/Gemüse trocken | G185: =VLOOKUP(Scope3_THG_Lebensmittel[[#This Row],[Untergruppe]],EF_Scope3_Lebensmittel[[Untergruppe]:[Emissionsfaktor (kg CO2e/kg)]],2,FALSE) -> 1.733333333 | H185: =IFERROR(Scope3_THG_Lebensmittel[[#This Row],[Menge (kg/Jahr)]]*Scope3_THG_Lebensmittel[[#This Row],[Emissionsfaktor (kg CO2e / kg )]]/1000,"k.A.") -> 0
D186: Gemüse_Obst_Schalenfrüchte | E186: Schalenfrüchte (Nüsse, Mandeln) | G186: =VLOOKUP(Scope3_THG_Lebensmittel[[#This Row],[Untergruppe]],EF_Scope3_Lebensmittel[[Untergruppe]:[Emissionsfaktor (kg CO2e/kg)]],2,FALSE) -> 1.15 | H186: =IFERROR(Scope3_THG_Lebensmittel[[#This Row],[Menge (kg/Jahr)]]*Scope3_THG_Lebensmittel[[#This Row],[Emissionsfaktor (kg CO2e / kg )]]/1000,"k.A.") -> 0
D187: Fette_Öle | E187: Fette/Öle | G187: =VLOOKUP(Scope3_THG_Lebensmittel[[#This Row],[Untergruppe]],EF_Scope3_Lebensmittel[[Untergruppe]:[Emissionsfaktor (kg CO2e/kg)]],2,FALSE) -> 3 | H187: =IFERROR(Scope3_THG_Lebensmittel[[#This Row],[Menge (kg/Jahr)]]*Scope3_THG_Lebensmittel[[#This Row],[Emissionsfaktor (kg CO2e / kg )]]/1000,"k.A.") -> 0
D188: Getränke | E188: Kaffee-/Kakaopulver | G188: =VLOOKUP(Scope3_THG_Lebensmittel[[#This Row],[Untergruppe]],EF_Scope3_Lebensmittel[[Untergruppe]:[Emissionsfaktor (kg CO2e/kg)]],2,FALSE) -> 5.3 | H188: =IFERROR(Scope3_THG_Lebensmittel[[#This Row],[Menge (kg/Jahr)]]*Scope3_THG_Lebensmittel[[#This Row],[Emissionsfaktor (kg CO2e / kg )]]/1000,"k.A.") -> 0
D189: Getränke | E189: Beuteltee | G189: =VLOOKUP(Scope3_THG_Lebensmittel[[#This Row],[Untergruppe]],EF_Scope3_Lebensmittel[[Untergruppe]:[Emissionsfaktor (kg CO2e/kg)]],2,FALSE) -> 3.48 | H189: =IFERROR(Scope3_THG_Lebensmittel[[#This Row],[Menge (kg/Jahr)]]*Scope3_THG_Lebensmittel[[#This Row],[Emissionsfaktor (kg CO2e / kg )]]/1000,"k.A.") -> 0
D190: Getränke | E190: Bier/Wein | G190: =VLOOKUP(Scope3_THG_Lebensmittel[[#This Row],[Untergruppe]],EF_Scope3_Lebensmittel[[Untergruppe]:[Emissionsfaktor (kg CO2e/kg)]],2,FALSE) -> 0.9666666667 | H190: =IFERROR(Scope3_THG_Lebensmittel[[#This Row],[Menge (kg/Jahr)]]*Scope3_THG_Lebensmittel[[#This Row],[Emissionsfaktor (kg CO2e / kg )]]/1000,"k.A.") -> 0
D191: Getränke | E191: Säfte | G191: =VLOOKUP(Scope3_THG_Lebensmittel[[#This Row],[Untergruppe]],EF_Scope3_Lebensmittel[[Untergruppe]:[Emissionsfaktor (kg CO2e/kg)]],2,FALSE) -> 0.45 | H191: =IFERROR(Scope3_THG_Lebensmittel[[#This Row],[Menge (kg/Jahr)]]*Scope3_THG_Lebensmittel[[#This Row],[Emissionsfaktor (kg CO2e / kg )]]/1000,"k.A.") -> 0
D192: Getränke | E192: Milchersatz-Drinks | G192: =VLOOKUP(Scope3_THG_Lebensmittel[[#This Row],[Untergruppe]],EF_Scope3_Lebensmittel[[Untergruppe]:[Emissionsfaktor (kg CO2e/kg)]],2,FALSE) -> 0.325 | H192: =IFERROR(Scope3_THG_Lebensmittel[[#This Row],[Menge (kg/Jahr)]]*Scope3_THG_Lebensmittel[[#This Row],[Emissionsfaktor (kg CO2e / kg )]]/1000,"k.A.") -> 0
D193: Getränke | E193: Mineralwasser | G193: =VLOOKUP(Scope3_THG_Lebensmittel[[#This Row],[Untergruppe]],EF_Scope3_Lebensmittel[[Untergruppe]:[Emissionsfaktor (kg CO2e/kg)]],2,FALSE) -> 0.2 | H193: =IFERROR(Scope3_THG_Lebensmittel[[#This Row],[Menge (kg/Jahr)]]*Scope3_THG_Lebensmittel[[#This Row],[Emissionsfaktor (kg CO2e / kg )]]/1000,"k.A.") -> 0
D194: Babynahrung_Sondennahrung | E194: Baby- und Sondennahrung | G194: =VLOOKUP(Scope3_THG_Lebensmittel[[#This Row],[Untergruppe]],EF_Scope3_Lebensmittel[[Untergruppe]:[Emissionsfaktor (kg CO2e/kg)]],2,FALSE) -> 1.460714286 | H194: =IFERROR(Scope3_THG_Lebensmittel[[#This Row],[Menge (kg/Jahr)]]*Scope3_THG_Lebensmittel[[#This Row],[Emissionsfaktor (kg CO2e / kg )]]/1000,"k.A.") -> 0
D195: Süßwaren | E195: Schokoladenwaren | G195: =VLOOKUP(Scope3_THG_Lebensmittel[[#This Row],[Untergruppe]],EF_Scope3_Lebensmittel[[Untergruppe]:[Emissionsfaktor (kg CO2e/kg)]],2,FALSE) -> 4.1 | H195: =IFERROR(Scope3_THG_Lebensmittel[[#This Row],[Menge (kg/Jahr)]]*Scope3_THG_Lebensmittel[[#This Row],[Emissionsfaktor (kg CO2e / kg )]]/1000,"k.A.") -> 0
D196: Süßwaren | E196: Sonstige | G196: =VLOOKUP(Scope3_THG_Lebensmittel[[#This Row],[Untergruppe]],EF_Scope3_Lebensmittel[[Untergruppe]:[Emissionsfaktor (kg CO2e/kg)]],2,FALSE) -> 1.05 | H196: =IFERROR(Scope3_THG_Lebensmittel[[#This Row],[Menge (kg/Jahr)]]*Scope3_THG_Lebensmittel[[#This Row],[Emissionsfaktor (kg CO2e / kg )]]/1000,"k.A.") -> 0
D197: Gewürze | E197: Zucker | G197: =VLOOKUP(Scope3_THG_Lebensmittel[[#This Row],[Untergruppe]],EF_Scope3_Lebensmittel[[Untergruppe]:[Emissionsfaktor (kg CO2e/kg)]],2,FALSE) -> 0.78934 | H197: =IFERROR(Scope3_THG_Lebensmittel[[#This Row],[Menge (kg/Jahr)]]*Scope3_THG_Lebensmittel[[#This Row],[Emissionsfaktor (kg CO2e / kg )]]/1000,"k.A.") -> 0
D198: Gewürze | E198: Salz | G198: =VLOOKUP(Scope3_THG_Lebensmittel[[#This Row],[Untergruppe]],EF_Scope3_Lebensmittel[[Untergruppe]:[Emissionsfaktor (kg CO2e/kg)]],2,FALSE) -> 0.1886 | H198: =IFERROR(Scope3_THG_Lebensmittel[[#This Row],[Menge (kg/Jahr)]]*Scope3_THG_Lebensmittel[[#This Row],[Emissionsfaktor (kg CO2e / kg )]]/1000,"k.A.") -> 0
D199: Gewürze | E199: Sonstige | G199: =VLOOKUP(Scope3_THG_Lebensmittel[[#This Row],[Untergruppe]],EF_Scope3_Lebensmittel[[Untergruppe]:[Emissionsfaktor (kg CO2e/kg)]],2,FALSE) -> 1.05 | H199: =IFERROR(Scope3_THG_Lebensmittel[[#This Row],[Menge (kg/Jahr)]]*Scope3_THG_Lebensmittel[[#This Row],[Emissionsfaktor (kg CO2e / kg )]]/1000,"k.A.") -> 0
D200: Sonstige | E200: Sonstige, fleischhaltig | G200: =VLOOKUP(Scope3_THG_Lebensmittel[[#This Row],[Untergruppe]],EF_Scope3_Lebensmittel[[Untergruppe]:[Emissionsfaktor (kg CO2e/kg)]],2,FALSE) -> 3.567247024 | H200: =IFERROR(Scope3_THG_Lebensmittel[[#This Row],[Menge (kg/Jahr)]]*Scope3_THG_Lebensmittel[[#This Row],[Emissionsfaktor (kg CO2e / kg )]]/1000,"k.A.") -> 0
D201: Sonstige | E201: Sonstige, Vegetarisch/Vegan | G201: =VLOOKUP(Scope3_THG_Lebensmittel[[#This Row],[Untergruppe]],EF_Scope3_Lebensmittel[[Untergruppe]:[Emissionsfaktor (kg CO2e/kg)]],2,FALSE) -> 1.127604167 | H201: =IFERROR(Scope3_THG_Lebensmittel[[#This Row],[Menge (kg/Jahr)]]*Scope3_THG_Lebensmittel[[#This Row],[Emissionsfaktor (kg CO2e / kg )]]/1000,"k.A.") -> 0
D202: Ergebnis | F202: =SUBTOTAL(109,Scope3_THG_Lebensmittel[Menge (kg/Jahr)]) -> 0 | H202: =SUBTOTAL(109,Scope3_THG_Lebensmittel[Ergebnis (t CO2e / Jahr)]) -> 0
D204: Option 2
D205: Lebensmittel: Top-Down | E205: Euro / Jahr | F205: Emissionsfaktor (kg CO2e/Euro) | G205: Ergebnis (t CO2e / Jahr)
D206: Einkaufsausgaben für Lebensmittel | F206: =EF!D328 -> 0.7662168256 | G206: =E206*F206/1000 -> 0
D209: Scope 3.1.6 - Eingekaufte Textilien
D210: Auswahl der Berechnungsmethode
D211: Option 1 (Bottom-Up): Sie können das gesamte Gewicht der Textilien ermitteln. Die Aufteilung der Materialtypen können Sie entweder durch eigene spezifische Daten oder durch Defaultwerte angeben.
D212: Option 2 (Top-Down): Nur Einkaufsausgaben in Euro liegen vor.
D213: Option 1
D214: Gesamtgewicht | F214: kg / Jahr
J215: =_xlfn.UNICHAR(9733)&"Helpdesk" -> ★Helpdesk | K215: Defaultwerte (Cafoges)
D216: Materialien | E216: Anteil in % | F216: kg / Jahr | G216: Emissionsfaktor (kg CO2e/kg) | H216: Ergebnis (t CO2e / Jahr) | J216: Materialien | K216: Anteil in %
C217: i | D217: Acrylstoffe | E217: 0 | F217: =E217*$E$214 -> 0 | G217: =VLOOKUP(D217,EF_Scope3_Textile[[Textilien]:[Emissionsfaktor (kg CO2e/kg)]],2,FALSE) -> 35.7 | H217: =IFERROR(F217*G217/1000,"k.A.") -> 0 | J217: Acrylstoffe | K217: 0
D218: Baumwolle | E218: 0.737 | F218: 0 | G218: =VLOOKUP(D218,EF_Scope3_Textile[[Textilien]:[Emissionsfaktor (kg CO2e/kg)]],2,FALSE) -> 22.7 | H218: =IFERROR(F218*G218/1000,"k.A.") -> 0 | J218: Baumwolle | K218: 0.737
D219: Flachs/Leinen | E219: 0.006 | F219: 0 | G219: =VLOOKUP(D219,EF_Scope3_Textile[[Textilien]:[Emissionsfaktor (kg CO2e/kg)]],2,FALSE) -> 25.9 | H219: 0 | J219: Flachs/Leinen | K219: 0.006
D220: PA6 (Nylon) | E220: 0 | F220: 0 | G220: =VLOOKUP(D220,EF_Scope3_Textile[[Textilien]:[Emissionsfaktor (kg CO2e/kg)]],2,FALSE) -> 30.9 | H220: 0 | J220: PA6 | K220: 0
D221: Polyester | E221: 0.231 | F221: 0 | G221: =VLOOKUP(D221,EF_Scope3_Textile[[Textilien]:[Emissionsfaktor (kg CO2e/kg)]],2,FALSE) -> 27.2 | H221: 0 | J221: Polyester | K221: 0.231
D222: Poplypropylen | E222: 0 | F222: 0 | G222: =VLOOKUP(D222,EF_Scope3_Textile[[Textilien]:[Emissionsfaktor (kg CO2e/kg)]],2,FALSE) -> 25.5 | H222: 0 | J222: Poplypropylen | K222: 0
D223: Seide | E223: 0 | F223: 0 | G223: =VLOOKUP(D223,EF_Scope3_Textile[[Textilien]:[Emissionsfaktor (kg CO2e/kg)]],2,FALSE) -> 14.9 | H223: 0 | J223: Seide | K223: 0
D224: Viskose | E224: 0.026 | F224: 0 | G224: =VLOOKUP(D224,EF_Scope3_Textile[[Textilien]:[Emissionsfaktor (kg CO2e/kg)]],2,FALSE) -> 23 | H224: 0 | J224: Viskose | K224: 0.026
D225: Wollstoff | E225: 0 | F225: 0 | G225: =VLOOKUP(D225,EF_Scope3_Textile[[Textilien]:[Emissionsfaktor (kg CO2e/kg)]],2,FALSE) -> 19.5 | H225: 0 | J225: Wollstoff | K225: 0
D226: Summe: Textilien | E226: =SUBTOTAL(109,Scope3_THG_Textile[Anteil in %]) -> 1 | F226: =SUBTOTAL(109,Scope3_THG_Textile[kg / Jahr]) -> 0 | H226: =SUBTOTAL(109,Scope3_THG_Textile[Ergebnis (t CO2e / Jahr)]) -> 0
D228: Option 2
D229: Textilien: Top-Down | E229: Euro / Jahr | F229: Emissionsfaktor (kg CO2e/Euro) | G229: Ergebnis (t CO2e / Jahr)
D230: Einkaufsausgaben für Textilien | F230: =EF!D343 -> 3.759538217 | G230: =$F$230*$E$230/1000 -> 0
D233: Scope 3.1.7 - Eingekaufte Hygieneartikel & Reinigungsmittel
D234: Auswahl der Berechnungsmethode
D235: Option 1 (Bottom-Up): Sie können die Gewichte der unten dargestellten Kategorien ermitteln.
D236: Option 2 (Top-Down): Nur Einkaufsausgaben in Euro liegen vor.
... 329 more rows

Sheet Ergebnisse
C7: Name der Organisation: | D7: =Eckdaten!$C$7 -> Klinikum ###
C8: Bilanzzeitraum: | D8: =IF(OR(ISBLANK(Eckdaten!$C$21),ISBLANK(Eckdaten!$C$22)),"Bilanzzeitraum im Blatt Eckdaten noch nicht definiert",TEXT(Eckdaten!$C$21, "TT.MM.JJJJ") &" - " &TEXT(Eckdaten!$C$22, "TT.MM.JJJJ")) -> Bilanzzeitraum im Blatt Eckdaten noch nicht definiert
C10: 1. Gesamte absolute und normierte GWP-Ergebnisse
C11: Gesamtergebnisse unter ortsbezogenem Ansatz für Scope 2 | L11: Gesamtergebnisse unter marktbasiertem Ansatz für Scope 2
C12: Summe : | D12: =Total_Summe_Ort -> 0 | E12: [t CO2e] | L12: Summe : | M12: =Total_Summe_Markt -> 0 | N12: [t CO2e]
C13: =D7&": "&Ergebnisse!$C$14 & " [t CO2e]" -> Klinikum ###: Bilanzjahr 1900 [t CO2e] | L13: =C13 -> Klinikum ###: Bilanzjahr 1900 [t CO2e]
C14: ="Bilanzjahr " & TEXT(Eckdaten!$C$21,"JJJJ") -> Bilanzjahr 1900 | D14: t CO2e / Jahr | E14: Anteil in % | L14: ="Bilanzjahr " & TEXT(Eckdaten!$C$21,"JJJJ") -> Bilanzjahr 1900 | M14: t CO2e / Jahr | N14: Anteil in %
C15: Scope 1 | D15: =IF(ISNUMBER(Summe_Scope_1),Summe_Scope_1,"k.A.") -> 0 | E15: =IFERROR(D15/$D$18,"k.A.") -> k.A. | L15: Scope 1 | M15: =IF(ISNUMBER(Summe_Scope_1),Summe_Scope_1,"k.A.") -> 0 | N15: =IFERROR(M15/$M$18,"k.A.") -> k.A.
C16: Scope 2 (Ortsbezogener Ansatz) | D16: =IF(ISNUMBER(Summe_Scope_2_Mix),Summe_Scope_2_Mix,"k.A.") -> 0 | E16: =IFERROR(D16/$D$18,"k.A.") -> k.A. | L16: Scope 2 (Marktbasierter Ansatz) | M16: =IF(ISNUMBER(Summe_Scope_2_spezifisch),Summe_Scope_2_spezifisch,"k.A.") -> k.A. | N16: =IFERROR(M16/$M$18,"k.A.") -> k.A.
C17: Scope 3 | D17: =IF(ISNUMBER(Summe_Scope_3),Summe_Scope_3,"k.A.") -> 0 | E17: k.A. | L17: Scope 3 | M17: =IF(ISNUMBER(Summe_Scope_3),Summe_Scope_3,"k.A.") -> 0 | N17: k.A.
C18: Summe | D18: =SUM(D15:D17) -> 0 | E18: =SUM(E15:E17) -> 0 | L18: Summe | M18: =SUM(M15:M17) -> 0 | N18: =SUM(N15:N17) -> 0
C20: Die unten gezeigten normierten Parameter ermöglichen die GWP-Ergebnisse nach Leistung besser zu verstehen oder einer Bewertung gegenüber einem bestimmten Benchmark zu vergleichen.
C21: Normierung | D21: Normierte Parameter | E21: Normierte Gesamtergebnisse | L21: =C21 -> Normierung | M21: =D21 -> Normierte Parameter | N21: =E21 -> Normierte Gesamtergebnisse
C22: Normiert nach Anzahl der Mitarbeiter*innen | D22: =IF(Anzahl_Mitarbeiterinnen,Anzahl_Mitarbeiterinnen,"k.A.") -> k.A. | E22: =IFERROR(Total_Summe_Ort/$D$22,"k.A") -> k.A | L22: =C22 -> Normiert nach Anzahl der Mitarbeiter*innen | M22: =D22 -> k.A. | N22: =IFERROR(Total_Summe_Markt/$M$22,"k.A.") -> k.A.
C23: Normiert nach Anzahl der Planbetten | D23: =IF(Anzahl_der_Planbetten,Anzahl_der_Planbetten,"k.A.") -> k.A. | E23: =IFERROR(Total_Summe_Ort/$D$23,"k.A") -> k.A | L23: =C23 -> Normiert nach Anzahl der Planbetten | M23: =D23 -> k.A. | N23: =IFERROR(Total_Summe_Markt/$M$23,"k.A") -> k.A
C24: Normiert nach Anzahl der belegten Betten | D24: =IF(Anzahl_der_belegten_Betten,Anzahl_der_belegten_Betten,"k.A.") -> k.A. | E24: =IFERROR(Total_Summe_Ort/$D$24,"k.A") -> k.A | L24: =C24 -> Normiert nach Anzahl der belegten Betten | M24: k.A. | N24: =IFERROR(Total_Summe_Markt/$M$24,"k.A") -> k.A
C25: Normieren nach Anzahl der Patient*innen | D25: =IF(Anzahl_der_Patientinnen,Anzahl_der_Patientinnen,"k.A.") -> k.A. | E25: =IFERROR(Total_Summe_Ort/$D$25,"k.A") -> k.A | L25: =C25 -> Normieren nach Anzahl der Patient*innen | M25: =D25 -> k.A. | N25: =IFERROR(Total_Summe_Markt/$M$25,"k.A") -> k.A
C45: 2. Aufteilung der GWP-Ergebnisse
C46: Aufteilung der Ergebnisse (unter ortsbezogenem Ansatz für Scope 2) | L46: Aufteilung der Ergebnisse (unter marktbasiertem Ansatz für Scope 2)
C47: Scope | G47: t CO2e / Jahr | H47: Anteil in % am Gesamtergebnis | L47: Scope | P47: t CO2e / Jahr | Q47: Anteil in % am Gesamtergebnis
C48: =Scope_1!$B$10 -> Scope 1.1 - Direkte Emissionen aus Verbrennungsprozessen stationärer Anlagen (selbst produzierte Energie) | G48: =IF(Scope1_1_Ja_Nein="Nein",0,IF(Option_Auswahl_S1_1="Option 1",Result_Scope1_1_Option1,Result_Scope1_1_Option2)) -> 0 | H48: =IFERROR(G48/Total_Summe_Ort,"k.A.") -> k.A. | L48: =C48 -> Scope 1.1 - Direkte Emissionen aus Verbrennungsprozessen stationärer Anlagen (selbst produzierte Energie) | P48: =IF(Scope1_1_Ja_Nein="Nein",0,IF(Option_Auswahl_S1_1="Option 1",Result_Scope1_1_Option1,Result_Scope1_1_Option2)) -> 0 | Q48: =IFERROR(P48/Total_Summe_Markt,"k.A.") -> k.A.
C49: =Scope_1!$B$50 -> Scope 1.2 - Direkte Emissionen aus Verbrennungsprozessen mobiler Anlagen | G49: =Result_Scope1_2_Fuhrpark -> 0 | H49: k.A. | L49: Scope 1.2 - Direkte Emissionen aus Verbrennungsprozessen mobiler Anlagen | P49: =Result_Scope1_2_Fuhrpark -> 0 | Q49: k.A.
C50: =Scope_1!$B$68 -> Scope 1.3 - Direkte Emissionen aus Kältemittelverlusten | G50: =Result_Scope1_3_KM -> 0 | H50: k.A. | L50: Scope 1.3 - Direkte Emissionen aus Kältemittelverlusten | P50: =Result_Scope1_3_KM -> 0 | Q50: k.A.
C51: =Scope_1!$B$82 -> Scope 1.4 - Direkte Emissionen aus medizinischen & technischen flüchtigen Gasen | G51: =Result_Scope1_4_Medi_Gase+ Result_Scope1_4_Analyse_Gase -> 0 | H51: k.A. | L51: Scope 1.4 - Direkte Emissionen aus medizinischen & technischen flüchtigen Gasen | P51: =Result_Scope1_4_Medi_Gase+ Result_Scope1_4_Analyse_Gase -> 0 | Q51: k.A.
C52: Scope 2.1 - Indirekte Emissionen aus eingekaufter Energie (Strom, Wärme, Kälte, Dampf) | G52: =Result_Scope2_Ortsb_Mix -> 0 | H52: k.A. | L52: Scope 2.1 - Indirekte Emissionen aus eingekaufter Energie (Strom, Wärme, Kälte, Dampf) | P52: =Summe_Scope_2_spezifisch -> Auswahl der Option; s.Zeile D41 | Q52: k.A.
C53: =Scope_3!$D$15 &" (" &Auswahl_Methode_Medikamente&")" -> Scope 3.1.1 - Eingekaufte Medikamente (Option 1: Hybrid) | G53: =IF(Auswahl_Methode_Medikamente="Option 1: Hybrid",Result_Scope3_Medikamente_Option1,(IF(Auswahl_Methode_Medikamente="Option 2: Top-Down (CDP)",Result_Scope3_Medikamente_Option2,Result_Scope3_Medikamente_Option3))) -> 0 | H53: k.A. | L53: Scope 3.1.1 - Eingekaufte Medikamente (Option 1: Hybrid) | P53: =IF(Auswahl_Methode_Medikamente="Option 1: Hybrid",Result_Scope3_Medikamente_Option1,(IF(Auswahl_Methode_Medikamente="Option 2: Top-Down (CDP)",Result_Scope3_Medikamente_Option2,Result_Scope3_Medikamente_Option3))) -> 0 | Q53: k.A.
C54: =Scope_3!$D$118 -> Scope 3.1.2 - Eingekaufte medizinische & technische Gase (Bottom-Up) | G54: =Result_Scope3_Gase -> 0 | H54: k.A. | L54: Scope 3.1.2 - Eingekaufte medizinische & technische Gase (Bottom-Up) | P54: =Result_Scope3_Gase -> 0 | Q54: k.A.
C55: =Scope_3.1.3_Med_Verbrauchsmaterialien -> Scope 3.1.3 - Eingekaufte medizinische Verbrauchsmaterialien (Top-Down) | G55: =Result_Scope3_MedizinischVM_Option3 -> 0 | H55: k.A. | L55: Scope 3.1.3 - Eingekaufte medizinische Verbrauchsmaterialien (Top-Down) | P55: =Result_Scope3_MedizinischVM_Option3 -> 0 | Q55: k.A.
C56: =Scope_3!$D$149 -> Scope 3.1.4 - Eingekaufte Kältemittel (KM) (Bottom-Up) | G56: =Result_Scope3_KM -> 0 | H56: k.A. | L56: Scope 3.1.4 - Eingekaufte Kältemittel (KM) (Bottom-Up) | P56: =Result_Scope3_KM -> 0 | Q56: k.A.
C57: =Scope_3!$D$161&" ("&Auswahl_Methode_Lebensmittel&")" -> Scope 3.1.5 - Eingekaufte Lebensmittel (Option 1: Bottom-Up) | G57: =IF(Auswahl_Methode_Lebensmittel="Option 1: Bottom-Up",Result_Scope3_Lebensmittel_Option1,Result_Scope3_Lebensmittel_Option2) -> 0 | H57: k.A. | L57: Scope 3.1.5 - Eingekaufte Lebensmittel (Option 1: Bottom-Up) | P57: =IF(Auswahl_Methode_Lebensmittel="Option 1: Bottom-Up",Result_Scope3_Lebensmittel_Option1,Result_Scope3_Lebensmittel_Option2) -> 0 | Q57: k.A.
C58: =Scope_3!$D$209&" ("&Auswahl_Methode_Textile&")" -> Scope 3.1.6 - Eingekaufte Textilien () | G58: =IF(Auswahl_Methode_Textile="Option 1: Bottom-Up",Result_Scope3_Textile_option1,Result_Scope3_Textile_option2) -> 0 | H58: k.A. | L58: Scope 3.1.6 - Eingekaufte Textilien () | P58: =IF(Auswahl_Methode_Textile="Option 1: Bottom-Up",Result_Scope3_Textile_option1,Result_Scope3_Textile_option2) -> 0 | Q58: k.A.
C59: =Scope_3!$D$233&" ("&Auswahl_Methode_HygieneA&")" -> Scope 3.1.7 - Eingekaufte Hygieneartikel & Reinigungsmittel () | G59: =IF(Auswahl_Methode_HygieneA="Option 1: Bottom-Up",Result_Scope3_HygieneA_Option1,Result_Scope3_HygieneA_Option2) -> 0 | H59: k.A. | L59: Scope 3.1.7 - Eingekaufte Hygieneartikel & Reinigungsmittel () | P59: =IF(Auswahl_Methode_HygieneA="Option 1: Bottom-Up",Result_Scope3_HygieneA_Option1,Result_Scope3_HygieneA_Option2) -> 0 | Q59: k.A.
C60: =Scope_3!D253&" ("&Auswahl_Methode_Papier&")" -> Scope 3.1.8 - Eingekauftes Papier/Pappe () | G60: =IF(Auswahl_Methode_Papier="Option 1: Bottom-Up",Result_Scope3_Papier_Option1,Result_Scope3_Papier_Option2) -> 0 | H60: k.A. | L60: Scope 3.1.8 - Eingekauftes Papier/Pappe () | P60: =IF(Auswahl_Methode_Papier="Option 1: Bottom-Up",Result_Scope3_Papier_Option1,Result_Scope3_Papier_Option2) -> 0 | Q60: k.A.
C61: =Scope_3!D271 -> Scope 3.1.9 - Wasserverbrauch (Bottom-Up) | G61: =Result_Scope3_Wasser -> 0 | H61: k.A. | L61: Scope 3.1.9 - Wasserverbrauch (Bottom-Up) | P61: =Result_Scope3_Wasser -> 0 | Q61: k.A.
C62: =Scope_3!D278 -> Scope 3.1.10 - Externe Dienstleistungen: Serverraum & Internet (Bottom-Up) | G62: =Result_Scope3_Internet+Result_Scope3_Serverraum -> 0 | H62: k.A. | L62: Scope 3.1.10 - Externe Dienstleistungen: Serverraum & Internet (Bottom-Up) | P62: =Result_Scope3_Internet+Result_Scope3_Serverraum -> 0 | Q62: k.A.
C63: =Scope_3!$D$300 -> Scope 3.2.1 - Eingekaufte IT-Geräte (Bottom-Up) | G63: =Result_Scope3_IT_Geraete -> 0 | H63: k.A. | L63: Scope 3.2.1 - Eingekaufte IT-Geräte (Bottom-Up) | P63: =Result_Scope3_IT_Geraete -> 0 | Q63: k.A.
C64: =Scope_3!$D$315 -> Scope 3.3 - Brennstoff- und energiebezogene Emissionen (Bottom-Up) | G64: =Result_Scope3_Energie -> 0 | H64: k.A. | L64: Scope 3.3 - Brennstoff- und energiebezogene Emissionen (Bottom-Up) | P64: =Result_Scope3_Energie -> 0 | Q64: k.A.
C65: =Scope_3!$D$388 -> Scope 3.5 - Abfall & Abwasser (am Standort) (Bottom-Up) | G65: =Result_Scope3_Abfall+ Result_Scope3_Abwasser -> 0 | H65: k.A. | L65: Scope 3.5 - Abfall & Abwasser (am Standort) (Bottom-Up) | P65: =Result_Scope3_Abfall+ Result_Scope3_Abwasser -> 0 | Q65: k.A.
C66: =Scope_3!$D$406 -> Scope 3.6.1 - Geschäftsreisen (Bottom-Up) | G66: =Result_Scope3_Flugreisen+Result_Scope3_Landreisen -> 0 | H66: k.A. | L66: Scope 3.6.1 - Geschäftsreisen (Bottom-Up) | P66: =Result_Scope3_Flugreisen+Result_Scope3_Landreisen -> 0 | Q66: k.A.
C67: =Scope_3!$D$428 -> Scope 3.6.2 - Übernachtung bei Dienstreisen (Bottom-Up) | G67: =Result_Scope3_Uebernachtung -> 0 | H67: k.A. | L67: Scope 3.6.2 - Übernachtung bei Dienstreisen (Bottom-Up) | P67: =Result_Scope3_Uebernachtung -> 0 | Q67: k.A.
C68: =Scope_3!$D$489 -> Scope 3.7 - Mitarbeitendenmobilität (Bottom-Up) | G68: =Result_Scope3_Mitarbeitendenmobilität -> 0 | H68: k.A. | L68: Scope 3.7 - Mitarbeitendenmobilität (Bottom-Up) | P68: =Result_Scope3_Mitarbeitendenmobilität -> 0 | Q68: k.A.
C69: =Scope_3.16_Patient_innenmobilität -> Scope 3.16 Patient*innenmobilität (Bottom-Up) | G69: =Results_Scope3_Patient_Mobilitaet -> 0 | H69: k.A. | L69: Scope 3.16 Patient*innenmobilität (Bottom-Up) | P69: =Results_Scope3_Patient_Mobilitaet -> 0 | Q69: k.A.
C71: 3. Ergebnisse in PDF umwandeln

Sheet EF
J1: Defaultwerte | K1: Lebensmittelgruppe | L1: Getreideprodukte | N1: Gebiet 0
J2: Nutzereingabe | L2: Fleisch | N2: Gebiet 1
I3: Option 1 | J3: Option 1: Bottom-Up | L3: Fisch | N3: Gebiet 2
I4: Option 2 | J4: Option 2: Top-Down | L4: Milchprodukte | N4: Gebiet 3
J5: Option 3: Top-Down | L5: Eier | N5: Gebiet 4
I6: Option 1: Hybrid | J6: Ja | L6: Gemüse_Obst_Schalenfrüchte | N6: Gebiet 5
I7: Option 2: Top-Down (CDP) | J7: Nein | L7: Fette_Öle | N7: Gebiet 6
I8: Option 3: Top-Down (KliOL) | J8: Liter | L8: Getränke | N8: Gebiet 7
J9: Kilogramm | L9: Babynahrung_Sondennahrung | N9: Gebiet 8
L10: Süßwaren | N10: Gebiet 9
L11: Gewürze
B12: Brennstoffe (Scope 1) | L12: Sonstige
B13: Primärenergiebezogene direkte Emissionsfaktoren der Stromerzeugung und der Wärmebereitstellung
C14: Brennstoffe (DE) | D14: Einheit | E14: kg CO2 / kWh | F14: kg CH4 / kWh | G14: kg N2O / kWh | H14: Gesamte kg CO2e / kWh | I14: Quelle
C15: Erdgas | D15: m³ | E15: 0.2007 | F15: 0.000232 | G15: 5e-06 | H15: =EF!$E15+EF!$F15*Methan_IPCC_AR6+EF!$G15*N2O_IPCC_AR6 -> 0.2085378 | I15: [1], [5] Tabelle 7
C16: Öl | D16: Liter | E16: 0.26647 | F16: =0.000021 -> 2.1e-05 | G16: =0.000006 -> 6e-06 | H16: =EF!$E16+EF!$F16*Methan_IPCC_AR6+EF!$G16*N2O_IPCC_AR6 -> 0.2686939 | I16: [1], [5] Tabelle 7
C17: Braunkohle | D17: Tonnen | E17: 0.39338 | F17: 2e-06 | G17: 1.3e-05 | H17: =EF!$E17+EF!$F17*Methan_IPCC_AR6+EF!$G17*N2O_IPCC_AR6 -> 0.3969848 | I17: [1], [5] Tabelle 7
C18: Steinkohle | D18: Tonnen | E18: 0.33723 | F18: 4e-06 | G18: 4e-06 | H18: =EF!$E18+EF!$F18*Methan_IPCC_AR6+EF!$G18*N2O_IPCC_AR6 -> 0.3384336 | I18: [1], [5] Tabelle 7
C19: Holz | D19: Tonnen | E19: 0 | F19: 4e-05 | G19: 1.1e-05 | H19: =EF!$E19+EF!$F19*Methan_IPCC_AR6+EF!$G19*N2O_IPCC_AR6 -> 0.004119 | I19: [1], [5] Tabelle 32
C20: Biogas/Biomethan (Energiepflanzen, Gülle, Abfall) | D20: m³ | E20: 0 | F20: 0.001899611411 | G20: 5.723974614e-06 | H20: =EF!$E20+EF!$F20*Methan_IPCC_AR6+EF!$G20*N2O_IPCC_AR6 -> 0.05456180344 | I20: [1], [5] Tabelle 34, Tabelle 37
C21: Flüssige Biomasse (z.B. Pflanzenöl) | D21: Liter | E21: 0 | F21: =0.01/1000 -> 1e-05 | G21: =0.002/1000 -> 2e-06 | H21: =EF!$E21+EF!$F21*Methan_IPCC_AR6+EF!$G21*N2O_IPCC_AR6 -> 0.000825 | I21: [1], [5] Tabelle 43
B23: Fuhrpark (Scope 1)
C24: Tank-to-Wheel: Erfassung aller direkten Emissionen des Fahrzeugbetriebes
C25: Kraftstoffe | D25: Emissionsfaktor | E25: Einheit | F25: Quelle
C26: Benzin | D26: 2.42 | E26: kg CO2e/Liter | F26: [8], [9]
C27: Benzin E5 (5 Vol.-% Bioethanol) | D27: 2.3 | E27: kg CO2e/Liter | F27: [8], [9]
C28: Benzin E10 (10 Vol.-% Bioethanol) | D28: 2.18 | E28: kg CO2e/Liter | F28: [8], [9]
C29: Diesel | D29: 2.67 | E29: kg CO2e/Liter | F29: [8], [9]
C30: Diesel D7 (7 Vol.-% Biodiesel) | D30: 2.48 | E30: kg CO2e/Liter | F30: [8], [9]
C31: Biodiesel | D31: 0 | E31: kg CO2e/Liter | F31: [8], [9]
C32: Autogas (LPG) | D32: 1.7 | E32: kg CO2e/Liter | F32: [8], [9]
C33: Erdgas (CNG) | D33: 2.68 | E33: kg CO2e/kg* | F33: [8], [9]
C34: Flugbenzin | D34: 2.5 | E34: kg CO2e/Liter | F34: [8]
C35: Kerosin (Jet A1 und Jet A) | D35: 2.54 | E35: kg CO2e/Liter | F35: [8]
C36: *Es gibt für Erdgas (CNG) nur einen Emissionsfaktor bezogen auf kg.
B38: Kältemittel (Scope 1)
C39: Erfassung der in die Atmosphäre emittierten direkten Emissionen von Kältemitteln. Quelle:[1]; Die Emissionsfaktoren für die Kältemittel-Mischung basieren auf eigenen Berechnungen auf Basis von [1]
C40: Kältemittel | D40: IPCC 2021 (AR6) [1]; eigene Berechnungen | E40: Einheit
C41: Kohlenstoffdioxid | D41: 1 | E41: kg CO2e/kg
C42: Methan | D42: 27.9 | E42: kg CO2e/kg
C43: Lachgas (Distickstoffmonoxid) | D43: 273 | E43: kg CO2e/kg
C44: Stickstofftrifluorid | D44: 17400 | E44: kg CO2e/kg
C45: Schwefelhexafluorid | D45: 24300 | E45: kg CO2e/kg
C46: Ammoniak (R717) | D46: 0 | E46: kg CO2e/kg
B47: Fluorkohlenwasserstoffe (HFCs) | C47: HCFC-22 | D47: 1960 | E47: kg CO2e/kg
C48: HFC-23 (R-23) | D48: 14600 | E48: kg CO2e/kg
C49: HFC-32 (R-32) | D49: 771 | E49: kg CO2e/kg
C50: HFC-41 (R-41) | D50: 135 | E50: kg CO2e/kg
C51: HFC-125 (R-125) | D51: 3740 | E51: kg CO2e/kg
C52: HFC-134 (R-134) | D52: 1260 | E52: kg CO2e/kg
C53: HFC-134a (R-134a) | D53: 1530 | E53: kg CO2e/kg
C54: HFC-143 (R-143) | D54: 364 | E54: kg CO2e/kg
C55: HFC-143a (R-143a) | D55: 5810 | E55: kg CO2e/kg
C56: HFC-152 (R-152) | D56: 21.5 | E56: kg CO2e/kg
C57: HFC-152a (R-152a) | D57: 164 | E57: kg CO2e/kg
C58: HFC-161 (R-161) | D58: 4.84 | E58: kg CO2e/kg
C59: HFC-227ea (R-227ea) | D59: 3600 | E59: kg CO2e/kg
C60: HFC-236cb (R-236cb) | D60: 1350 | E60: kg CO2e/kg
C61: HFC-236ea (R-236ea) | D61: 1500 | E61: kg CO2e/kg
C62: HFC-236fa (R-236fa) | D62: 8690 | E62: kg CO2e/kg
C63: HFC-245ca (R-245ca) | D63: 787 | E63: kg CO2e/kg
C64: HFC-245fa (R-245fa) | D64: 962 | E64: kg CO2e/kg
C65: HFC-365mfc | D65: 914 | E65: kg CO2e/kg
C66: HFC-43-10mee (R-4310) | D66: 1600 | E66: kg CO2e/kg
B67: Perfluorierte Kohlenwasserstoffe (PFCs) | C67: PFC-14 (Perfluoromethane) | D67: 7380 | E67: kg CO2e/kg
C68: PFC-116 (Perfluoroethane) | D68: 12400 | E68: kg CO2e/kg
C69: PFC-218 (Perfluoropropane) | D69: 9290 | E69: kg CO2e/kg
C70: PFC-318 (Perfluorocyclobutane) | D70: 10200 | E70: kg CO2e/kg
C71: PFC-31-10 (Perfluorobutane) | D71: 10000 | E71: kg CO2e/kg
C72: PFC-41-12 (Perfluoropentane) | D72: 9220 | E72: kg CO2e/kg
C73: PFC-51-14 (Perfluorohexane) | D73: 8620 | E73: kg CO2e/kg
C74: PFC-91-18 (Perfluorodecalin) | D74: 7480 | E74: kg CO2e/kg
B75: Kältemittel-Mischung | C75: R-401A | D75: 1263.1 | E75: kg CO2e/kg | F75: 53% HCFC-22 , 34% HCFC-124 , 13% HFC-152a
C76: R-401B | D76: 1380.8 | E76: kg CO2e/kg | F76: 61% HCFC-22 , 28% HCFC-124 , 11% HFC-152a
C77: R-401C | D77: 981.84 | E77: kg CO2e/kg | F77: 33% HCFC-22 , 52% HCFC-124 , 15% HFC-152a
C78: R-402A | D78: 2988.8004 | E78: kg CO2e/kg | F78: 38% HCFC-22 , 60% HFC-125 , 2% propane
C79: R-402B | D79: 2597.2004 | E79: kg CO2e/kg | F79: 60% HCFC-22 , 38% HFC-125 , 2% propane
C80: R-403A | D80: 3328.001 | E80: kg CO2e/kg | F80: 75% HCFC-22 , 20% PFC-218 , 5% propane
C81: R-403B | D81: 4720.701 | E81: kg CO2e/kg | F81: 56% HCFC-22 , 39% PFC-218 , 5% propane
C82: R-404A | D82: 4728 | E82: kg CO2e/kg | F82: 44% HFC-125 , 4% HFC-134a , 52% HFC 143a
C83: R-407A | D83: 2262.2 | E83: kg CO2e/kg | F83: 20% HFC-32 , 40% HFC-125 , 40% HFC-134a
C84: R-407B | D84: 3001.1 | E84: kg CO2e/kg | F84: 10% HFC-32 , 70% HFC-125 , 20% HFC-134a
C85: R-407C | D85: 1907.93 | E85: kg CO2e/kg | F85: 23% HFC-32 , 25% HFC-125 , 52% HFC-134a
C86: R-407D | D86: 1747.65 | E86: kg CO2e/kg | F86: 15% HFC-32 , 15% HFC-125 , 70% HFC-134a
C87: R-407E | D87: 1671.75 | E87: kg CO2e/kg | F87: 25% HFC-32 , 15% HFC-125 , 60% HFC-134a
C88: R-407F | D88: 1965.3 | E88: kg CO2e/kg | F88: 30% HFC-32 , 30% HFC-125 , 40% HFC-134a
C89: R-408A | D89: 3855.6 | E89: kg CO2e/kg | F89: 47% HCFC-22 , 7% HFC-125 , 46% HFC 143a
C90: R-410A | D90: 2255.5 | E90: kg CO2e/kg | F90: 50% HFC-32 , 50% HFC-125
C91: R-410B | D91: 2403.95 | E91: kg CO2e/kg | F91: 45% HFC-32 , 55% HFC-125
C92: R-411A | D92: 1733.07 | E92: kg CO2e/kg | F92: 87.5% HCFC-22 , 11% HFC-152a , 1.5% propylene
C93: R-411B | D93: 1847.38 | E93: kg CO2e/kg | F93: 94% HCFC-22 , 3% HFC-152a , 3% propylene
C94: R-412A | D94: 2411.5 | E94: kg CO2e/kg | F94: 70% HCFC-22 , 5% PFC-218 , 25% HCFC-142b
C95: R-413A | D95: 2182.59 | E95: kg CO2e/kg | F95: 88% HFC-134a , 9% PFC-218 , 3% isobutane
C96: R-415A | D96: 1636.72 | E96: kg CO2e/kg | F96: 82% HCFC-22 , 18% HFC-152a
C97: R-415B | D97: 613 | E97: kg CO2e/kg | F97: 25% HCFC-22 , 75% HFC-152a
C98: R-416A | D98: 1138.56 | E98: kg CO2e/kg | F98: 59% HFC-134a , 39.5% HCFC-124, 1.5% isobutane
C99: R-417A | D99: 2507.840204 | E99: kg CO2e/kg | F99: 46.6% HFC-125 , 50% HFC-134a , 3.4% butane
C100: R-417B | D100: 3234.590162 | E100: kg CO2e/kg | F100: 79% HFC-125 , 18.3% HFC-134a , 2.7% butane
C101: R-417C | D101: 1934.940102 | E101: kg CO2e/kg | F101: 19.5% HFC-125 , 78.8% HFC-134a , 1.7% butane
C102: R-418A | D102: 1885.7003 | E102: kg CO2e/kg | F102: 96% HCFC-22 , 2.5% HFC-152a, 1.5% propane
C103: R-419A | D103: 3170.51748 | E103: kg CO2e/kg | F103: 77% HFC-125, 19% HFC-134a, 4 % HCE-170
C104: R-419B | D104: 2548.315295 | E104: kg CO2e/kg | F104: 48.5% HFC-125, 48% HFC-134a, 3.5 % HCE-170
C105: R-420A | D105: 1622.4 | E105: kg CO2e/kg | F105: 12% HCFC-142b, 88% HFC-134a
C106: R-421A | D106: 2811.8 | E106: kg CO2e/kg | F106: 58% HFC-125, 42% HFC-134a
C107: R-421B | D107: 3408.5 | E107: kg CO2e/kg | F107: 85% HFC-125, 15% HFC-134a
C108: R-422A | D108: 3358.792 | E108: kg CO2e/kg | F108: 85.1% HFC-125 , 11.5% HFC-134a , 3.4% isobutane
C109: R-422B | D109: 2699.69 | E109: kg CO2e/kg | F109: 55% HFC-125 , 42% HFC-134a , 3% isobutane
C110: R-422C | D110: 3296.39 | E110: kg CO2e/kg | F110: 82% HFC-125 , 15% HFC-134a , 3% isobutane
C111: R-422D | D111: 2916.792 | E111: kg CO2e/kg | F111: 65.1% HFC-125 , 31.5% HFC-134a , 3.4% isobutane
C112: R-422E | D112: 2770.571 | E112: kg CO2e/kg | F112: 58% HFC-125 , 39.3% HFC-134a , 2.7% isobutane
C113: R-423A | D113: 2513.25 | E113: kg CO2e/kg | F113: 47.5% HFC-227ea , 52.5% HFC-134a ,
C114: R-424A | D114: 2607.85706 | E114: kg CO2e/kg | F114: 50.5% HFC-125, 47% HFC-134a, 1% Butane, 0.9% HC-600a, 0.6% HC-601a
C115: R-425A | D115: 1637.985 | E115: kg CO2e/kg | F115: 12% HFC-227ea , 69.5% HFC-134a , 18.5% HFC-32
C116: R-426A | D116: 1613.670078 | E116: kg CO2e/kg | F116: 5.1% HFC-125, 93% HFC-134a, 1.3% butane, 0.6% HC-601a
C117: R-427A | D117: 2396.65 | E117: kg CO2e/kg | F117: 25% HFC-125, 50% HFC-134a , 10% HFC 143a, 15% HFC-32
C118: R-428A | D118: 4060.557 | E118: kg CO2e/kg | F118: 77.5% HFC-125 , 20% HFC-143a , 1.9% isobutane
C119: R-429A | D119: 17.5622 | E119: kg CO2e/kg | F119: 30% HC-600a, 60% HCE-170, 10% HFC-152a
C120: R-430A | D120: 125.36 | E120: kg CO2e/kg | F120: 24% HC-600a, 76% HFC-152a
C121: R-431A | D121: 47.5742 | E121: kg CO2e/kg | F121: 71% Propane, 29% HFC-152a
C122: R-434A | D122: 3654.364 | E122: kg CO2e/kg | F122: 63.2% HFC-125, 16% HFC-134a, 18% HFC-143a, 2.8% isobutane
C123: R-435A | D123: 33.1496 | E123: kg CO2e/kg | F123: 80% HCE-170, 20% HFC-152a
C124: R-437A | D124: 1930.380084 | E124: kg CO2e/kg | F124: 19.5% HFC-125, 78.5% HFC-134a, 1.4% Butane, 0.6% HC-601a
C125: R-438A | D125: 2424.825102 | E125: kg CO2e/kg | F125: 45% HFC-125, 44.2% HFC-134a, 1.7% Butane, 8.5% HFC-32, 0.6% HC-601a
C126: R-439A | D126: 2143.39 | E126: kg CO2e/kg | F126: 47% HFC-125, 50% HFC-32, 3% HC-600a
C127: R-444A | D127: 101.8571 | E127: kg CO2e/kg | F127: 5% HFC-152a, 12% HFC-32, 83% HFO-1234ze(E)
C128: R-445A | D128: 337.0363 | E128: kg CO2e/kg | F128: 10% HFC-152a, 41.5% HFC-32, 49% HFO-1234ze(E)
C129: R-500 | D129: 9267.968 | E129: kg CO2e/kg | F129: 73.8% CFC-12 , 26.2% HFC-152a
C130: R-503 | D130: 15558.4 | E130: kg CO2e/kg | F130: 59.9% CFC-13 , 40.1% HFC-23
C131: R-504 | D131: 5344.422 | E131: kg CO2e/kg | F131: 48.2% HFC-32 , 51.8% CFC-115
C132: R-507 | D132: 4775 | E132: kg CO2e/kg | F132: 50% HFC-125 , 50% HFC-143a
C133: R-507A | D133: 4775 | E133: kg CO2e/kg | F133: 50% HFC-125 , 50% HFC-143a
C134: R-508A | D134: 13258 | E134: kg CO2e/kg | F134: 39% HFC-23 , 61% PFC-116
C135: R-508B | D135: 13412 | E135: kg CO2e/kg | F135: 46% HFC-23 , 54% PFC-116
C136: R-509 | D136: 6064.8 | E136: kg CO2e/kg | F136: 44% HCFC-22 , 56% PFC-218
C137: R-509A | D137: 6064.8 | E137: kg CO2e/kg | F137: 44% HCFC-22 , 56% PFC-218
C138: R-512A | D138: 232.3 | E138: kg CO2e/kg | F138: 5% HFC-134a,95% HFC-152a
B140: Medizinische und technische flüchtige Gase (Scope 1)
C141: Erfassung der in die Atmosphäre emittierten direkten Emissionen von medizinischen und technischen flüchtigen Gasen
C142: Gase | D142: EF (IPCC2021) | E142: Einheit
C143: Kohlenstoffdioxid | D143: 1 | E143: kg CO2e/kg
C144: Methan | D144: =Methan_IPCC_AR6 -> 27.9 | E144: kg CO2e/kg
C145: Sevofluran | D145: 195 | E145: kg CO2e/kg
C146: Lachgas (Distickstoffmonoxid) | D146: =N2O_IPCC_AR6 -> 273 | E146: kg CO2e/kg
C147: Isofluran | D147: 539 | E147: kg CO2e/kg
C148: Desfluran | D148: 2590 | E148: kg CO2e/kg
C149: Ethan | D149: 0.437 | E149: kg CO2e/kg
C150: Propan | D150: 0.02 | E150: kg CO2e/kg
C151: Butan | D151: 0.006 | E151: kg CO2e/kg
B154: =Scope_2!B9 -> Scope 2: Indirekte Emissionen aus gekauftem Strom, Wärme/Kälte, Dampf
B155: Ortsbezogener Ansatz | C155: Energie | D155: CO2 Faktor (t CO2/ MWh) | E155: CH4 Faktor (t CH4/ MWh) | F155: N2O Faktor (t N2O/ MWh) | G155: THG-Emissionsfaktor (t CO2e/ MWh) | H155: Quelle:
B156: (Endenergie) | C156: Strommix | D156: 0.367204 | E156: 0.000192 | F156: 1e-05 | G156: =D156+E156*Methan_IPCC_AR6+F156*N2O_IPCC_AR6 -> 0.3752908 | H156: [5] Tabelle 61
C157: Fernwärme-Mix | D157: 0.255312 | E157: 6.4e-05 | F157: 5e-06 | G157: =D157+E157*Methan_IPCC_AR6+F157*N2O_IPCC_AR6 -> 0.2584626 | H157: [5] Tabelle 61
C158: Dampf | D158: =0.318024*0.85 -> 0.2703204 | E158: =0.0005779017809226*0.85 -> 0.0004912165138 | F158: =0.0000019907532*0.85 -> 1.69214022e-06 | G158: =D158+E158*Methan_IPCC_AR6+F158*N2O_IPCC_AR6 -> 0.284487295 | H158: Eigene Berechnung basiert auf [2]
B160: Marktbasierter Ansatz | C160: Energieträger | D160: CO2 Faktor (t CO2/ MWh) | E160: CH4 Faktor (t CH4/ MWh) | F160: N2O Faktor (t N2O/ MWh) | G160: THG-Emissionsfaktor (t CO2e/ MWh) | H160: Quelle
B161: (Endenergie): Strom | C161: =C15 -> Erdgas | D161: =E15/Brutto_Nutzungsgrade_Erdgas/Netto_BruttoStrom_Ratio_Erdgas -> 0.3749438403 | E161: =F15/Brutto_Nutzungsgrade_Erdgas/Netto_BruttoStrom_Ratio_Erdgas -> 0.0004334178921 | F161: =G15/Brutto_Nutzungsgrade_Erdgas/Netto_BruttoStrom_Ratio_Erdgas -> 9.340902847e-06 | G161: =D161+E161*Methan_IPCC_AR6+F161*N2O_IPCC_AR6 -> 0.3895862659 | H161: Eigene Berechnungen aus [1], [5] Tabelle 7
C162: Öl | D162: =E16/Brutto_Nutzungsgrade_Öl/Netto_BruttoStrom_Ratio_Öl -> 0.8099423765 | E162: =F16/Brutto_Nutzungsgrade_Öl/Netto_BruttoStrom_Ratio_Öl -> 6.38300368e-05 | F162: =G16/Brutto_Nutzungsgrade_Öl/Netto_BruttoStrom_Ratio_Öl -> 1.823715337e-05 | G162: 0.8167019774 | H162: Eigene Berechnungen aus [1], [5] Tabelle 7
C163: Braunkohle | D163: =E17/Brutto_Nutzungsgrade_Braunkohle/Netto_BruttoStrom_Ratio_Braunkohle -> 1.082698056 | E163: =F17/Brutto_Nutzungsgrade_Braunkohle/Netto_BruttoStrom_Ratio_Braunkohle -> 5.504591266e-06 | F163: =G17/Brutto_Nutzungsgrade_Braunkohle/Netto_BruttoStrom_Ratio_Braunkohle -> 3.577984323e-05 | G163: 1.092619531 | H163: Eigene Berechnungen aus [1], [5] Tabelle 7
C164: Steinkohle | D164: =E18/Brutto_Nutzungsgrade_Steinkohle/Netto_BruttoStrom_Ratio_Steinkohle -> 0.851563249 | E164: =F18/Brutto_Nutzungsgrade_Steinkohle/Netto_BruttoStrom_Ratio_Steinkohle -> 1.010068201e-05 | F164: =G18/Brutto_Nutzungsgrade_Steinkohle/Netto_BruttoStrom_Ratio_Steinkohle -> 1.010068201e-05 | G164: 0.8546025442 | H164: Eigene Berechnungen aus [1], [5] Tabelle 7
C165: Holz | D165: 0 | E165: =F19/Brutto_Nutzungsgrade_Holz/Netto_BruttoStrom_Ratio_Holz -> 0.0001274678129 | F165: =G19/Brutto_Nutzungsgrade_Holz/Netto_BruttoStrom_Ratio_Holz -> 3.505364854e-05 | G165: =D165+E165*Methan_IPCC_AR6+F165*N2O_IPCC_AR6 -> 0.01312599803 | H165: Eigene Berechnungen aus [1], [5] Tabelle 32
C166: Biogas/Biomethan (Energiepflanzen, Gülle, Abfall) | D166: 0 | E166: =F20/Brutto_Nutzungsgrade_Biogas/Netto_BruttoStrom_Ratio_Biogas -> 0.003879832135 | F166: =G20/Brutto_Nutzungsgrade_Biogas/Netto_BruttoStrom_Ratio_Biogas -> 1.169084399e-05 | G166: =D166+E166*Methan_IPCC_AR6+F166*N2O_IPCC_AR6 -> 0.111438917 | H166: Eigene Berechnungen aus [1], [5] Tabelle 37
C167: Flüssige Biomasse (z.B. Pflanzenöl) | D167: 0 | E167: =F21/Brutto_Nutzungsgrade_Flüssig_Biomasse/Netto_BruttoStrom_Ratio_flüssig_Biomasse -> 3.906652414e-05 | F167: =G21/Brutto_Nutzungsgrade_Flüssig_Biomasse/Netto_BruttoStrom_Ratio_flüssig_Biomasse -> 7.813304827e-06 | G167: =D167+E167*Methan_IPCC_AR6+F167*N2O_IPCC_AR6 -> 0.003222988241 | H167: Eigene Berechnungen aus [1], [5] Tabelle 43
C168: Kernenergie | D168: 0 | E168: 0 | F168: 0 | G168: =D168+E168*Methan_IPCC_AR6+F168*N2O_IPCC_AR6 -> 0 | H168: [5]
C169: Erneuerbare Energien (Sonstige) | D169: 0 | E169: 0 | F169: 0 | G169: 0 | H169: [5]
C171: Energieträger | D171: Brutto-Nutzungsgrade/elektrischen Nutzungsgrad der Stromerzeugung | E171: Quelle | F171: Nettostromerzeugung / Bruttostromerzeugung | G171: Quelle
C172: =C161 -> Erdgas | D172: 0.554 | E172: [5] Tabelle 6 | F172: 0.9662096808 | G172: [19]
C173: Öl | D173: 0.376 | E173: [5] Tabelle 6 | F173: 0.8749965788 | G173: [19]
C174: Braunkohle | D174: 0.394 | E174: [5] Tabelle 6 | F174: 0.9221651321 | G174: [19]
C175: Steinkohle | D175: 0.437 | E175: [5] Tabelle 6 | F175: 0.9062079238 | G175: [19]
C176: Holz | D176: 0.331 | E176: Eigene Berechnungen aus [5] Tabelle 31 | F176: 0.948050482 | G176: [19]
C177: Biogas/Biomethan (Energiepflanzen, Gülle, Abfall) | D177: 0.5164405923 | E177: Eigene Berechnungen aus [5] Tabelle 34, Tabelle 36 | F177: 0.948050482 | G177: [19]
C178: Flüssige Biomasse (z.B. Pflanzenöl) | D178: 0.27 | E178: [5] Tabelle 42 | F178: 0.948050482 | G178: [19]
C179: Kernenergie | D179: 0.33 | E179: [5] Tabelle 6 | F179: 0.9456641289 | G179: [19]
B181: Marktbasierter Ansatz | C181: Energieträger | D181: CO2 Faktor (t CO2/ MWh) | E181: CH4 Faktor (t CH4/ MWh) | F181: N2O Faktor (t N2O/ MWh) | G181: THG-Emissionsfaktor (t CO2e/ MWh) | H181: Quelle
B182: (Endenergie): Wärme/Kälte | C182: Erdgas | D182: 0.200695 | E182: 1.1e-05 | F182: 1e-06 | G182: =D182+E182*Methan_IPCC_AR6+F182*N2O_IPCC_AR6 -> 0.2012749 | H182: [1], [5] Tabelle 61
C183: Heizöl / Diesel | D183: 0.266472 | E183: 0 | F183: 2e-06 | G183: 0.267018 | H183: [1], [5] Tabelle 61
C184: Braunkohlenbriketts | D184: 0.356369 | E184: 0.000854 | F184: 1.9e-05 | G184: 0.3853826 | H184: [1], [5] Tabelle 61
C185: Steinkohle | D185: 0.35142 | E185: 0.000482 | F185: 4.1e-05 | G185: 0.3760608 | H185: [1], [5] Tabelle 61
C186: Fernwärme-Mix | D186: =D157 -> 0.255312 | E186: =E157 -> 6.4e-05 | F186: 5e-06 | G186: 0.2584626 | H186: [1], [5] Tabelle 61
C187: Strommix | D187: =D156 -> 0.367204 | E187: =E156 -> 0.000192 | F187: 1e-05 | G187: 0.3752908 | H187: [1], [5] Tabelle 61
C188: Holz | D188: 0 | E188: =F19/Nutzungsgrade_Wärme_Holz -> 4.780704386e-05 | F188: =G19/Nutzungsgrade_Wärme_Holz -> 1.314693706e-05 | G188: 0.004922930341 | H188: [1], [5] Tabelle 32
C189: Biogas/Biomethan (Energiepflanzen, Gülle, Abfall) | D189: 0 | E189: =F20/Nutzungsgrade_Wärme_Biogas -> 0.001648550514 | F189: =G20/Nutzungsgrade_Wärme_Biogas -> 4.967469261e-06 | G189: 0.04735067845 | H189: [1], [5]
C190: Flüssige Biomasse (z.B. Pflanzenöl) | D190: =E21/Nutzungsgrade_Wärme_Flüssige_Biomasse -> 0 | E190: =F21/Nutzungsgrade_Wärme_Flüssige_Biomasse -> 1.385041551e-05 | F190: =G21/Nutzungsgrade_Wärme_Flüssige_Biomasse -> 2.770083102e-06 | G190: =D190+E190*Methan_IPCC_AR6+F190*N2O_IPCC_AR6 -> 0.00114265928 | H190: [1], [5] Tabelle 43
C192: Energieträger | D192: Nutzungsgrad der Wärmebereistellung | E192: Quelle
C193: Holz | D193: 0.8366967871 | E193: Eigene Berechungen aus [5] Tabelle 77
C194: Biogas/Biomethan (Energiepflanzen, Gülle, Abfall) | D194: 1.152291904 | E194: Eigene Berechungen aus [5] Tabelle 89
C195: Flüssige Biomasse (z.B. Pflanzenöl, Industrie) | D195: 0.722 | E195: Eigene Berechungen aus [5] Tabelle 82
B198: Medikamente (Scope 3)
C199: Emissionsfaktoren mit dem Bottom-Up-Ansatz
C200: Wirkstoffe | D200: Emissionsfaktor (kg CO2e) | E200: per kg / per 1000 I.E Wirkstoff | F200: Quelle | G200: Anmerkung
C201: Acetylsalicylsäure | D201: 4.9 | E201: per kg API | F201: [43] | G201: betrachtete Prozesse: API-Produktion
C202: Albumin (Human) | D202: 604.66575 | E202: per kg API | F202: [33] | G202: • betrachtete Prozesse: API-Produktion, galenische Formulierung, Verpackung • Mittelwert (ohne Distribution) von 4 Produkten mit unterschiedlichen Konzentrationen . Eigene Umrechnung von Dose-Basis auf API-Menge.
C203: Blutgerinnungsfaktor VIII / (F VIII:C) / Rekomb. | D203: 73.2256 | E203: per 1.000 I.E. API | F203: [44] | G203: • betrachtete Prozesse: API-Produktion, galenische Formulierung, Verpackung • EF (ohne Distribution)
C204: Bupivacain | D204: 23.340591 | E204: per kg API | F204: [34] | G204: betrachtete Prozesse: API-Produktion
C205: Colecalciferol (+ Natriumfluorid, Calciumcarbonat) | D205: 9.4125e-05 | E205: per 1.000 I.E. API | F205: [45] | G205: • betrachtete Prozesse: API-Produktion • 0.25kg CO2e/g Vitamin D3 im Durchlaufprozess (EN: continuous process). Batch-Prozess verursacht ca. 15 Faktor (grob abgelesen aus Abbildung 9) höher GWP-Wert als Durchlaufprozess. • EF für Batch-Prozess wird hier angenommen. Eigene Umrechnung von Gramm API auf I.E. API
C206: Dexmedetomidin | D206: 3006 | E206: per kg API | F206: [34] | G206: betrachtete Prozesse: API-Produktion
C207: Ephedrin | D207: 82 | E207: per kg API | F207: [34] | G207: betrachtete Prozesse: API-Produktion
C208: Epinephrin / Epinephrin (Razemisch) | D208: 33.827187 | E208: per kg API | F208: [34] | G208: betrachtete Prozesse: API-Produktion
C209: Fentanyl / Fentanyl (Transdermal) | D209: 95.8 | E209: per kg API | F209: [34] | G209: betrachtete Prozesse: API-Produktion
C210: Glycopyrroniumbromid | D210: 76 | E210: per kg API | F210: [34] | G210: betrachtete Prozesse: API-Produktion
C211: Hydromorphon-Hcl | D211: 799 | E211: per kg API | F211: [34] | G211: betrachtete Prozesse: API-Produktion
... 326 more rows

Sheet Quellen
B5: Quellen- und Literaturverzeichnis
B6: [1] | C6: IPCC, 2021: Smith, C., Z.R.J. Nicholls, K. Armour, W. Collins, P. Forster, M. Meinshausen, M.D. Palmer, and M. Watanabe, 2021: The Earth’s Energy Budget, Climate Feedbacks, and Climate Sensitivity Supplementary Material. In Climate Change 2021: The Physical Science Basis. Contribution of Working Group I to the Sixth Assessment Report of the Intergovernmental Panel on Climate Change [Masson-Delmotte, V., P. Zhai, A. Pirani, S.L. Connors, C. Péan, S. Berger, N. Caud, Y. Chen, L. Goldfarb, M.I. Gomis, M. Huang, K. Leitzell, E. Lonnoy, J.B.R. Matthews, T.K. Maycock, T. Waterfield, O. Yelekçi, R. Yu, and B. Zhou (eds.)]. Available from https://www.ipcc.ch/ https://www.ipcc.ch/report/ar6/wg1/downloads/report/IPCC_AR6_WGI_Chapter07_SM.pdf
B7: [2] | C7: Ecoinvent Version 3.8 (2021) Databank: https://ecoinvent.org/
B8: [3] | C8: https://www.cdp.net/en/; 11 Unternehmen sind Roche (CH), Novartis (CH), Merck & CO (USA), Biogen (USA), Bristol-Myers SQUIBB (USA), Johnson & Johnson (USA), TAKEDA (J), SANOFI (F), Bayer (D), PFIZER (US), GLAXOSMITHKLINE (GB)
B9: [4] | C9: EPA Center for Corporate Climate Leadership, 2021, https://www.epa.gov/climateleadership/ghg-emission-factors-hub
B10: [5] | C10: Emissionsbilanz erneuerbarer Energieträger Bestimmung der vermiedenen Emissionen im Jahr 2020, Dr. Thomas Lauf, Michael Memmler, Sven Schneider,
C11: https://www.umweltbundesamt.de/publikationen/emissionsbilanz-erneuerbarer-energietraeger-2020
B12: [6] | C12: The carbon footprint of general anaesthetics: A case study in the UK, Xiaocheng Hu, JM Tom Pierce, Tim Taylor, Karyn Morrissey, Resources, Conservation & Recycling 167 (2021) 105411, https://doi.org/10.1016/j.resconrec.2021.105411
B13: [7] | C13: UK Government GHG Conversion Factors for Company Reporting, Version 2.0, 2022, https://www.gov.uk/government/publications/greenhouse-gas-reporting-conversion-factors-2022
B14: [8] | C14: DIN EN 16258; Methode zur Berechnung und Deklaration des Energieverbrauchs und der Treibhausgasemissionen bei Transportdienstleistungen (Güter- und Personenverkehr); Deutsche Fassung EN 16258:2012
B15: [9] | C15: Berechnung des Energieverbrauchs und der Treibhausgasemissionen des ÖPNV, https://www.bmvi.de/SharedDocs/DE/Anlage/G/energieverbrauch-treibhausgasemission-oepnv.pdf?__blob=publicationFile
B16: [10] | C16: UBA, Emissionsdaten, 2022, https://www.umweltbundesamt.de/themen/verkehr-laerm/emissionsdaten#verkehrsmittelvergleich_personenverkehr_tabelle
B17: [11] | C17: UBA, Umweltschonender Luftverkehr, lokal – national – international, 2019
C18: https://www.umweltbundesamt.de/sites/default/files/medien/1410/publikationen/2019-11-06_texte-130-2019_umweltschonender_luftverkehr_0.pdf
B19: [12] | C19: KPI4DCE, Kennzahlen und Indikatoren für die Beurteilung der Ressourceneffizienz von Rechenzentren und Prüfung der praktischen Anwendbarkeit, 2018
C20: https://www.umweltbundesamt.de/publikationen/kennzahlen-indikatoren-fuer-die-beurteilung-der
B21: [13] | C21: Narendra Singh, Oladele A. Ogunseitan, 2022, Disentangling the worldwide web of e-waste and climate change co-benefits, Circular Economy 1 (2022) 100011
B22: [14] | C22: Ökologische und ökonomische Aspekte beim Vergleich von Arbeitsplatzcomputern für den Einsatz in Behörden unter Einbeziehung des Nutzerverhaltens (Öko-APC)
C23: https://www.umweltbundesamt.de/publikationen/oekologische-oekonomische-aspekte-beim-vergleich
B24: [15] | C24: Environmental improvement potential of textiles (IMPRO Textiles), European Commission’s Joint Research Centre (JRC), 2014
C25: https://op.europa.eu/en/publication-detail/-/publication/f8d0def8-4fd5-4d84-a308-1dfa5cf2e823/language-en
B26: [16] | C26: ÖKOBAUDAT-Datensätze (Version: 2021-II vom 25.06.2021), https://www.oekobaudat.de
B27: [17] | C27: Escamilla M., Ferrer A., Fuentes N., Hidalgo C., Kaps R., Kougoulis J. (2012). Revision of European Ecolabel Criteria for Soaps, Shampoos and Hair Conditioners – Preliminary results from the technical analysis. European Commission, DG JRC,
C28: https://dokumen.tips/download/link/revision-of-european-ecolabel-criteria-for-soaps-shampoos-analysis-lca-for
B29: [18] | C29: https://s22.q4cdn.com/959853165/files/doc_events/2021/Carbon-impact-of-video-streaming.pdf
B30: [19] | C30: AG Energiebilanzen e.V. https://ag-energiebilanzen.de/wp-content/uploads/2022/03/STRERZ_2021Feb22_web.xlsx
B31: [20] | C31: https://www.gasido.de/technische-gase-umrechnung-formeln-m3-liter-kg
B32: [21] | C32: CO2-Fußabdrücke von ausgewählten Obst- und Gemüseprodukten „an der Supermarktkasse“ in Deutschland in Kilogramm CO2-Äquivalenten pro Kilogramm Lebensmittel. Bezugsjahr: 2019.
B33: [22] | C33: https://www.postleitzahlen.de/plz/bereiche
B34: [23] | C34: Ermittlung des Product Carbon Footprint (PCF) von Speisesalz sowie sinnvoller Handlungsoptionen im PCF-Kontext für die Südsalz GmbH Quack, D.; Stratmann, B.; 2012 Auftraggeber: Südsalz GmbH, Heilbronn.
B35: [24] | C35: PEF Datensätze; https://eplca.jrc.ec.europa.eu/EnvironmentalFootprint.html
B36: [25] | C36: Jones, A.K., et al. The carbon footprint of lamb: Sources of variation and opportunities for mitigation. Agr. Syst. (2013), http://dx.doi.org/10.1016/j.agsy.2013.09.006;
B37: [26] | C37: https://circularecology.com/news/the-carbon-footprint-of-a-cup-of-tea
B38: [27] | C38: Aktualisierte Ökobilanz von Grafik- und Hygienepapier; https://www.bvse.de/dateien2020/1-Bilder/01-Nachrichten/02-Papier/2022/1117-UBA-Studio_123-2022_aktualisierte_oekobilanz_von_grafik-_und_hygienepapier.pdf
B39: [28] | C39: Franke B., Zeitz C., Quitmann, C. [2023]. Treibhausgasbilanzierung von Kliniken auf Basis von ecocockpit. KliOL –Klimaschutz in Kliniken durch Optimierung der Lieferketten am Beispiel des Universitätsklinikums Heidelberg, FKZ 03KF0150B. Entwurf 24.03.2023, ifeu-Institut für Energie- und Umweltforschung Heidelberg gGmbH, https://www.klinikum.uni-heidelberg.de/klimaschutz-in-kliniken-durch-optimierung-der-lieferketten-kliol
B40: [29] | C40: Rizan C, Bhutta. MF, Reed M et al. The carbon footprint of waste streams in a UK hospital Journal of Cleaner Production 2020. DOI: https://doi.org/10.1016/j.jclepro.2020.125446
B41: [30] | C41: Umweltbundesamt, ProBas (Prozessorientierte Basisdaten für Umweltmanagementsysteme), https://www.probas.umweltbundesamt.de
B42: [31] | C42: Idemat: https://www.ecocostsvalue.com/data
B43: [32] | C43: https://www.bafa.de/SharedDocs/Downloads/DE/Energie/eew_infoblatt_co2_faktoren_2021.pdf?__blob=publicationFile&v=5
B44: [33] | C44: Elena Neri und Riccardo Maria Pulselli, „Environmental Product Declaration - Albumin“, hg. von EDP International AB, 5. Juni 2019, www.environdec.com.
B45: [34] | C45: Abhijeet G. Parvatker u. a., „Cradle-to-Gate Greenhouse Gas Emissions for Twenty Anesthetic Active Pharmaceutical Ingredients Based on Process Scale-Up and Process Design Calculations“, ACS Sustainable Chemistry & Engineering 7, Nr. 7 (1. April 2019): 6580–91, https://doi.org/10.1021/acssuschemeng.8b05473.
B46: [35] | C46: Marc-William Siegert u. a., „Cradle-to-Grave Life Cycle Assessment of an Ibuprofen Analgesic“, Sustainable Chemistry and Pharmacy 18 (Dezember 2020): 100329, https://doi.org/10.1016/j.scp.2020.100329.
B47: [36] | C47: Elena Neri und Riccardo Maria Pulselli, „Environmental Product Declaration - Ig Vena“, hg. von EDP International AB, 6. Mai 2019, www.environdec.com.
B48: [37] | C48: Ana Gabriela Renteria Gamiz u. a., „Environmental Sustainability Assessment of the Manufacturing Process of a Biological Active Pharmaceutical Ingredient“, Journal of Chemical Technology & Biotechnology 94, Nr. 6 (2019): 1937–44, https://doi.org/10.1002/jctb.5975.
B49: [38] | C49: Ecovamed, „Carbon footprint of Metformin“, 2022, www.ecovamed.com.
B50: [39] | C50: Or Galant u. a., „Mechanochemistry can reduce life cycle environmental impacts of manufacturing active pharmaceutical ingredients“, ACS Sustainable Chemistry & Engineering 10, Nr. 4 (31. Januar 2022): 1430–39, https://doi.org/10.1021/acssuschemeng.1c06434.
B51: [40] | C51: Eri Amasawa u. a., „Cost–Benefit Analysis of Monoclonal Antibody Cultivation Scenarios in Terms of Life Cycle Environmental Impact and Operating Cost“, ACS Sustainable Chemistry & Engineering 9, Nr. 42 (25. Oktober 2021): 14012–21, https://doi.org/10.1021/acssuschemeng.1c01435.
B52: [41] | C52: Rachit Kumar Sharma u. a., „Comparing the Environmental Impacts of Paracetamol Dosage Forms Using Life Cycle Assessment“, Environment, Development and Sustainability 24, Nr. 10 (1. Oktober 2022): 12446–66, https://doi.org/10.1007/s10668-021-01948-2.
B53: [42] | C53: Concepción Jiménez-González und Michael Overcash, „Life Cycle Inventory of Refinery Products: Review and Comparison of Commercially Available Databases“, Environmental Science & Technology 34, Nr. 22 (1. November 2000): 4789–96, https://doi.org/10.1021/es991140f.
B54: [43] | C54: Drew J & Rizan C. (2022). HealthcareLCA Database [Online Database]. HealthcareLCA. Retrieved from: healthcarelca.com/database.
B55: [44] | C55: Elena Neri und Riccardo Maria Pulselli, „Environmental Product Declaration - Emoclot 500“, hg. von EDP International AB, 23. Januar 2018, www.environdec.com.
B56: [45] | C56: Fabio Grimaldi u. a., „Life Cycle Assessment of an Enzymatic Ibuprofen Production Process with Automatic Recycling and Purification“, ACS Sustainable Chemistry & Engineering 9, Nr. 39 (4. Oktober 2021): 13135–50, https://doi.org/10.1021/acssuschemeng.1c02309.
B57: [46] | C57: Robert Brunet, Gonzalo Guillén-Gosálbez, und Laureano Jiménez, „Combined Simulation–Optimization Methodology to Reduce the Environmental Impact of Pharmaceutical Processes: Application to the Production of Penicillin V“, Journal of Cleaner Production 76 (1. August 2014): 55–63, https://doi.org/10.1016/j.jclepro.2014.02.012.
B58: [47] | C58: Jonathan Drew, Sean D Christie, Daniel Rainham, Chantelle Rizan; HealthcareLCA: an open-access living database of health-care environmental impact assessments; Vol 6 December 2022, www.thelancet.com/planetary-health; DOI:https://doi.org/10.1016/S2542-5196(22)00257-1
B59: [48] | C59: Bulach, W.; Dehoust, G.; Mayer, F.; Möck, A. (2022): Öko-/Klimabilanz zu den Leistungen der dualen Systeme im Bereich des Verpackungsrecyclings im Auftrag der workinghead GmbH & Co. KG. Unter Mitarbeit von Green Delta GmbH. Öko-Institut e.V.
